Workbook

Sheet Contents
A1: Detect Cancer Early - Year 8 Staging Data
A3: In order to view the tables to full effect, the macros will need to be enabled. To do this, select options – enable this content.
A5: The following tables and figures present the Detect Cancer Early trend data from Baseline (2010 & 2011) to Year 8 (2018 & 2019). Information is presented for breast, colorectal and lung cancer combined as well as indivdually. The percentage change in stage 1 at diagnosis from the baseline to year 8 is used for monitoring performance towards the DCE LDP standard.
B9: Time period: | C9: 01 January 2010 - 31 December 2019
B10: Source: | C10: ISD Detect Cancer Early data collected from local National Prospective Cancer Audit data sets
B11: Extract date: | C11: 2020-10-20
A13: Use the hyperlinks in the lists below to nativigate to the required table or figure;
A15: List of Tables
A17: Table 1 - Combined & separate Breast, colorectal and lung cancer
A18: Table 1: Number and percentage of patients by stage at diagnosis for breast, colorectal and lung cancer by NHS Board of residence for baseline to year 8.
A20: Table 2 - Baseline & year 8 comparison
A21: Table 2: Number and percentage of stage 1 patients for breast, colorectal and lung cancer by NHS Board of residence, with percentage change from baseline to year 8.
A24: List of Figures
A26: Figure 1 - Breast, colorectal and lung cancer (combined)
A27: Figure 1: Stage distribution for breast, colorectal and lung cancer by NHS Board of residence for years selected in Table 1.
A29: Figure 2 - Baseline & year 8 comparison
A30: Figure 2: Trend in percentage of patients diagnosed at each stage for breast, colorectal and lung cancer in Scotland.
A32: Figure 3 - Trend in percentage change of stage
A33: Figure 3: Percentage change in stage 1 at diagnosis from baseline to year 8 for breast, colorectal and lung cancer by NHS Board of Residence.
A35: Figure 4 - Trend in percentage change of stage
A36: Figure 3: Trend in percentage change from baseline for each stage for breast, colorectal and lung cancer in Scotland.
A38: Notes
A40: 1) Cancer staging is the process of determining the extent to which a cancer has developed and spread. For the majority of patients with cancer it is common practice to assign a number from 1 to 4 to a cancer, with 1 indicating the cancer is confined to the original organ in which it occurred and 4 being a cancer which has spread beyond the original organ and local lymph glands (regional lymph nodes). Patients diagnosed with stage 1 disease tend to have better outcomes and longer survival compared to patients diagnosed with stage 4 disease.
A45: 2) North Cancer Alliance (NCA) - is defined as a grouping of the following NHS Boards: Grampian; Highland; Orkney; Shetland; Tayside; Western Isles. South East of Scotland Cancer Network (SCAN) - is defined as a grouping of the following NHS Boards: Borders; Dumfries and Galloway; Fife; Lothian. West of Scotland Cancer Network (WOSCAN) - is defined as a grouping of the following NHS Boards: Ayrshire and Arran; Forth Valley; Greater Glasgow and Clyde; Lanarkshire.
A49: 3) The following ICD-10 (International Classification of Diseases, 10th Revision) codes have been used: Breast: ICD-10 C50 Colorectal: ICD-10 C18-C20 Lung: ICD-10 C33-C34
A54: 4) The NHS Board of residence is the residence of the patient at the date of diagnosis. On 1 April 2014 NHS Board boundaries were changed to align with those of local authorities with the purpose of helping closer working in the provision of care in the local community. There were various small changes across NHS Boards affecting only a very small number of patients. The most significant change resulted in the transfer of patients from NHS Greater Glasgow & Clyde to NHS Lanarkshire (http://news.scotland.gov.uk/News/Health-board-boundaries-d0.aspx). Patients diagnosed from 1 April 2014 onwards will be in the new 2014 NHS Board structure. Patients diagnosed before this date will be in the previous 2006 NHS Board structure. This should be taken into account when comparing figures between different time periods before and after the change such as the figures for the baseline (2010 & 2011 combined) and Year 5 (2015 & 2016 combined). This will not affect the Scotland figures and the effect on most NHS boards will be negligible. However, it will have a small effect on NHS Greater Glasgow & Clyde and NHS Lanarkshire figures.

Sheet Table 1
A1: Detect Cancer Early - Trend Staging Data
A2: ="Table 1: Number and percentage of patients by stage at diagnosis for ("&(VLOOKUP($T$2,Lookups!$A$30:$B$33,2,0))&") - by NHS Board of residence for "&(VLOOKUP($T$3,Lookups!$A$1:$B$9,2,0))&" combined" -> Table 1: Number and percentage of patients by stage at diagnosis for (Breast, Colorectal & Lung combined) - by NHS Board of residence for Year 8 2018-2019 combined | T2: 4
T3: 9
A4: Please select which years you require: | T4: =CONCATENATE(T2,T3) -> 49
A6: Please select which cancer type you require :
A9: Area of Residence | C9: Stage 1 | F9: Stage 2 | I9: Stage 3 | L9: Stage 4 | O9: Stage Not Known | R9: Total
C10: Number | D10: % | F10: Number | G10: % | I10: Number | J10: % | L10: Number | M10: % | O10: Number | P10: % | R10: Number | S10: %
A12: NHS SCOTLAND | C12: =VLOOKUP("M"&$T$4,'Data DCE'!$A$1:$M$649,2,FALSE) -> 6510 | D12: =VLOOKUP("M"&$T$4,'Data DCE'!$A$1:$M$649,3,FALSE) -> 25.61781835 | F12: =VLOOKUP("M"&$T$4,'Data DCE'!$A$1:$M$649,4,FALSE) -> 6470 | G12: =VLOOKUP("M"&$T$4,'Data DCE'!$A$1:$M$649,5,FALSE) -> 25.4604124 | I12: =VLOOKUP("M"&$T$4,'Data DCE'!$A$1:$M$649,6,FALSE) -> 4381 | J12: =VLOOKUP("M"&$T$4,'Data DCE'!$A$1:$M$649,7,FALSE) -> 17.23988667 | L12: =VLOOKUP("M"&$T$4,'Data DCE'!$A$1:$M$649,8,FALSE) -> 6437 | M12: =VLOOKUP("M"&$T$4,'Data DCE'!$A$1:$M$649,9,FALSE) -> 25.33055249 | O12: =VLOOKUP("M"&$T$4,'Data DCE'!$A$1:$M$649,10,FALSE) -> 1614 | P12: =VLOOKUP("M"&$T$4,'Data DCE'!$A$1:$M$649,11,FALSE) -> 6.35133008 | R12: =VLOOKUP("M"&$T$4,'Data DCE'!$A$1:$M$649,12,FALSE) -> 25412 | S12: =VLOOKUP("M"&$T$4,'Data DCE'!$A$1:$M$649,13,FALSE) -> 100
A14: NCA | C14: =VLOOKUP("C"&$T$4,'Data DCE'!$A$1:$M$649,2,FALSE) -> 1571 | D14: =VLOOKUP("C"&$T$4,'Data DCE'!$A$1:$M$649,3,FALSE) -> 24.78308882 | F14: =VLOOKUP("C"&$T$4,'Data DCE'!$A$1:$M$649,4,FALSE) -> 1650 | G14: =VLOOKUP("C"&$T$4,'Data DCE'!$A$1:$M$649,5,FALSE) -> 26.02934217 | I14: =VLOOKUP("C"&$T$4,'Data DCE'!$A$1:$M$649,6,FALSE) -> 1093 | J14: =VLOOKUP("C"&$T$4,'Data DCE'!$A$1:$M$649,7,FALSE) -> 17.24246727 | L14: =VLOOKUP("C"&$T$4,'Data DCE'!$A$1:$M$649,8,FALSE) -> 1552 | M14: =VLOOKUP("C"&$T$4,'Data DCE'!$A$1:$M$649,9,FALSE) -> 24.483357 | O14: =VLOOKUP("C"&$T$4,'Data DCE'!$A$1:$M$649,10,FALSE) -> 473 | P14: =VLOOKUP("C"&$T$4,'Data DCE'!$A$1:$M$649,11,FALSE) -> 7.461744755 | R14: =VLOOKUP("C"&$T$4,'Data DCE'!$A$1:$M$649,12,FALSE) -> 6339 | S14: =VLOOKUP("C"&$T$4,'Data DCE'!$A$1:$M$649,13,FALSE) -> 100
A15: NHS Grampian | C15: =VLOOKUP("N"&$T$4,'Data DCE'!$A$1:$M$649,2,FALSE) -> 588 | D15: =VLOOKUP("N"&$T$4,'Data DCE'!$A$1:$M$649,3,FALSE) -> 22.97772567 | F15: =VLOOKUP("N"&$T$4,'Data DCE'!$A$1:$M$649,4,FALSE) -> 634 | G15: =VLOOKUP("N"&$T$4,'Data DCE'!$A$1:$M$649,5,FALSE) -> 24.77530285 | I15: =VLOOKUP("N"&$T$4,'Data DCE'!$A$1:$M$649,6,FALSE) -> 422 | J15: =VLOOKUP("N"&$T$4,'Data DCE'!$A$1:$M$649,7,FALSE) -> 16.49081673 | L15: =VLOOKUP("N"&$T$4,'Data DCE'!$A$1:$M$649,8,FALSE) -> 695 | M15: =VLOOKUP("N"&$T$4,'Data DCE'!$A$1:$M$649,9,FALSE) -> 27.1590465 | O15: =VLOOKUP("N"&$T$4,'Data DCE'!$A$1:$M$649,10,FALSE) -> 220 | P15: =VLOOKUP("N"&$T$4,'Data DCE'!$A$1:$M$649,11,FALSE) -> 8.597108245 | R15: =VLOOKUP("N"&$T$4,'Data DCE'!$A$1:$M$649,12,FALSE) -> 2559 | S15: =VLOOKUP("N"&$T$4,'Data DCE'!$A$1:$M$649,13,FALSE) -> 100
A16: NHS Highland | C16: =VLOOKUP("H"&$T$4,'Data DCE'!$A$1:$M$649,2,FALSE) -> 433 | D16: =VLOOKUP("H"&$T$4,'Data DCE'!$A$1:$M$649,3,FALSE) -> 27.73862908 | F16: =VLOOKUP("H"&$T$4,'Data DCE'!$A$1:$M$649,4,FALSE) -> 436 | G16: =VLOOKUP("H"&$T$4,'Data DCE'!$A$1:$M$649,5,FALSE) -> 27.93081358 | I16: =VLOOKUP("H"&$T$4,'Data DCE'!$A$1:$M$649,6,FALSE) -> 254 | J16: =VLOOKUP("H"&$T$4,'Data DCE'!$A$1:$M$649,7,FALSE) -> 16.27162076 | L16: =VLOOKUP("H"&$T$4,'Data DCE'!$A$1:$M$649,8,FALSE) -> 338 | M16: =VLOOKUP("H"&$T$4,'Data DCE'!$A$1:$M$649,9,FALSE) -> 21.65278668 | O16: =VLOOKUP("H"&$T$4,'Data DCE'!$A$1:$M$649,10,FALSE) -> 100 | P16: =VLOOKUP("H"&$T$4,'Data DCE'!$A$1:$M$649,11,FALSE) -> 6.406149904 | R16: =VLOOKUP("H"&$T$4,'Data DCE'!$A$1:$M$649,12,FALSE) -> 1561 | S16: =VLOOKUP("H"&$T$4,'Data DCE'!$A$1:$M$649,13,FALSE) -> 100
A17: NHS Orkney | C17: =VLOOKUP("R"&$T$4,'Data DCE'!$A$1:$M$649,2,FALSE) -> 28 | D17: =VLOOKUP("R"&$T$4,'Data DCE'!$A$1:$M$649,3,FALSE) -> 27.18446602 | F17: =VLOOKUP("R"&$T$4,'Data DCE'!$A$1:$M$649,4,FALSE) -> 34 | G17: =VLOOKUP("R"&$T$4,'Data DCE'!$A$1:$M$649,5,FALSE) -> 33.00970874 | I17: =VLOOKUP("R"&$T$4,'Data DCE'!$A$1:$M$649,6,FALSE) -> 12 | J17: =VLOOKUP("R"&$T$4,'Data DCE'!$A$1:$M$649,7,FALSE) -> 11.65048544 | L17: =VLOOKUP("R"&$T$4,'Data DCE'!$A$1:$M$649,8,FALSE) -> 21 | M17: =VLOOKUP("R"&$T$4,'Data DCE'!$A$1:$M$649,9,FALSE) -> 20.38834951 | O17: =VLOOKUP("R"&$T$4,'Data DCE'!$A$1:$M$649,10,FALSE) -> 8 | P17: =VLOOKUP("R"&$T$4,'Data DCE'!$A$1:$M$649,11,FALSE) -> 7.766990291 | R17: =VLOOKUP("R"&$T$4,'Data DCE'!$A$1:$M$649,12,FALSE) -> 103 | S17: =VLOOKUP("R"&$T$4,'Data DCE'!$A$1:$M$649,13,FALSE) -> 100
A18: NHS Shetland | C18: =VLOOKUP("Z"&$T$4,'Data DCE'!$A$1:$M$649,2,FALSE) -> 19 | D18: =VLOOKUP("Z"&$T$4,'Data DCE'!$A$1:$M$649,3,FALSE) -> 21.11111111 | F18: =VLOOKUP("Z"&$T$4,'Data DCE'!$A$1:$M$649,4,FALSE) -> 27 | G18: =VLOOKUP("Z"&$T$4,'Data DCE'!$A$1:$M$649,5,FALSE) -> 30 | I18: =VLOOKUP("Z"&$T$4,'Data DCE'!$A$1:$M$649,6,FALSE) -> 21 | J18: =VLOOKUP("Z"&$T$4,'Data DCE'!$A$1:$M$649,7,FALSE) -> 23.33333333 | L18: =VLOOKUP("Z"&$T$4,'Data DCE'!$A$1:$M$649,8,FALSE) -> 20 | M18: =VLOOKUP("Z"&$T$4,'Data DCE'!$A$1:$M$649,9,FALSE) -> 22.22222222 | O18: =VLOOKUP("Z"&$T$4,'Data DCE'!$A$1:$M$649,10,FALSE) -> 3 | P18: =VLOOKUP("Z"&$T$4,'Data DCE'!$A$1:$M$649,11,FALSE) -> 3.333333333 | R18: =VLOOKUP("Z"&$T$4,'Data DCE'!$A$1:$M$649,12,FALSE) -> 90 | S18: =VLOOKUP("Z"&$T$4,'Data DCE'!$A$1:$M$649,13,FALSE) -> 100
A19: NHS Tayside | C19: =VLOOKUP("T"&$T$4,'Data DCE'!$A$1:$M$649,2,FALSE) -> 475 | D19: =VLOOKUP("T"&$T$4,'Data DCE'!$A$1:$M$649,3,FALSE) -> 25.10570825 | F19: =VLOOKUP("T"&$T$4,'Data DCE'!$A$1:$M$649,4,FALSE) -> 488 | G19: =VLOOKUP("T"&$T$4,'Data DCE'!$A$1:$M$649,5,FALSE) -> 25.79281184 | I19: =VLOOKUP("T"&$T$4,'Data DCE'!$A$1:$M$649,6,FALSE) -> 362 | J19: =VLOOKUP("T"&$T$4,'Data DCE'!$A$1:$M$649,7,FALSE) -> 19.13319239 | L19: =VLOOKUP("T"&$T$4,'Data DCE'!$A$1:$M$649,8,FALSE) -> 439 | M19: =VLOOKUP("T"&$T$4,'Data DCE'!$A$1:$M$649,9,FALSE) -> 23.20295983 | O19: =VLOOKUP("T"&$T$4,'Data DCE'!$A$1:$M$649,10,FALSE) -> 128 | P19: =VLOOKUP("T"&$T$4,'Data DCE'!$A$1:$M$649,11,FALSE) -> 6.765327696 | R19: =VLOOKUP("T"&$T$4,'Data DCE'!$A$1:$M$649,12,FALSE) -> 1892 | S19: =VLOOKUP("T"&$T$4,'Data DCE'!$A$1:$M$649,13,FALSE) -> 100
A20: NHS Western Isles | C20: =VLOOKUP("W"&$T$4,'Data DCE'!$A$1:$M$649,2,FALSE) -> 28 | D20: =VLOOKUP("W"&$T$4,'Data DCE'!$A$1:$M$649,3,FALSE) -> 20.89552239 | F20: =VLOOKUP("W"&$T$4,'Data DCE'!$A$1:$M$649,4,FALSE) -> 31 | G20: =VLOOKUP("W"&$T$4,'Data DCE'!$A$1:$M$649,5,FALSE) -> 23.13432836 | I20: =VLOOKUP("W"&$T$4,'Data DCE'!$A$1:$M$649,6,FALSE) -> 22 | J20: =VLOOKUP("W"&$T$4,'Data DCE'!$A$1:$M$649,7,FALSE) -> 16.41791045 | L20: =VLOOKUP("W"&$T$4,'Data DCE'!$A$1:$M$649,8,FALSE) -> 39 | M20: =VLOOKUP("W"&$T$4,'Data DCE'!$A$1:$M$649,9,FALSE) -> 29.10447761 | O20: =VLOOKUP("W"&$T$4,'Data DCE'!$A$1:$M$649,10,FALSE) -> 14 | P20: =VLOOKUP("W"&$T$4,'Data DCE'!$A$1:$M$649,11,FALSE) -> 10.44776119 | R20: =VLOOKUP("W"&$T$4,'Data DCE'!$A$1:$M$649,12,FALSE) -> 134 | S20: =VLOOKUP("W"&$T$4,'Data DCE'!$A$1:$M$649,13,FALSE) -> 100
A22: SCAN | C22: =VLOOKUP("D"&$T$4,'Data DCE'!$A$1:$M$649,2,FALSE) -> 1872 | D22: =VLOOKUP("D"&$T$4,'Data DCE'!$A$1:$M$649,3,FALSE) -> 26.66286854 | F22: =VLOOKUP("D"&$T$4,'Data DCE'!$A$1:$M$649,4,FALSE) -> 1799 | G22: =VLOOKUP("D"&$T$4,'Data DCE'!$A$1:$M$649,5,FALSE) -> 25.62313061 | I22: =VLOOKUP("D"&$T$4,'Data DCE'!$A$1:$M$649,6,FALSE) -> 1207 | J22: =VLOOKUP("D"&$T$4,'Data DCE'!$A$1:$M$649,7,FALSE) -> 17.19128329 | L22: =VLOOKUP("D"&$T$4,'Data DCE'!$A$1:$M$649,8,FALSE) -> 1769 | M22: =VLOOKUP("D"&$T$4,'Data DCE'!$A$1:$M$649,9,FALSE) -> 25.19584105 | O22: =VLOOKUP("D"&$T$4,'Data DCE'!$A$1:$M$649,10,FALSE) -> 374 | P22: =VLOOKUP("D"&$T$4,'Data DCE'!$A$1:$M$649,11,FALSE) -> 5.326876513 | R22: =VLOOKUP("D"&$T$4,'Data DCE'!$A$1:$M$649,12,FALSE) -> 7021 | S22: =VLOOKUP("D"&$T$4,'Data DCE'!$A$1:$M$649,13,FALSE) -> 100
A23: NHS Borders | C23: =VLOOKUP("B"&$T$4,'Data DCE'!$A$1:$M$649,2,FALSE) -> 127 | D23: =VLOOKUP("B"&$T$4,'Data DCE'!$A$1:$M$649,3,FALSE) -> 23.04900181 | F23: =VLOOKUP("B"&$T$4,'Data DCE'!$A$1:$M$649,4,FALSE) -> 142 | G23: =VLOOKUP("B"&$T$4,'Data DCE'!$A$1:$M$649,5,FALSE) -> 25.77132486 | I23: =VLOOKUP("B"&$T$4,'Data DCE'!$A$1:$M$649,6,FALSE) -> 91 | J23: =VLOOKUP("B"&$T$4,'Data DCE'!$A$1:$M$649,7,FALSE) -> 16.5154265 | L23: =VLOOKUP("B"&$T$4,'Data DCE'!$A$1:$M$649,8,FALSE) -> 150 | M23: =VLOOKUP("B"&$T$4,'Data DCE'!$A$1:$M$649,9,FALSE) -> 27.22323049 | O23: =VLOOKUP("B"&$T$4,'Data DCE'!$A$1:$M$649,10,FALSE) -> 41 | P23: =VLOOKUP("B"&$T$4,'Data DCE'!$A$1:$M$649,11,FALSE) -> 7.441016334 | R23: =VLOOKUP("B"&$T$4,'Data DCE'!$A$1:$M$649,12,FALSE) -> 551 | S23: =VLOOKUP("B"&$T$4,'Data DCE'!$A$1:$M$649,13,FALSE) -> 100
A24: NHS Dumfries & Galloway | C24: =VLOOKUP("Y"&$T$4,'Data DCE'!$A$1:$M$649,2,FALSE) -> 203 | D24: =VLOOKUP("Y"&$T$4,'Data DCE'!$A$1:$M$649,3,FALSE) -> 30.43478261 | F24: =VLOOKUP("Y"&$T$4,'Data DCE'!$A$1:$M$649,4,FALSE) -> 135 | G24: =VLOOKUP("Y"&$T$4,'Data DCE'!$A$1:$M$649,5,FALSE) -> 20.23988006 | I24: =VLOOKUP("Y"&$T$4,'Data DCE'!$A$1:$M$649,6,FALSE) -> 103 | J24: =VLOOKUP("Y"&$T$4,'Data DCE'!$A$1:$M$649,7,FALSE) -> 15.44227886 | L24: =VLOOKUP("Y"&$T$4,'Data DCE'!$A$1:$M$649,8,FALSE) -> 188 | M24: =VLOOKUP("Y"&$T$4,'Data DCE'!$A$1:$M$649,9,FALSE) -> 28.18590705 | O24: =VLOOKUP("Y"&$T$4,'Data DCE'!$A$1:$M$649,10,FALSE) -> 38 | P24: =VLOOKUP("Y"&$T$4,'Data DCE'!$A$1:$M$649,11,FALSE) -> 5.697151424 | R24: =VLOOKUP("Y"&$T$4,'Data DCE'!$A$1:$M$649,12,FALSE) -> 667 | S24: =VLOOKUP("Y"&$T$4,'Data DCE'!$A$1:$M$649,13,FALSE) -> 100
A25: NHS Fife | C25: =VLOOKUP("F"&$T$4,'Data DCE'!$A$1:$M$649,2,FALSE) -> 514 | D25: =VLOOKUP("F"&$T$4,'Data DCE'!$A$1:$M$649,3,FALSE) -> 26.07813293 | F25: =VLOOKUP("F"&$T$4,'Data DCE'!$A$1:$M$649,4,FALSE) -> 508 | G25: =VLOOKUP("F"&$T$4,'Data DCE'!$A$1:$M$649,5,FALSE) -> 25.77371892 | I25: =VLOOKUP("F"&$T$4,'Data DCE'!$A$1:$M$649,6,FALSE) -> 334 | J25: =VLOOKUP("F"&$T$4,'Data DCE'!$A$1:$M$649,7,FALSE) -> 16.94571284 | L25: =VLOOKUP("F"&$T$4,'Data DCE'!$A$1:$M$649,8,FALSE) -> 539 | M25: =VLOOKUP("F"&$T$4,'Data DCE'!$A$1:$M$649,9,FALSE) -> 27.34652461 | O25: =VLOOKUP("F"&$T$4,'Data DCE'!$A$1:$M$649,10,FALSE) -> 76 | P25: =VLOOKUP("F"&$T$4,'Data DCE'!$A$1:$M$649,11,FALSE) -> 3.855910705 | R25: =VLOOKUP("F"&$T$4,'Data DCE'!$A$1:$M$649,12,FALSE) -> 1971 | S25: =VLOOKUP("F"&$T$4,'Data DCE'!$A$1:$M$649,13,FALSE) -> 100
A26: NHS Lothian | C26: =VLOOKUP("S"&$T$4,'Data DCE'!$A$1:$M$649,2,FALSE) -> 1028 | D26: =VLOOKUP("S"&$T$4,'Data DCE'!$A$1:$M$649,3,FALSE) -> 26.82672234 | F26: =VLOOKUP("S"&$T$4,'Data DCE'!$A$1:$M$649,4,FALSE) -> 1014 | G26: =VLOOKUP("S"&$T$4,'Data DCE'!$A$1:$M$649,5,FALSE) -> 26.46137787 | I26: =VLOOKUP("S"&$T$4,'Data DCE'!$A$1:$M$649,6,FALSE) -> 679 | J26: =VLOOKUP("S"&$T$4,'Data DCE'!$A$1:$M$649,7,FALSE) -> 17.71920668 | L26: =VLOOKUP("S"&$T$4,'Data DCE'!$A$1:$M$649,8,FALSE) -> 892 | M26: =VLOOKUP("S"&$T$4,'Data DCE'!$A$1:$M$649,9,FALSE) -> 23.2776618 | O26: =VLOOKUP("S"&$T$4,'Data DCE'!$A$1:$M$649,10,FALSE) -> 219 | P26: =VLOOKUP("S"&$T$4,'Data DCE'!$A$1:$M$649,11,FALSE) -> 5.715031315 | R26: =VLOOKUP("S"&$T$4,'Data DCE'!$A$1:$M$649,12,FALSE) -> 3832 | S26: =VLOOKUP("S"&$T$4,'Data DCE'!$A$1:$M$649,13,FALSE) -> 100
A28: WOSCAN | C28: =VLOOKUP("E"&$T$4,'Data DCE'!$A$1:$M$649,2,FALSE) -> 3067 | D28: =VLOOKUP("E"&$T$4,'Data DCE'!$A$1:$M$649,3,FALSE) -> 25.44805841 | F28: =VLOOKUP("E"&$T$4,'Data DCE'!$A$1:$M$649,4,FALSE) -> 3021 | G28: =VLOOKUP("E"&$T$4,'Data DCE'!$A$1:$M$649,5,FALSE) -> 25.06637902 | I28: =VLOOKUP("E"&$T$4,'Data DCE'!$A$1:$M$649,6,FALSE) -> 2081 | J28: =VLOOKUP("E"&$T$4,'Data DCE'!$A$1:$M$649,7,FALSE) -> 17.26684368 | L28: =VLOOKUP("E"&$T$4,'Data DCE'!$A$1:$M$649,8,FALSE) -> 3116 | M28: =VLOOKUP("E"&$T$4,'Data DCE'!$A$1:$M$649,9,FALSE) -> 25.85462994 | O28: =VLOOKUP("E"&$T$4,'Data DCE'!$A$1:$M$649,10,FALSE) -> 767 | P28: =VLOOKUP("E"&$T$4,'Data DCE'!$A$1:$M$649,11,FALSE) -> 6.364088948 | R28: =VLOOKUP("E"&$T$4,'Data DCE'!$A$1:$M$649,12,FALSE) -> 12052 | S28: =VLOOKUP("E"&$T$4,'Data DCE'!$A$1:$M$649,13,FALSE) -> 100
A29: NHS Ayrshire & Arran | C29: =VLOOKUP("A"&$T$4,'Data DCE'!$A$1:$M$649,2,FALSE) -> 371 | D29: =VLOOKUP("A"&$T$4,'Data DCE'!$A$1:$M$649,3,FALSE) -> 20.74944072 | F29: =VLOOKUP("A"&$T$4,'Data DCE'!$A$1:$M$649,4,FALSE) -> 418 | G29: =VLOOKUP("A"&$T$4,'Data DCE'!$A$1:$M$649,5,FALSE) -> 23.37807606 | I29: =VLOOKUP("A"&$T$4,'Data DCE'!$A$1:$M$649,6,FALSE) -> 295 | J29: =VLOOKUP("A"&$T$4,'Data DCE'!$A$1:$M$649,7,FALSE) -> 16.49888143 | L29: =VLOOKUP("A"&$T$4,'Data DCE'!$A$1:$M$649,8,FALSE) -> 492 | M29: =VLOOKUP("A"&$T$4,'Data DCE'!$A$1:$M$649,9,FALSE) -> 27.51677852 | O29: =VLOOKUP("A"&$T$4,'Data DCE'!$A$1:$M$649,10,FALSE) -> 212 | P29: =VLOOKUP("A"&$T$4,'Data DCE'!$A$1:$M$649,11,FALSE) -> 11.85682327 | R29: =VLOOKUP("A"&$T$4,'Data DCE'!$A$1:$M$649,12,FALSE) -> 1788 | S29: =VLOOKUP("A"&$T$4,'Data DCE'!$A$1:$M$649,13,FALSE) -> 100
A30: NHS Forth Valley | C30: =VLOOKUP("V"&$T$4,'Data DCE'!$A$1:$M$649,2,FALSE) -> 338 | D30: =VLOOKUP("V"&$T$4,'Data DCE'!$A$1:$M$649,3,FALSE) -> 23.75263528 | F30: =VLOOKUP("V"&$T$4,'Data DCE'!$A$1:$M$649,4,FALSE) -> 317 | G30: =VLOOKUP("V"&$T$4,'Data DCE'!$A$1:$M$649,5,FALSE) -> 22.27687983 | I30: =VLOOKUP("V"&$T$4,'Data DCE'!$A$1:$M$649,6,FALSE) -> 239 | J30: =VLOOKUP("V"&$T$4,'Data DCE'!$A$1:$M$649,7,FALSE) -> 16.79550246 | L30: =VLOOKUP("V"&$T$4,'Data DCE'!$A$1:$M$649,8,FALSE) -> 371 | M30: =VLOOKUP("V"&$T$4,'Data DCE'!$A$1:$M$649,9,FALSE) -> 26.07167955 | O30: =VLOOKUP("V"&$T$4,'Data DCE'!$A$1:$M$649,10,FALSE) -> 158 | P30: =VLOOKUP("V"&$T$4,'Data DCE'!$A$1:$M$649,11,FALSE) -> 11.10330288 | R30: =VLOOKUP("V"&$T$4,'Data DCE'!$A$1:$M$649,12,FALSE) -> 1423 | S30: =VLOOKUP("V"&$T$4,'Data DCE'!$A$1:$M$649,13,FALSE) -> 100
A31: NHS Greater Glasgow & Clyde | C31: =VLOOKUP("G"&$T$4,'Data DCE'!$A$1:$M$649,2,FALSE) -> 1563 | D31: =VLOOKUP("G"&$T$4,'Data DCE'!$A$1:$M$649,3,FALSE) -> 26.75453612 | F31: =VLOOKUP("G"&$T$4,'Data DCE'!$A$1:$M$649,4,FALSE) -> 1531 | G31: =VLOOKUP("G"&$T$4,'Data DCE'!$A$1:$M$649,5,FALSE) -> 26.2067785 | I31: =VLOOKUP("G"&$T$4,'Data DCE'!$A$1:$M$649,6,FALSE) -> 1063 | J31: =VLOOKUP("G"&$T$4,'Data DCE'!$A$1:$M$649,7,FALSE) -> 18.19582335 | L31: =VLOOKUP("G"&$T$4,'Data DCE'!$A$1:$M$649,8,FALSE) -> 1454 | M31: =VLOOKUP("G"&$T$4,'Data DCE'!$A$1:$M$649,9,FALSE) -> 24.88873673 | O31: =VLOOKUP("G"&$T$4,'Data DCE'!$A$1:$M$649,10,FALSE) -> 231 | P31: =VLOOKUP("G"&$T$4,'Data DCE'!$A$1:$M$649,11,FALSE) -> 3.9541253 | R31: =VLOOKUP("G"&$T$4,'Data DCE'!$A$1:$M$649,12,FALSE) -> 5842 | S31: =VLOOKUP("G"&$T$4,'Data DCE'!$A$1:$M$649,13,FALSE) -> 100
A32: NHS Lanarkshire | C32: =VLOOKUP("L"&$T$4,'Data DCE'!$A$1:$M$649,2,FALSE) -> 795 | D32: =VLOOKUP("L"&$T$4,'Data DCE'!$A$1:$M$649,3,FALSE) -> 26.50883628 | F32: =VLOOKUP("L"&$T$4,'Data DCE'!$A$1:$M$649,4,FALSE) -> 755 | G32: =VLOOKUP("L"&$T$4,'Data DCE'!$A$1:$M$649,5,FALSE) -> 25.17505835 | I32: =VLOOKUP("L"&$T$4,'Data DCE'!$A$1:$M$649,6,FALSE) -> 484 | J32: =VLOOKUP("L"&$T$4,'Data DCE'!$A$1:$M$649,7,FALSE) -> 16.1387129 | L32: =VLOOKUP("L"&$T$4,'Data DCE'!$A$1:$M$649,8,FALSE) -> 799 | M32: =VLOOKUP("L"&$T$4,'Data DCE'!$A$1:$M$649,9,FALSE) -> 26.64221407 | O32: =VLOOKUP("L"&$T$4,'Data DCE'!$A$1:$M$649,10,FALSE) -> 166 | P32: =VLOOKUP("L"&$T$4,'Data DCE'!$A$1:$M$649,11,FALSE) -> 5.535178393 | R32: =VLOOKUP("L"&$T$4,'Data DCE'!$A$1:$M$649,12,FALSE) -> 2999 | S32: =VLOOKUP("L"&$T$4,'Data DCE'!$A$1:$M$649,13,FALSE) -> 100
A34: Source: PHS Detect Cancer Early data.
A36: Notes:
A37: 1) Patients diagnosed from 01 January 2010 - 31 December 2019 as at October 2020.
A38: 2) There has been an increase in NHS Grampian unknown stage for lung cancer for 2017. This is due to them moving to using the updated staging classification TNM8 a year early.

Sheet Fig 1
A1: Detect Cancer Early - Trend Staging Data | R1: back to contents
A3: ="Figure 1: Stage distribution for ("&(VLOOKUP('Table 1'!T2,Lookups!$A$30:$B$33,2,0))&") - by NHS Board of residence for "&(VLOOKUP('Table 1'!T3,Lookups!$A$1:$B$9,2,0))&" combined" -> Figure 1: Stage distribution for (Breast, Colorectal & Lung combined) - by NHS Board of residence for Year 8 2018-2019 combined
A48: Source: PHS Detect Cancer Early data.
A50: Notes:
A51: 1) Patients diagnosed from 01 January 2010 - 31 December 2019 as at October 2020.
A52: 2) There has been an increase in NHS Grampian unknown stage for lung cancer for 2017. This is due to them moving to using the updated staging classification TNM8 a year early.

Sheet Fig 2
A1: ="Detect Cancer Early - Year 8 Staging Data" -> Detect Cancer Early - Year 8 Staging Data | R1: back to contents
A3: ="Figure 2: Trend in percentage of patients diagnosed at each stage for breast, colorectal and lung cancer in Scotland." -> Figure 2: Trend in percentage of patients diagnosed at each stage for breast, colorectal and lung cancer in Scotland.
A48: Source: PHS Detect Cancer Early data.
A50: Notes:
A51: 1) Data for combined calendar years: Baseline (2010 & 2011); Year 1 (2011 & 2012); Year 2 (2012 & 2013); Year 3 (2013 & 2014); Year 4 (2014 & 2015); Year 5 (2015 & 2016); Year 6 (2016 & 2017); & Year 7 (2017 & 2018) & Year 8 (2018 & 2019)
A52: 2) There has been an increase in NHS Grampian unknown stage for lung cancer for 2017. This is due to them moving to using the updated staging classification TNM8 a year early.

Sheet Table 2
A1: Detect Cancer Early - Trend Staging Data
A2: ="Table 2: Number and percentage of patients by combined year for ("&(VLOOKUP($T$2,Lookups!$A$30:$B$33,2,0))&") - by NHS Board of residence for "&(VLOOKUP($T$3,Lookups!$A$35:$B$39,2,0)) -> Table 2: Number and percentage of patients by combined year for (Breast, Colorectal & Lung combined) - by NHS Board of residence for Stage 1 | T2: 4
T3: 1
A4: Please select which cancer type you require : | T4: =CONCATENATE(T2,T3) -> 41
A7: Area of Residence | C7: Baseline 2010 - 2011 | F7: Year 1 2011 - 2012 | J7: Year 2 2012 - 2013 | N7: Year 3 2013 - 2014 | R7: Year 4 2014 - 2015 | V7: Year 5 2015 - 2016 | Z7: Year 6 2016 - 2017 | AD7: Year 7 2017 - 2018 | AH7: Year 8 2018 - 2019
C8: Number | D8: % | F8: Number | G8: % | H8: % Change | J8: Number | K8: % | L8: % Change | N8: Number | O8: % | P8: % Change | R8: Number | S8: % | T8: % Change | V8: Number | W8: % | X8: % Change | Z8: Number | AA8: % | AB8: % Change | AD8: Number | AE8: % | AF8: % Change | AH8: Number | AI8: % | AJ8: % Change
A10: NHS SCOTLAND | C10: =VLOOKUP("M"&$T$4,'Data DCE2'!$A$1:$S$433,2,FALSE) -> 5581 | D10: =VLOOKUP("M"&$T$4,'Data DCE2'!$A$1:$S$433,3,FALSE) -> 23.32316436 | F10: =VLOOKUP("M"&$T$4,'Data DCE2'!$A$1:$S$433,4,FALSE) -> 5946 | G10: =VLOOKUP("M"&$T$4,'Data DCE2'!$A$1:$S$433,5,FALSE) -> 24.15992849 | H10: =(G10-$D10)/$D10*100 -> 3.587695533 | J10: =VLOOKUP("M"&$T$4,'Data DCE2'!$A$1:$S$433,6,FALSE) -> 6074 | K10: =VLOOKUP("M"&$T$4,'Data DCE2'!$A$1:$S$433,7,FALSE) -> 24.56424152 | L10: =(K10-$D10)/$D10*100 -> 5.321221156 | N10: =VLOOKUP("M"&$T$4,'Data DCE2'!$A$1:$S$433,8,FALSE) -> 6198 | O10: =VLOOKUP("M"&$T$4,'Data DCE2'!$A$1:$S$433,9,FALSE) -> 24.95470467 | P10: =(O10-$D10)/$D10*100 -> 6.9953643 | R10: =VLOOKUP("M"&$T$4,'Data DCE2'!$A$1:$S$433,10,FALSE) -> 6272 | S10: =VLOOKUP("M"&$T$4,'Data DCE2'!$A$1:$S$433,11,FALSE) -> 25.25976641 | T10: =(S10-$D10)/$D10*100 -> 8.303341778 | V10: =VLOOKUP("M"&$T$4,'Data DCE2'!$A$1:$S$433,12,FALSE) -> 6207 | W10: =VLOOKUP("M"&$T$4,'Data DCE2'!$A$1:$S$433,13,FALSE) -> 25.4447815 | X10: =(W10-$D10)/$D10*100 -> 9.096609317 | Z10: =VLOOKUP("M"&$T$4,'Data DCE2'!$A$1:$S$433,14,FALSE) -> 6155 | AA10: =VLOOKUP("M"&$T$4,'Data DCE2'!$A$1:$S$433,15,FALSE) -> 25.26579369 | AB10: =(AA10-$D10)/$D10*100 -> 8.329184219 | AD10: =VLOOKUP("M"&$T$4,'Data DCE2'!$A$1:$S$433,16,FALSE) -> 6336 | AE10: =VLOOKUP("M"&$T$4,'Data DCE2'!$A$1:$S$433,17,FALSE) -> 25.51032733 | AF10: =(AE10-$D10)/$D10*100 -> 9.377642498 | AH10: =VLOOKUP("M"&$T$4,'Data DCE2'!$A$1:$S$433,18,FALSE) -> 6510 | AI10: =VLOOKUP("M"&$T$4,'Data DCE2'!$A$1:$S$433,19,FALSE) -> 25.61781835 | AJ10: =(AI10-$D10)/$D10*100 -> 9.838519151
A12: NCA | C12: =VLOOKUP("C"&$T$4,'Data DCE2'!$A$1:$S$433,2,FALSE) -> 1328 | D12: =VLOOKUP("C"&$T$4,'Data DCE2'!$A$1:$S$433,3,FALSE) -> 22.65052021 | F12: =VLOOKUP("C"&$T$4,'Data DCE2'!$A$1:$S$433,4,FALSE) -> 1344 | G12: =VLOOKUP("C"&$T$4,'Data DCE2'!$A$1:$S$433,5,FALSE) -> 22.82608696 | H12: =(G12-$D12)/$D12*100 -> 0.7751113148 | J12: =VLOOKUP("C"&$T$4,'Data DCE2'!$A$1:$S$433,6,FALSE) -> 1399 | K12: =VLOOKUP("C"&$T$4,'Data DCE2'!$A$1:$S$433,7,FALSE) -> 23.44954744 | L12: =(K12-$D12)/$D12*100 -> 3.527632993 | N12: =VLOOKUP("C"&$T$4,'Data DCE2'!$A$1:$S$433,8,FALSE) -> 1393 | O12: =VLOOKUP("C"&$T$4,'Data DCE2'!$A$1:$S$433,9,FALSE) -> 23.431455 | P12: =(O12-$D12)/$D12*100 -> 3.447756543 | R12: =VLOOKUP("C"&$T$4,'Data DCE2'!$A$1:$S$433,10,FALSE) -> 1389 | S12: =VLOOKUP("C"&$T$4,'Data DCE2'!$A$1:$S$433,11,FALSE) -> 22.90189613 | T12: =(S12-$D12)/$D12*100 -> 1.109801945 | V12: =VLOOKUP("C"&$T$4,'Data DCE2'!$A$1:$S$433,12,FALSE) -> 1478 | W12: =VLOOKUP("C"&$T$4,'Data DCE2'!$A$1:$S$433,13,FALSE) -> 23.61776926 | X12: =(W12-$D12)/$D12*100 -> 4.270317127 | Z12: =VLOOKUP("C"&$T$4,'Data DCE2'!$A$1:$S$433,14,FALSE) -> 1460 | AA12: =VLOOKUP("C"&$T$4,'Data DCE2'!$A$1:$S$433,15,FALSE) -> 23.68591823 | AB12: =(AA12-$D12)/$D12*100 -> 4.571188713 | AD12: =VLOOKUP("C"&$T$4,'Data DCE2'!$A$1:$S$433,16,FALSE) -> 1504 | AE12: =VLOOKUP("C"&$T$4,'Data DCE2'!$A$1:$S$433,17,FALSE) -> 24.13737763 | AF12: =(AE12-$D12)/$D12*100 -> 6.564341139 | AH12: =VLOOKUP("C"&$T$4,'Data DCE2'!$A$1:$S$433,18,FALSE) -> 1571 | AI12: =VLOOKUP("C"&$T$4,'Data DCE2'!$A$1:$S$433,19,FALSE) -> 24.78308882 | AJ12: =(AI12-$D12)/$D12*100 -> 9.415097684
A13: NHS Grampian | C13: =VLOOKUP("N"&$T$4,'Data DCE2'!$A$1:$S$433,2,FALSE) -> 468 | D13: =VLOOKUP("N"&$T$4,'Data DCE2'!$A$1:$S$433,3,FALSE) -> 21.63661581 | F13: =VLOOKUP("N"&$T$4,'Data DCE2'!$A$1:$S$433,4,FALSE) -> 494 | G13: =VLOOKUP("N"&$T$4,'Data DCE2'!$A$1:$S$433,5,FALSE) -> 22.60869565 | H13: 4.492753623 | J13: =VLOOKUP("N"&$T$4,'Data DCE2'!$A$1:$S$433,6,FALSE) -> 513 | K13: =VLOOKUP("N"&$T$4,'Data DCE2'!$A$1:$S$433,7,FALSE) -> 23.79406308 | L13: 9.971278721 | N13: =VLOOKUP("N"&$T$4,'Data DCE2'!$A$1:$S$433,8,FALSE) -> 503 | O13: =VLOOKUP("N"&$T$4,'Data DCE2'!$A$1:$S$433,9,FALSE) -> 22.70880361 | P13: 4.955432077 | R13: =VLOOKUP("N"&$T$4,'Data DCE2'!$A$1:$S$433,10,FALSE) -> 514 | S13: =VLOOKUP("N"&$T$4,'Data DCE2'!$A$1:$S$433,11,FALSE) -> 22.51423565 | T13: 4.056178892 | V13: =VLOOKUP("N"&$T$4,'Data DCE2'!$A$1:$S$433,12,FALSE) -> 533 | W13: =VLOOKUP("N"&$T$4,'Data DCE2'!$A$1:$S$433,13,FALSE) -> 23.06360883 | X13: 6.595269003 | Z13: =VLOOKUP("N"&$T$4,'Data DCE2'!$A$1:$S$433,14,FALSE) -> 536 | AA13: =VLOOKUP("N"&$T$4,'Data DCE2'!$A$1:$S$433,15,FALSE) -> 22.55892256 | AB13: 4.262712596 | AD13: =VLOOKUP("N"&$T$4,'Data DCE2'!$A$1:$S$433,16,FALSE) -> 552 | AE13: =VLOOKUP("N"&$T$4,'Data DCE2'!$A$1:$S$433,17,FALSE) -> 22.43902439 | AF13: =(AE13-$D13)/$D13*100 -> 3.708567855 | AH13: =VLOOKUP("N"&$T$4,'Data DCE2'!$A$1:$S$433,18,FALSE) -> 588 | AI13: =VLOOKUP("N"&$T$4,'Data DCE2'!$A$1:$S$433,19,FALSE) -> 22.97772567 | AJ13: =(AI13-$D13)/$D13*100 -> 6.198334686
A14: NHS Highland | C14: =VLOOKUP("H"&$T$4,'Data DCE2'!$A$1:$S$433,2,FALSE) -> 375 | D14: =VLOOKUP("H"&$T$4,'Data DCE2'!$A$1:$S$433,3,FALSE) -> 25.63226247 | F14: =VLOOKUP("H"&$T$4,'Data DCE2'!$A$1:$S$433,4,FALSE) -> 346 | G14: =VLOOKUP("H"&$T$4,'Data DCE2'!$A$1:$S$433,5,FALSE) -> 22.83828383 | H14: -10.90024202 | J14: =VLOOKUP("H"&$T$4,'Data DCE2'!$A$1:$S$433,6,FALSE) -> 406 | K14: =VLOOKUP("H"&$T$4,'Data DCE2'!$A$1:$S$433,7,FALSE) -> 24.93857494 | L14: -2.706306306 | N14: =VLOOKUP("H"&$T$4,'Data DCE2'!$A$1:$S$433,8,FALSE) -> 349 | O14: =VLOOKUP("H"&$T$4,'Data DCE2'!$A$1:$S$433,9,FALSE) -> 23.90410959 | P14: -6.742100457 | R14: =VLOOKUP("H"&$T$4,'Data DCE2'!$A$1:$S$433,10,FALSE) -> 344 | S14: =VLOOKUP("H"&$T$4,'Data DCE2'!$A$1:$S$433,11,FALSE) -> 22.88755822 | T14: -10.70800621 | V14: =VLOOKUP("H"&$T$4,'Data DCE2'!$A$1:$S$433,12,FALSE) -> 404 | W14: =VLOOKUP("H"&$T$4,'Data DCE2'!$A$1:$S$433,13,FALSE) -> 24.8004911 | X14: -3.245017393 | Z14: =VLOOKUP("H"&$T$4,'Data DCE2'!$A$1:$S$433,14,FALSE) -> 354 | AA14: =VLOOKUP("H"&$T$4,'Data DCE2'!$A$1:$S$433,15,FALSE) -> 23.7106497 | AB14: -7.496851976 | AD14: =VLOOKUP("H"&$T$4,'Data DCE2'!$A$1:$S$433,16,FALSE) -> 384 | AE14: =VLOOKUP("H"&$T$4,'Data DCE2'!$A$1:$S$433,17,FALSE) -> 24.98373455 | AF14: -2.530123617 | AH14: =VLOOKUP("H"&$T$4,'Data DCE2'!$A$1:$S$433,18,FALSE) -> 433 | AI14: =VLOOKUP("H"&$T$4,'Data DCE2'!$A$1:$S$433,19,FALSE) -> 27.73862908 | AJ14: 8.217638266
A15: NHS Orkney | C15: =VLOOKUP("R"&$T$4,'Data DCE2'!$A$1:$S$433,2,FALSE) -> 13 | D15: =VLOOKUP("R"&$T$4,'Data DCE2'!$A$1:$S$433,3,FALSE) -> 19.6969697 | F15: =VLOOKUP("R"&$T$4,'Data DCE2'!$A$1:$S$433,4,FALSE) -> 26 | G15: =VLOOKUP("R"&$T$4,'Data DCE2'!$A$1:$S$433,5,FALSE) -> 28.26086957 | H15: 43.47826087 | J15: =VLOOKUP("R"&$T$4,'Data DCE2'!$A$1:$S$433,6,FALSE) -> 23 | K15: =VLOOKUP("R"&$T$4,'Data DCE2'!$A$1:$S$433,7,FALSE) -> 27.38095238 | L15: 39.01098901 | N15: =VLOOKUP("R"&$T$4,'Data DCE2'!$A$1:$S$433,8,FALSE) -> 12 | O15: =VLOOKUP("R"&$T$4,'Data DCE2'!$A$1:$S$433,9,FALSE) -> 20.33898305 | P15: 3.259452412 | R15: =VLOOKUP("R"&$T$4,'Data DCE2'!$A$1:$S$433,10,FALSE) -> 25 | S15: =VLOOKUP("R"&$T$4,'Data DCE2'!$A$1:$S$433,11,FALSE) -> 27.17391304 | T15: 37.95986622 | V15: =VLOOKUP("R"&$T$4,'Data DCE2'!$A$1:$S$433,12,FALSE) -> 22 | W15: =VLOOKUP("R"&$T$4,'Data DCE2'!$A$1:$S$433,13,FALSE) -> 22.44897959 | X15: 13.97174254 | Z15: =VLOOKUP("R"&$T$4,'Data DCE2'!$A$1:$S$433,14,FALSE) -> 9 | AA15: =VLOOKUP("R"&$T$4,'Data DCE2'!$A$1:$S$433,15,FALSE) -> 14.0625 | AB15: -28.60576923 | AD15: =VLOOKUP("R"&$T$4,'Data DCE2'!$A$1:$S$433,16,FALSE) -> 26 | AE15: =VLOOKUP("R"&$T$4,'Data DCE2'!$A$1:$S$433,17,FALSE) -> 28.88888889 | AF15: 46.66666667 | AH15: =VLOOKUP("R"&$T$4,'Data DCE2'!$A$1:$S$433,18,FALSE) -> 28 | AI15: =VLOOKUP("R"&$T$4,'Data DCE2'!$A$1:$S$433,19,FALSE) -> 27.18446602 | AJ15: 38.01344287
A16: NHS Shetland | C16: =VLOOKUP("Z"&$T$4,'Data DCE2'!$A$1:$S$433,2,FALSE) -> 22 | D16: =VLOOKUP("Z"&$T$4,'Data DCE2'!$A$1:$S$433,3,FALSE) -> 19.29824561 | F16: =VLOOKUP("Z"&$T$4,'Data DCE2'!$A$1:$S$433,4,FALSE) -> 17 | G16: =VLOOKUP("Z"&$T$4,'Data DCE2'!$A$1:$S$433,5,FALSE) -> 15.59633028 | H16: -19.18265221 | J16: =VLOOKUP("Z"&$T$4,'Data DCE2'!$A$1:$S$433,6,FALSE) -> 21 | K16: =VLOOKUP("Z"&$T$4,'Data DCE2'!$A$1:$S$433,7,FALSE) -> 17.21311475 | L16: -10.804769 | N16: =VLOOKUP("Z"&$T$4,'Data DCE2'!$A$1:$S$433,8,FALSE) -> 23 | O16: =VLOOKUP("Z"&$T$4,'Data DCE2'!$A$1:$S$433,9,FALSE) -> 19.16666667 | P16: -0.6818181818 | R16: =VLOOKUP("Z"&$T$4,'Data DCE2'!$A$1:$S$433,10,FALSE) -> 15 | S16: =VLOOKUP("Z"&$T$4,'Data DCE2'!$A$1:$S$433,11,FALSE) -> 16.85393258 | T16: -12.6659857 | V16: =VLOOKUP("Z"&$T$4,'Data DCE2'!$A$1:$S$433,12,FALSE) -> 32 | W16: =VLOOKUP("Z"&$T$4,'Data DCE2'!$A$1:$S$433,13,FALSE) -> 27.35042735 | X16: 41.72494172 | Z16: =VLOOKUP("Z"&$T$4,'Data DCE2'!$A$1:$S$433,14,FALSE) -> 33 | AA16: =VLOOKUP("Z"&$T$4,'Data DCE2'!$A$1:$S$433,15,FALSE) -> 28.94736842 | AB16: 50 | AD16: =VLOOKUP("Z"&$T$4,'Data DCE2'!$A$1:$S$433,16,FALSE) -> 13 | AE16: =VLOOKUP("Z"&$T$4,'Data DCE2'!$A$1:$S$433,17,FALSE) -> 16.66666667 | AF16: -13.63636364 | AH16: =VLOOKUP("Z"&$T$4,'Data DCE2'!$A$1:$S$433,18,FALSE) -> 19 | AI16: =VLOOKUP("Z"&$T$4,'Data DCE2'!$A$1:$S$433,19,FALSE) -> 21.11111111 | AJ16: 9.393939394
A17: NHS Tayside | C17: =VLOOKUP("T"&$T$4,'Data DCE2'!$A$1:$S$433,2,FALSE) -> 404 | D17: =VLOOKUP("T"&$T$4,'Data DCE2'!$A$1:$S$433,3,FALSE) -> 21.28556375 | F17: =VLOOKUP("T"&$T$4,'Data DCE2'!$A$1:$S$433,4,FALSE) -> 410 | G17: =VLOOKUP("T"&$T$4,'Data DCE2'!$A$1:$S$433,5,FALSE) -> 22.33115468 | H17: 4.912206907 | J17: =VLOOKUP("T"&$T$4,'Data DCE2'!$A$1:$S$433,6,FALSE) -> 404 | K17: =VLOOKUP("T"&$T$4,'Data DCE2'!$A$1:$S$433,7,FALSE) -> 21.89701897 | L17: 2.872628726 | N17: =VLOOKUP("T"&$T$4,'Data DCE2'!$A$1:$S$433,8,FALSE) -> 465 | O17: =VLOOKUP("T"&$T$4,'Data DCE2'!$A$1:$S$433,9,FALSE) -> 23.89516958 | P17: 12.25997985 | R17: =VLOOKUP("T"&$T$4,'Data DCE2'!$A$1:$S$433,10,FALSE) -> 456 | S17: =VLOOKUP("T"&$T$4,'Data DCE2'!$A$1:$S$433,11,FALSE) -> 23.28907048 | T17: 9.412514285 | V17: =VLOOKUP("T"&$T$4,'Data DCE2'!$A$1:$S$433,12,FALSE) -> 469 | W17: =VLOOKUP("T"&$T$4,'Data DCE2'!$A$1:$S$433,13,FALSE) -> 23.61530715 | X17: 10.94518062 | Z17: =VLOOKUP("T"&$T$4,'Data DCE2'!$A$1:$S$433,14,FALSE) -> 499 | AA17: =VLOOKUP("T"&$T$4,'Data DCE2'!$A$1:$S$433,15,FALSE) -> 25.2020202 | AB17: 18.39958996 | AD17: =VLOOKUP("T"&$T$4,'Data DCE2'!$A$1:$S$433,16,FALSE) -> 497 | AE17: =VLOOKUP("T"&$T$4,'Data DCE2'!$A$1:$S$433,17,FALSE) -> 25.83160083 | AF17: 21.35737222 | AH17: =VLOOKUP("T"&$T$4,'Data DCE2'!$A$1:$S$433,18,FALSE) -> 475 | AI17: =VLOOKUP("T"&$T$4,'Data DCE2'!$A$1:$S$433,19,FALSE) -> 25.10570825 | AJ17: 17.94711448
A18: NHS Western Isles | C18: =VLOOKUP("W"&$T$4,'Data DCE2'!$A$1:$S$433,2,FALSE) -> 46 | D18: =VLOOKUP("W"&$T$4,'Data DCE2'!$A$1:$S$433,3,FALSE) -> 28.93081761 | F18: =VLOOKUP("W"&$T$4,'Data DCE2'!$A$1:$S$433,4,FALSE) -> 51 | G18: =VLOOKUP("W"&$T$4,'Data DCE2'!$A$1:$S$433,5,FALSE) -> 33.77483444 | H18: 16.74344947 | J18: =VLOOKUP("W"&$T$4,'Data DCE2'!$A$1:$S$433,6,FALSE) -> 32 | K18: =VLOOKUP("W"&$T$4,'Data DCE2'!$A$1:$S$433,7,FALSE) -> 24.42748092 | L18: -15.56588118 | N18: =VLOOKUP("W"&$T$4,'Data DCE2'!$A$1:$S$433,8,FALSE) -> 41 | O18: =VLOOKUP("W"&$T$4,'Data DCE2'!$A$1:$S$433,9,FALSE) -> 28.27586207 | P18: -2.263868066 | R18: =VLOOKUP("W"&$T$4,'Data DCE2'!$A$1:$S$433,10,FALSE) -> 35 | S18: =VLOOKUP("W"&$T$4,'Data DCE2'!$A$1:$S$433,11,FALSE) -> 25 | T18: -13.58695652 | V18: =VLOOKUP("W"&$T$4,'Data DCE2'!$A$1:$S$433,12,FALSE) -> 18 | W18: =VLOOKUP("W"&$T$4,'Data DCE2'!$A$1:$S$433,13,FALSE) -> 15.38461538 | X18: -46.82274247 | Z18: =VLOOKUP("W"&$T$4,'Data DCE2'!$A$1:$S$433,14,FALSE) -> 29 | AA18: =VLOOKUP("W"&$T$4,'Data DCE2'!$A$1:$S$433,15,FALSE) -> 21.16788321 | AB18: -26.83275151 | AD18: =VLOOKUP("W"&$T$4,'Data DCE2'!$A$1:$S$433,16,FALSE) -> 32 | AE18: =VLOOKUP("W"&$T$4,'Data DCE2'!$A$1:$S$433,17,FALSE) -> 22.53521127 | AF18: -22.10655236 | AH18: =VLOOKUP("W"&$T$4,'Data DCE2'!$A$1:$S$433,18,FALSE) -> 28 | AI18: =VLOOKUP("W"&$T$4,'Data DCE2'!$A$1:$S$433,19,FALSE) -> 20.89552239 | AJ18: -27.77417262
A20: SCAN | C20: =VLOOKUP("D"&$T$4,'Data DCE2'!$A$1:$S$433,2,FALSE) -> 1557 | D20: =VLOOKUP("D"&$T$4,'Data DCE2'!$A$1:$S$433,3,FALSE) -> 23.59090909 | F20: =VLOOKUP("D"&$T$4,'Data DCE2'!$A$1:$S$433,4,FALSE) -> 1670 | G20: =VLOOKUP("D"&$T$4,'Data DCE2'!$A$1:$S$433,5,FALSE) -> 24.66400827 | H20: =(G20-$D20)/$D20*100 -> 4.54878265 | J20: =VLOOKUP("D"&$T$4,'Data DCE2'!$A$1:$S$433,6,FALSE) -> 1675 | K20: =VLOOKUP("D"&$T$4,'Data DCE2'!$A$1:$S$433,7,FALSE) -> 25.12751275 | L20: =(K20-$D20)/$D20*100 -> 6.513541528 | N20: =VLOOKUP("D"&$T$4,'Data DCE2'!$A$1:$S$433,8,FALSE) -> 1775 | O20: =VLOOKUP("D"&$T$4,'Data DCE2'!$A$1:$S$433,9,FALSE) -> 26.37836231 | P20: =(O20-$D20)/$D20*100 -> 11.815794 | R20: =VLOOKUP("D"&$T$4,'Data DCE2'!$A$1:$S$433,10,FALSE) -> 1831 | S20: =VLOOKUP("D"&$T$4,'Data DCE2'!$A$1:$S$433,11,FALSE) -> 27.29169772 | T20: =(S20-$D20)/$D20*100 -> 15.68735064 | V20: =VLOOKUP("D"&$T$4,'Data DCE2'!$A$1:$S$433,12,FALSE) -> 1727 | W20: =VLOOKUP("D"&$T$4,'Data DCE2'!$A$1:$S$433,13,FALSE) -> 26.75030979 | X20: =(W20-$D20)/$D20*100 -> 13.39244997 | Z20: =VLOOKUP("D"&$T$4,'Data DCE2'!$A$1:$S$433,14,FALSE) -> 1711 | AA20: =VLOOKUP("D"&$T$4,'Data DCE2'!$A$1:$S$433,15,FALSE) -> 26.20615715 | AB20: =(AA20-$D20)/$D20*100 -> 11.0858299 | AD20: =VLOOKUP("D"&$T$4,'Data DCE2'!$A$1:$S$433,16,FALSE) -> 1832 | AE20: =VLOOKUP("D"&$T$4,'Data DCE2'!$A$1:$S$433,17,FALSE) -> 26.75624361 | AF20: =(AE20-$D20)/$D20*100 -> 13.41760297 | AH20: =VLOOKUP("D"&$T$4,'Data DCE2'!$A$1:$S$433,18,FALSE) -> 1872 | AI20: =VLOOKUP("D"&$T$4,'Data DCE2'!$A$1:$S$433,19,FALSE) -> 26.66286854 | AJ20: =(AI20-$D20)/$D20*100 -> 13.02179341
A21: NHS Borders | C21: =VLOOKUP("B"&$T$4,'Data DCE2'!$A$1:$S$433,2,FALSE) -> 157 | D21: =VLOOKUP("B"&$T$4,'Data DCE2'!$A$1:$S$433,3,FALSE) -> 26.16666667 | F21: =VLOOKUP("B"&$T$4,'Data DCE2'!$A$1:$S$433,4,FALSE) -> 130 | G21: =VLOOKUP("B"&$T$4,'Data DCE2'!$A$1:$S$433,5,FALSE) -> 23.67941712 | H21: =(G21-$D21)/$D21*100 -> -9.505412272 | J21: =VLOOKUP("B"&$T$4,'Data DCE2'!$A$1:$S$433,6,FALSE) -> 103 | K21: =VLOOKUP("B"&$T$4,'Data DCE2'!$A$1:$S$433,7,FALSE) -> 20.51792829 | L21: =(K21-$D21)/$D21*100 -> -21.58753521 | N21: =VLOOKUP("B"&$T$4,'Data DCE2'!$A$1:$S$433,8,FALSE) -> 164 | O21: =VLOOKUP("B"&$T$4,'Data DCE2'!$A$1:$S$433,9,FALSE) -> 28.57142857 | P21: =(O21-$D21)/$D21*100 -> 9.190172884 | R21: =VLOOKUP("B"&$T$4,'Data DCE2'!$A$1:$S$433,10,FALSE) -> 139 | S21: =VLOOKUP("B"&$T$4,'Data DCE2'!$A$1:$S$433,11,FALSE) -> 26.17702448 | T21: =(S21-$D21)/$D21*100 -> 0.03958400806 | V21: =VLOOKUP("B"&$T$4,'Data DCE2'!$A$1:$S$433,12,FALSE) -> 115 | W21: =VLOOKUP("B"&$T$4,'Data DCE2'!$A$1:$S$433,13,FALSE) -> 22.86282306 | X21: =(W21-$D21)/$D21*100 -> -12.6261539 | Z21: =VLOOKUP("B"&$T$4,'Data DCE2'!$A$1:$S$433,14,FALSE) -> 147 | AA21: =VLOOKUP("B"&$T$4,'Data DCE2'!$A$1:$S$433,15,FALSE) -> 24.25742574 | AB21: =(AA21-$D21)/$D21*100 -> -7.29646213 | AD21: =VLOOKUP("B"&$T$4,'Data DCE2'!$A$1:$S$433,16,FALSE) -> 141 | AE21: =VLOOKUP("B"&$T$4,'Data DCE2'!$A$1:$S$433,17,FALSE) -> 22.38095238 | AF21: =(AE21-$D21)/$D21*100 -> -14.46769791 | AH21: =VLOOKUP("B"&$T$4,'Data DCE2'!$A$1:$S$433,18,FALSE) -> 127 | AI21: =VLOOKUP("B"&$T$4,'Data DCE2'!$A$1:$S$433,19,FALSE) -> 23.04900181 | AJ21: =(AI21-$D21)/$D21*100 -> -11.91464275
A22: NHS Dumfries & Galloway | C22: =VLOOKUP("Y"&$T$4,'Data DCE2'!$A$1:$S$433,2,FALSE) -> 209 | D22: =VLOOKUP("Y"&$T$4,'Data DCE2'!$A$1:$S$433,3,FALSE) -> 26.65816327 | F22: =VLOOKUP("Y"&$T$4,'Data DCE2'!$A$1:$S$433,4,FALSE) -> 191 | G22: =VLOOKUP("Y"&$T$4,'Data DCE2'!$A$1:$S$433,5,FALSE) -> 24.58172458 | H22: =(G22-$D22)/$D22*100 -> -7.789128842 | J22: =VLOOKUP("Y"&$T$4,'Data DCE2'!$A$1:$S$433,6,FALSE) -> 160 | K22: =VLOOKUP("Y"&$T$4,'Data DCE2'!$A$1:$S$433,7,FALSE) -> 22.40896359 | L22: =(K22-$D22)/$D22*100 -> -15.93958157 | N22: =VLOOKUP("Y"&$T$4,'Data DCE2'!$A$1:$S$433,8,FALSE) -> 184 | O22: =VLOOKUP("Y"&$T$4,'Data DCE2'!$A$1:$S$433,9,FALSE) -> 26.06232295 | P22: =(O22-$D22)/$D22*100 -> -2.235113924 | R22: =VLOOKUP("Y"&$T$4,'Data DCE2'!$A$1:$S$433,10,FALSE) -> 192 | S22: =VLOOKUP("Y"&$T$4,'Data DCE2'!$A$1:$S$433,11,FALSE) -> 26.08695652 | T22: =(S22-$D22)/$D22*100 -> -2.14270855 | V22: =VLOOKUP("Y"&$T$4,'Data DCE2'!$A$1:$S$433,12,FALSE) -> 154 | W22: =VLOOKUP("Y"&$T$4,'Data DCE2'!$A$1:$S$433,13,FALSE) -> 22.41630277 | X22: =(W22-$D22)/$D22*100 -> -15.91205087 | Z22: =VLOOKUP("Y"&$T$4,'Data DCE2'!$A$1:$S$433,14,FALSE) -> 185 | AA22: =VLOOKUP("Y"&$T$4,'Data DCE2'!$A$1:$S$433,15,FALSE) -> 26.9286754 | AB22: =(AA22-$D22)/$D22*100 -> 1.014744085 | AD22: =VLOOKUP("Y"&$T$4,'Data DCE2'!$A$1:$S$433,16,FALSE) -> 208 | AE22: =VLOOKUP("Y"&$T$4,'Data DCE2'!$A$1:$S$433,17,FALSE) -> 30.99850969 | AF22: =(AE22-$D22)/$D22*100 -> 16.28149088 | AH22: =VLOOKUP("Y"&$T$4,'Data DCE2'!$A$1:$S$433,18,FALSE) -> 203 | AI22: =VLOOKUP("Y"&$T$4,'Data DCE2'!$A$1:$S$433,19,FALSE) -> 30.43478261 | AJ22: =(AI22-$D22)/$D22*100 -> 14.16684002
A23: NHS Fife | C23: =VLOOKUP("F"&$T$4,'Data DCE2'!$A$1:$S$433,2,FALSE) -> 386 | D23: =VLOOKUP("F"&$T$4,'Data DCE2'!$A$1:$S$433,3,FALSE) -> 23.22503008 | F23: =VLOOKUP("F"&$T$4,'Data DCE2'!$A$1:$S$433,4,FALSE) -> 420 | G23: =VLOOKUP("F"&$T$4,'Data DCE2'!$A$1:$S$433,5,FALSE) -> 24.36194896 | H23: =(G23-$D23)/$D23*100 -> 4.895230997 | J23: =VLOOKUP("F"&$T$4,'Data DCE2'!$A$1:$S$433,6,FALSE) -> 451 | K23: =VLOOKUP("F"&$T$4,'Data DCE2'!$A$1:$S$433,7,FALSE) -> 26.02423543 | L23: =(K23-$D23)/$D23*100 -> 12.05253701 | N23: =VLOOKUP("F"&$T$4,'Data DCE2'!$A$1:$S$433,8,FALSE) -> 456 | O23: =VLOOKUP("F"&$T$4,'Data DCE2'!$A$1:$S$433,9,FALSE) -> 26.11683849 | P23: =(O23-$D23)/$D23*100 -> 12.45125795 | R23: =VLOOKUP("F"&$T$4,'Data DCE2'!$A$1:$S$433,10,FALSE) -> 498 | S23: =VLOOKUP("F"&$T$4,'Data DCE2'!$A$1:$S$433,11,FALSE) -> 28.48970252 | T23: =(S23-$D23)/$D23*100 -> 22.66809737 | V23: =VLOOKUP("F"&$T$4,'Data DCE2'!$A$1:$S$433,12,FALSE) -> 514 | W23: =VLOOKUP("F"&$T$4,'Data DCE2'!$A$1:$S$433,13,FALSE) -> 29.48938612 | X23: =(W23-$D23)/$D23*100 -> 26.97243452 | Z23: =VLOOKUP("F"&$T$4,'Data DCE2'!$A$1:$S$433,14,FALSE) -> 437 | AA23: =VLOOKUP("F"&$T$4,'Data DCE2'!$A$1:$S$433,15,FALSE) -> 24.98570612 | AB23: =(AA23-$D23)/$D23*100 -> 7.580941885 | AD23: =VLOOKUP("F"&$T$4,'Data DCE2'!$A$1:$S$433,16,FALSE) -> 461 | AE23: =VLOOKUP("F"&$T$4,'Data DCE2'!$A$1:$S$433,17,FALSE) -> 25.08161045 | AF23: =(AE23-$D23)/$D23*100 -> 7.993877102 | AH23: =VLOOKUP("F"&$T$4,'Data DCE2'!$A$1:$S$433,18,FALSE) -> 514 | AI23: =VLOOKUP("F"&$T$4,'Data DCE2'!$A$1:$S$433,19,FALSE) -> 26.07813293 | AJ23: =(AI23-$D23)/$D23*100 -> 12.28460343
A24: NHS Lothian | C24: =VLOOKUP("S"&$T$4,'Data DCE2'!$A$1:$S$433,2,FALSE) -> 805 | D24: =VLOOKUP("S"&$T$4,'Data DCE2'!$A$1:$S$433,3,FALSE) -> 22.65053461 | F24: =VLOOKUP("S"&$T$4,'Data DCE2'!$A$1:$S$433,4,FALSE) -> 929 | G24: =VLOOKUP("S"&$T$4,'Data DCE2'!$A$1:$S$433,5,FALSE) -> 24.96640688 | H24: =(G24-$D24)/$D24*100 -> 10.22436031 | J24: =VLOOKUP("S"&$T$4,'Data DCE2'!$A$1:$S$433,6,FALSE) -> 961 | K24: =VLOOKUP("S"&$T$4,'Data DCE2'!$A$1:$S$433,7,FALSE) -> 25.85418348 | L24: =(K24-$D24)/$D24*100 -> 14.1438113 | N24: =VLOOKUP("S"&$T$4,'Data DCE2'!$A$1:$S$433,8,FALSE) -> 971 | O24: =VLOOKUP("S"&$T$4,'Data DCE2'!$A$1:$S$433,9,FALSE) -> 26.22198218 | P24: =(O24-$D24)/$D24*100 -> 15.76760827 | R24: =VLOOKUP("S"&$T$4,'Data DCE2'!$A$1:$S$433,10,FALSE) -> 1002 | S24: =VLOOKUP("S"&$T$4,'Data DCE2'!$A$1:$S$433,11,FALSE) -> 27.12506768 | T24: =(S24-$D24)/$D24*100 -> 19.75464662 | V24: =VLOOKUP("S"&$T$4,'Data DCE2'!$A$1:$S$433,12,FALSE) -> 944 | W24: =VLOOKUP("S"&$T$4,'Data DCE2'!$A$1:$S$433,13,FALSE) -> 26.79534488 | X24: =(W24-$D24)/$D24*100 -> 18.29895117 | Z24: =VLOOKUP("S"&$T$4,'Data DCE2'!$A$1:$S$433,14,FALSE) -> 942 | AA24: =VLOOKUP("S"&$T$4,'Data DCE2'!$A$1:$S$433,15,FALSE) -> 27.01462575 | AB24: =(AA24-$D24)/$D24*100 -> 19.26705581 | AD24: =VLOOKUP("S"&$T$4,'Data DCE2'!$A$1:$S$433,16,FALSE) -> 1022 | AE24: =VLOOKUP("S"&$T$4,'Data DCE2'!$A$1:$S$433,17,FALSE) -> 27.56202805 | AF24: =(AE24-$D24)/$D24*100 -> 21.68378594 | AH24: =VLOOKUP("S"&$T$4,'Data DCE2'!$A$1:$S$433,18,FALSE) -> 1028 | AI24: =VLOOKUP("S"&$T$4,'Data DCE2'!$A$1:$S$433,19,FALSE) -> 26.82672234 | AJ24: =(AI24-$D24)/$D24*100 -> 18.43747974
A26: WOSCAN | C26: =VLOOKUP("E"&$T$4,'Data DCE2'!$A$1:$S$433,2,FALSE) -> 2696 | D26: =VLOOKUP("E"&$T$4,'Data DCE2'!$A$1:$S$433,3,FALSE) -> 23.51299494 | F26: =VLOOKUP("E"&$T$4,'Data DCE2'!$A$1:$S$433,4,FALSE) -> 2932 | G26: =VLOOKUP("E"&$T$4,'Data DCE2'!$A$1:$S$433,5,FALSE) -> 24.53145917 | H26: =(G26-$D26)/$D26*100 -> 4.33149512 | J26: =VLOOKUP("E"&$T$4,'Data DCE2'!$A$1:$S$433,6,FALSE) -> 3000 | K26: =VLOOKUP("E"&$T$4,'Data DCE2'!$A$1:$S$433,7,FALSE) -> 24.80363787 | L26: =(K26-$D26)/$D26*100 -> 5.489062234 | N26: =VLOOKUP("E"&$T$4,'Data DCE2'!$A$1:$S$433,8,FALSE) -> 3030 | O26: =VLOOKUP("E"&$T$4,'Data DCE2'!$A$1:$S$433,9,FALSE) -> 24.9116172 | P26: =(O26-$D26)/$D26*100 -> 5.948294812 | R26: =VLOOKUP("E"&$T$4,'Data DCE2'!$A$1:$S$433,10,FALSE) -> 3052 | S26: =VLOOKUP("E"&$T$4,'Data DCE2'!$A$1:$S$433,11,FALSE) -> 25.31519575 | T26: =(S26-$D26)/$D26*100 -> 7.664701226 | V26: =VLOOKUP("E"&$T$4,'Data DCE2'!$A$1:$S$433,12,FALSE) -> 3002 | W26: =VLOOKUP("E"&$T$4,'Data DCE2'!$A$1:$S$433,13,FALSE) -> 25.70205479 | X26: =(W26-$D26)/$D26*100 -> 9.310000102 | Z26: =VLOOKUP("E"&$T$4,'Data DCE2'!$A$1:$S$433,14,FALSE) -> 2984 | AA26: =VLOOKUP("E"&$T$4,'Data DCE2'!$A$1:$S$433,15,FALSE) -> 25.57422009 | AB26: =(AA26-$D26)/$D26*100 -> 8.766323272 | AD26: =VLOOKUP("E"&$T$4,'Data DCE2'!$A$1:$S$433,16,FALSE) -> 3000 | AE26: =VLOOKUP("E"&$T$4,'Data DCE2'!$A$1:$S$433,17,FALSE) -> 25.5123735 | AF26: =(AE26-$D26)/$D26*100 -> 8.503291752 | AH26: =VLOOKUP("E"&$T$4,'Data DCE2'!$A$1:$S$433,18,FALSE) -> 3067 | AI26: =VLOOKUP("E"&$T$4,'Data DCE2'!$A$1:$S$433,19,FALSE) -> 25.44805841 | AJ26: =(AI26-$D26)/$D26*100 -> 8.229761784
A27: NHS Ayrshire & Arran | C27: =VLOOKUP("A"&$T$4,'Data DCE2'!$A$1:$S$433,2,FALSE) -> 448 | D27: =VLOOKUP("A"&$T$4,'Data DCE2'!$A$1:$S$433,3,FALSE) -> 24.49425916 | F27: =VLOOKUP("A"&$T$4,'Data DCE2'!$A$1:$S$433,4,FALSE) -> 470 | G27: =VLOOKUP("A"&$T$4,'Data DCE2'!$A$1:$S$433,5,FALSE) -> 25.3096392 | H27: =(G27-$D27)/$D27*100 -> 3.328861836 | J27: =VLOOKUP("A"&$T$4,'Data DCE2'!$A$1:$S$433,6,FALSE) -> 480 | K27: =VLOOKUP("A"&$T$4,'Data DCE2'!$A$1:$S$433,7,FALSE) -> 24.79338843 | L27: =(K27-$D27)/$D27*100 -> 1.22122196 | N27: =VLOOKUP("A"&$T$4,'Data DCE2'!$A$1:$S$433,8,FALSE) -> 490 | O27: =VLOOKUP("A"&$T$4,'Data DCE2'!$A$1:$S$433,9,FALSE) -> 24.72250252 | P27: =(O27-$D27)/$D27*100 -> 0.9318239152 | R27: =VLOOKUP("A"&$T$4,'Data DCE2'!$A$1:$S$433,10,FALSE) -> 484 | S27: =VLOOKUP("A"&$T$4,'Data DCE2'!$A$1:$S$433,11,FALSE) -> 24.85875706 | T27: =(S27-$D27)/$D27*100 -> 1.488095238 | V27: =VLOOKUP("A"&$T$4,'Data DCE2'!$A$1:$S$433,12,FALSE) -> 496 | W27: =VLOOKUP("A"&$T$4,'Data DCE2'!$A$1:$S$433,13,FALSE) -> 26.11901001 | X27: =(W27-$D27)/$D27*100 -> 6.633190401 | Z27: =VLOOKUP("A"&$T$4,'Data DCE2'!$A$1:$S$433,14,FALSE) -> 520 | AA27: =VLOOKUP("A"&$T$4,'Data DCE2'!$A$1:$S$433,15,FALSE) -> 26.8179474 | AB27: =(AA27-$D27)/$D27*100 -> 9.486664702 | AD27: =VLOOKUP("A"&$T$4,'Data DCE2'!$A$1:$S$433,16,FALSE) -> 474 | AE27: =VLOOKUP("A"&$T$4,'Data DCE2'!$A$1:$S$433,17,FALSE) -> 24.70036477 | AF27: =(AE27-$D27)/$D27*100 -> 0.8414445768 | AH27: =VLOOKUP("A"&$T$4,'Data DCE2'!$A$1:$S$433,18,FALSE) -> 371 | AI27: =VLOOKUP("A"&$T$4,'Data DCE2'!$A$1:$S$433,19,FALSE) -> 20.74944072 | AJ27: =(AI27-$D27)/$D27*100 -> -15.28855565
A28: NHS Forth Valley | C28: =VLOOKUP("V"&$T$4,'Data DCE2'!$A$1:$S$433,2,FALSE) -> 336 | D28: =VLOOKUP("V"&$T$4,'Data DCE2'!$A$1:$S$433,3,FALSE) -> 26.43587726 | F28: =VLOOKUP("V"&$T$4,'Data DCE2'!$A$1:$S$433,4,FALSE) -> 305 | G28: =VLOOKUP("V"&$T$4,'Data DCE2'!$A$1:$S$433,5,FALSE) -> 23.94034537 | H28: =(G28-$D28)/$D28*100 -> -9.43994356 | J28: =VLOOKUP("V"&$T$4,'Data DCE2'!$A$1:$S$433,6,FALSE) -> 336 | K28: =VLOOKUP("V"&$T$4,'Data DCE2'!$A$1:$S$433,7,FALSE) -> 25.30120482 | L28: =(K28-$D28)/$D28*100 -> -4.292168675 | N28: =VLOOKUP("V"&$T$4,'Data DCE2'!$A$1:$S$433,8,FALSE) -> 374 | O28: =VLOOKUP("V"&$T$4,'Data DCE2'!$A$1:$S$433,9,FALSE) -> 27.43947175 | P28: =(O28-$D28)/$D28*100 -> 3.796335115 | R28: =VLOOKUP("V"&$T$4,'Data DCE2'!$A$1:$S$433,10,FALSE) -> 332 | S28: =VLOOKUP("V"&$T$4,'Data DCE2'!$A$1:$S$433,11,FALSE) -> 26.03921569 | T28: =(S28-$D28)/$D28*100 -> -1.500466853 | V28: =VLOOKUP("V"&$T$4,'Data DCE2'!$A$1:$S$433,12,FALSE) -> 319 | W28: =VLOOKUP("V"&$T$4,'Data DCE2'!$A$1:$S$433,13,FALSE) -> 26.21199671 | X28: =(W28-$D28)/$D28*100 -> -0.8468814806 | Z28: =VLOOKUP("V"&$T$4,'Data DCE2'!$A$1:$S$433,14,FALSE) -> 379 | AA28: =VLOOKUP("V"&$T$4,'Data DCE2'!$A$1:$S$433,15,FALSE) -> 29.15384615 | AB28: =(AA28-$D28)/$D28*100 -> 10.28136447 | AD28: =VLOOKUP("V"&$T$4,'Data DCE2'!$A$1:$S$433,16,FALSE) -> 371 | AE28: =VLOOKUP("V"&$T$4,'Data DCE2'!$A$1:$S$433,17,FALSE) -> 27.60416667 | AF28: =(AE28-$D28)/$D28*100 -> 4.419332837 | AH28: =VLOOKUP("V"&$T$4,'Data DCE2'!$A$1:$S$433,18,FALSE) -> 338 | AI28: =VLOOKUP("V"&$T$4,'Data DCE2'!$A$1:$S$433,19,FALSE) -> 23.75263528 | AJ28: =(AI28-$D28)/$D28*100 -> -10.15000167
A29: NHS Greater Glasgow & Clyde | C29: =VLOOKUP("G"&$T$4,'Data DCE2'!$A$1:$S$433,2,FALSE) -> 1298 | D29: =VLOOKUP("G"&$T$4,'Data DCE2'!$A$1:$S$433,3,FALSE) -> 22.3986195 | F29: =VLOOKUP("G"&$T$4,'Data DCE2'!$A$1:$S$433,4,FALSE) -> 1462 | G29: =VLOOKUP("G"&$T$4,'Data DCE2'!$A$1:$S$433,5,FALSE) -> 23.78782948 | H29: =(G29-$D29)/$D29*100 -> 6.202212521 | J29: =VLOOKUP("G"&$T$4,'Data DCE2'!$A$1:$S$433,6,FALSE) -> 1538 | K29: =VLOOKUP("G"&$T$4,'Data DCE2'!$A$1:$S$433,7,FALSE) -> 24.93514916 | L29: =(K29-$D29)/$D29*100 -> 11.32449104 | N29: =VLOOKUP("G"&$T$4,'Data DCE2'!$A$1:$S$433,8,FALSE) -> 1460 | O29: =VLOOKUP("G"&$T$4,'Data DCE2'!$A$1:$S$433,9,FALSE) -> 24.47611065 | P29: =(O29-$D29)/$D29*100 -> 9.275085663 | R29: =VLOOKUP("G"&$T$4,'Data DCE2'!$A$1:$S$433,10,FALSE) -> 1465 | S29: =VLOOKUP("G"&$T$4,'Data DCE2'!$A$1:$S$433,11,FALSE) -> 25.10281014 | T29: =(S29-$D29)/$D29*100 -> 12.07302372 | V29: =VLOOKUP("G"&$T$4,'Data DCE2'!$A$1:$S$433,12,FALSE) -> 1429 | W29: =VLOOKUP("G"&$T$4,'Data DCE2'!$A$1:$S$433,13,FALSE) -> 25.56808016 | X29: =(W29-$D29)/$D29*100 -> 14.15025001 | Z29: =VLOOKUP("G"&$T$4,'Data DCE2'!$A$1:$S$433,14,FALSE) -> 1337 | AA29: =VLOOKUP("G"&$T$4,'Data DCE2'!$A$1:$S$433,15,FALSE) -> 24.64970501 | AB29: =(AA29-$D29)/$D29*100 -> 10.05010829 | AD29: =VLOOKUP("G"&$T$4,'Data DCE2'!$A$1:$S$433,16,FALSE) -> 1441 | AE29: =VLOOKUP("G"&$T$4,'Data DCE2'!$A$1:$S$433,17,FALSE) -> 25.68169667 | AF29: =(AE29-$D29)/$D29*100 -> 14.65749783 | AH29: =VLOOKUP("G"&$T$4,'Data DCE2'!$A$1:$S$433,18,FALSE) -> 1563 | AI29: =VLOOKUP("G"&$T$4,'Data DCE2'!$A$1:$S$433,19,FALSE) -> 26.75453612 | AJ29: =(AI29-$D29)/$D29*100 -> 19.44725486
A30: NHS Lanarkshire | C30: =VLOOKUP("L"&$T$4,'Data DCE2'!$A$1:$S$433,2,FALSE) -> 614 | D30: =VLOOKUP("L"&$T$4,'Data DCE2'!$A$1:$S$433,3,FALSE) -> 23.88175807 | F30: =VLOOKUP("L"&$T$4,'Data DCE2'!$A$1:$S$433,4,FALSE) -> 695 | G30: =VLOOKUP("L"&$T$4,'Data DCE2'!$A$1:$S$433,5,FALSE) -> 25.98130841 | H30: =(G30-$D30)/$D30*100 -> 8.791439618 | J30: =VLOOKUP("L"&$T$4,'Data DCE2'!$A$1:$S$433,6,FALSE) -> 646 | K30: =VLOOKUP("L"&$T$4,'Data DCE2'!$A$1:$S$433,7,FALSE) -> 24.25835524 | L30: =(K30-$D30)/$D30*100 -> 1.576923971 | N30: =VLOOKUP("L"&$T$4,'Data DCE2'!$A$1:$S$433,8,FALSE) -> 706 | O30: =VLOOKUP("L"&$T$4,'Data DCE2'!$A$1:$S$433,9,FALSE) -> 24.74588153 | P30: =(O30-$D30)/$D30*100 -> 3.618341057 | R30: =VLOOKUP("L"&$T$4,'Data DCE2'!$A$1:$S$433,10,FALSE) -> 771 | S30: =VLOOKUP("L"&$T$4,'Data DCE2'!$A$1:$S$433,11,FALSE) -> 25.71714476 | T30: =(S30-$D30)/$D30*100 -> 7.685308121 | V30: =VLOOKUP("L"&$T$4,'Data DCE2'!$A$1:$S$433,12,FALSE) -> 758 | W30: =VLOOKUP("L"&$T$4,'Data DCE2'!$A$1:$S$433,13,FALSE) -> 25.4789916 | X30: =(W30-$D30)/$D30*100 -> 6.68809022 | Z30: =VLOOKUP("L"&$T$4,'Data DCE2'!$A$1:$S$433,14,FALSE) -> 748 | AA30: =VLOOKUP("L"&$T$4,'Data DCE2'!$A$1:$S$433,15,FALSE) -> 24.89184692 | AB30: =(AA30-$D30)/$D30*100 -> 4.229541427 | AD30: =VLOOKUP("L"&$T$4,'Data DCE2'!$A$1:$S$433,16,FALSE) -> 714 | AE30: =VLOOKUP("L"&$T$4,'Data DCE2'!$A$1:$S$433,17,FALSE) -> 24.74870017 | AF30: =(AE30-$D30)/$D30*100 -> 3.63014356 | AH30: =VLOOKUP("L"&$T$4,'Data DCE2'!$A$1:$S$433,18,FALSE) -> 795 | AI30: =VLOOKUP("L"&$T$4,'Data DCE2'!$A$1:$S$433,19,FALSE) -> 26.50883628 | AJ30: =(AI30-$D30)/$D30*100 -> 11.00035517
A32: * Indicates values that have been suppressed due to the potential risk of disclosure and to help maintain patient confidentiality
A34: Source: PHS Detect Cancer Early data.
A36: Notes:
A37: 1) Data for combined calendar years: Baseline (2010 & 2011); Year 1 (2011 & 2012); Year 2 (2012 & 2013); Year 3 (2013 & 2014); Year 4 (2014 & 2015); Year 5 (2015 & 2016); Year 6 (2016 & 2017); Year 7 (2017 & 2018) & Year 8 (2018 & 2019).
A38: 2) Percentage change (% change) is the relative percentage change. More specifically this is the difference in the stage 1 percentage between the baseline and the particular year, relative to the baseline and expressed as a percentage.

Sheet Fig 3
A1: ="Detect Cancer Early - Year 8 Staging Data" -> Detect Cancer Early - Year 8 Staging Data | R1: back to contents
A3: ="Figure 3: Percentage change in stage 1 at diagnosis from baseline to year 8" & " for ("&(VLOOKUP('Table 2'!T2,Lookups!$A$30:$B$33,2,0))&") by NHS Board of residence." -> Figure 3: Percentage change in stage 1 at diagnosis from baseline to year 8 for (Breast, Colorectal & Lung combined) by NHS Board of residence.
A48: Source: PHS Detect Cancer Early data.
A50: Notes:
A51: 1) Data for combined calendar years: Baseline (2010 and 2011) & Year 8 (2018 and 2019).
A52: 2) Percentage change used is the relative percentage change. More specifically this is the difference in the stage 1 percentage between year 1 and the baseline relative to the baseline expressed as a percentage. The Island NHS Boards percentages will be affected by small numbers.

Sheet data2 (hidden)
A1: Stage 1 | B1: Baseline | C1: 23.32316436 | I1: Stage 1 | J1: Baseline | K1: 0
B2: Year 1 | C2: 24.15992849 | J2: Year 1 | K2: =(C2-C$1)/C$1 -> 0.03587695533
B3: Year 2 | C3: 24.56424152 | J3: Year 2 | K3: =(C3-C$1)/C$1 -> 0.05321221156
B4: Year 3 | C4: 24.95470467 | J4: Year 3 | K4: =(C4-C$1)/C$1 -> 0.069953643
B5: Year 4 | C5: 25.25976641 | J5: Year 4 | K5: 0.08303341778
B6: Year 5 | C6: 25.4447815 | J6: Year 5 | K6: 0.09096609317
B7: Year 6 | C7: 25.26579369 | J7: Year 6 | K7: 0.08329184219
B8: Year 7 | C8: 25.51032733 | J8: Year 7 | K8: =(C8-C$1)/C$1 -> 0.09377642498
B9: Year 8 | C9: 25.61781835 | J9: Year 8 | K9: =(C9-C$1)/C$1 -> 0.09838519151
A10: Stage 2 | B10: Baseline | D10: 25.32074052 | I10: Stage 2 | J10: Baseline | L10: 0
B11: Year 1 | D11: 25.3423266 | J11: Year 1 | L11: =(D11-D$10)/D$10 -> 0.0008525057889
B12: Year 2 | D12: 25.50653132 | J12: Year 2 | L12: 0.007337494644
B13: Year 3 | D13: 25.52643234 | J13: Year 3 | L13: 0.008123451785
B14: Year 4 | D14: 25.94844946 | J14: Year 4 | L14: 0.02479030705
B15: Year 5 | D15: 25.94490448 | J15: Year 5 | L15: 0.02465030436
B16: Year 6 | D16: 25.40536103 | J16: Year 6 | L16: 0.003341944275
B17: Year 7 | D17: 25.61500986 | J17: Year 7 | L17: 0.01162167196
B18: Year 8 | D18: 25.4604124 | J18: Year 8 | L18: =(D18-D$10)/D$10 -> 0.005516105637
A19: Stage 3 | B19: Baseline | E19: 17.89460487 | I19: Stage 3 | J19: Baseline | M19: 0
B20: Year 1 | E20: 17.77254073 | J20: Year 1 | M20: =(E20-E$19)/E$19 -> -0.006821281598
B21: Year 2 | E21: 18.21895094 | J21: Year 2 | M21: =(E21-E$19)/E$19 -> 0.01812535532
B22: Year 3 | E22: 18.38788904 | J22: Year 3 | M22: 0.02756608303
B23: Year 4 | E23: 18.14337495 | J23: Year 4 | M23: 0.01390195976
B24: Year 5 | E24: 17.68877593 | J24: Year 5 | M24: -0.01150229053
B25: Year 6 | E25: 17.88924921 | J25: Year 6 | M25: -0.0002992892542
B26: Year 7 | E26: 17.55445505 | J26: Year 7 | M26: -0.0190085128
B27: Year 8 | E27: 17.23988667 | J27: Year 8 | M27: =(E27-E$19)/E$19 -> -0.03658746363
A28: Stage 4 | B28: Baseline | F28: 25.06999875 | I28: Stage 4 | J28: Baseline | N28: 0
B29: Year 1 | F29: 25.94368372 | J29: Year 1 | N29: =(F29-F$28)/F$28 -> 0.03484982114
B30: Year 2 | F30: 26.17786226 | J30: Year 2 | N30: =(F30-F$28)/F$28 -> 0.04419080833
B31: Year 3 | F31: 26.4444176 | J31: Year 3 | N31: 0.0548232519
B32: Year 4 | F32: 25.83568264 | J32: Year 4 | N32: 0.03054184021
B33: Year 5 | F33: 25.60875625 | J33: Year 5 | N33: 0.02149012893
B34: Year 6 | F34: 25.72554493 | J34: Year 6 | N34: 0.02614863242
B35: Year 7 | F35: 25.39356605 | J35: Year 7 | N35: 0.01290655447
B36: Year 8 | F36: 25.33055249 | J36: Year 8 | N36: =(F36-F$28)/F$28 -> 0.01039304993
A37: Stage Not Known | B37: Baseline | G37: 8.391491496 | I37: Stage Not Known | J37: Baseline | O37: 0
B38: Year 1 | G38: 6.781520458 | J38: Year 1 | O38: =(G38-G$37)/G$37 -> -0.1918575545
B39: Year 2 | G39: 5.53241396 | J39: Year 2 | O39: =(G39-G$37)/G$37 -> -0.3407114858
B40: Year 3 | G40: 4.686556347 | J40: Year 3 | O40: -0.4415109221
B41: Year 4 | G41: 4.81272654 | J41: Year 4 | O41: -0.4264754313
B42: Year 5 | G42: 5.312781832 | J42: Year 5 | O42: -0.366884679
B43: Year 6 | G43: 5.714051147 | J43: Year 6 | O43: -0.3190660861
B44: Year 7 | G44: 5.926641704 | J44: Year 7 | O44: -0.2937320252
B45: Year 8 | G45: 6.35133008 | J45: Year 8 | O45: -0.2431226221

Sheet Fig 4
A1: ="Detect Cancer Early - Year 8 Staging Data" -> Detect Cancer Early - Year 8 Staging Data | R1: back to contents
A3: ="Figure 4: Trend in percentage change from baseline for each stage for breast, colorectal and lung cancer in Scotland." -> Figure 4: Trend in percentage change from baseline for each stage for breast, colorectal and lung cancer in Scotland.
A48: Source: PHS Detect Cancer Early data.
A50: Notes:
A51: 1) Data for combined calendar years: Baseline (2010 & 2011); Year 1 (2011 & 2012); Year 2 (2012 & 2013); Year 3 (2013 & 2014); Year 4 (2014 & 2015);Year 5 (2015 & 2016); Year 6 (2016 & 2017); Year 7 (2017 & 2018) & Year 8 (2018 & 2019)
A52: 2) Percentage change (% change) is the relative percentage change. More specifically this is the difference in the stage 1 percentage between the baseline and the particular year, relative to the baseline and expressed as a percentage.
A54: 3) There has been an increase in NHS Grampian unknown stage for lung cancer for 2017. This is due to them moving to using the updated staging classification TNM8 a year early.

Sheet Lookups (hidden)
A1: 1 | B1: Baseline 2010-2011
A2: 2 | B2: Year 1 2011-2012
A3: 3 | B3: Year 2 2012-2013
A4: 4 | B4: Year 3 2013-2014
A5: 5 | B5: Year 4 2014-2015
A6: 6 | B6: Year 5 2015-2016
A7: 7 | B7: Year 6 2016-2017
A8: 8 | B8: Year 7 2017-2018
A9: 9 | B9: Year 8 2018-2019
A11: M | B11: Scotland
A12: C | B12: NOSCAN
A13: N | B13: Grampian NHS Board
A14: H | B14: Highland NHS Board
A15: R | B15: Orkney NHS Board
A16: Z | B16: Shetland NHS Board
A17: T | B17: Tayside NHS Board
A18: W | B18: Western Isles NHS Board
A19: D | B19: SCAN
A20: B | B20: Borders NHS Board
A21: Y | B21: Dumfries and Galloway NHS Board
A22: F | B22: Fife NHS Board
A23: S | B23: Lothian NHS Board
A24: E | B24: WOSCAN
A25: A | B25: Ayrshire and Arran NHS Board
A26: V | B26: Forth Valley NHS Board
A27: G | B27: Glasgow NHS Board
A28: L | B28: Lanarkshire NHS Board
A30: 4 | B30: Breast, Colorectal & Lung combined
A31: 1 | B31: Breast
A32: 2 | B32: Colorectal
A33: 3 | B33: Lung
A35: 1 | B35: Stage 1
A36: 2 | B36: Stage 2
A37: 3 | B37: Stage 3
A38: 4 | B38: Stage 4
A39: 5 | B39: Stage Not Known

Sheet Data DCE (hidden)
A1: Lookup | B1: Stage 1 | C1: % | D1: Stage 2 | E1: % | F1: Stage 3 | G1: % | H1: Stage 4 | I1: % | J1: Stage Not Known | K1: % | L1: Total | M1: %
A2: A11 | B2: 264 | C2: 39.75903614 | D2: 289 | E2: 43.52409639 | F2: 49 | G2: 7.379518072 | H2: 36 | I2: 5.421686747 | J2: 26 | K2: 3.915662651 | L2: 664 | M2: 100
A3: A12 | B3: 255 | C3: 40.54054054 | D3: 287 | E3: 45.62798092 | F3: 36 | G3: 5.723370429 | H3: 40 | I3: 6.359300477 | J3: 11 | K3: 1.748807631 | L3: 629 | M3: 100
A4: A13 | B4: 250 | C4: 39.18495298 | D4: 307 | E4: 48.11912226 | F4: 43 | G4: 6.739811912 | H4: 32 | I4: 5.015673981 | J4: 6 | K4: 0.9404388715 | L4: 638 | M4: 100
A5: A14 | B5: 267 | C5: 41.33126935 | D5: 299 | E5: 46.28482972 | F5: 36 | G5: 5.572755418 | H5: 38 | I5: 5.882352941 | J5: 6 | K5: 0.9287925697 | L5: 646 | M5: 100
A6: A15 | B6: 267 | C6: 41.2037037 | D6: 304 | E6: 46.91358025 | F6: 26 | G6: 4.012345679 | H6: 46 | I6: 7.098765432 | J6: 5 | K6: 0.7716049383 | L6: 648 | M6: 100
A7: A16 | B7: 282 | C7: 42.46987952 | D7: 307 | E7: 46.23493976 | F7: 28 | G7: 4.21686747 | H7: 41 | I7: 6.174698795 | J7: 6 | K7: 0.9036144578 | L7: 664 | M7: 100
A8: A17 | B8: 313 | C8: 44.84240688 | D8: 318 | E8: 45.55873926 | F8: 34 | G8: 4.871060172 | H8: 27 | I8: 3.868194842 | J8: 6 | K8: 0.8595988539 | L8: 698 | M8: 100
A9: A18 | B9: 282 | C9: 42.15246637 | D9: 313 | E9: 46.78624813 | F9: 34 | G9: 5.082212257 | H9: 33 | I9: 4.932735426 | J9: 7 | K9: 1.046337818 | L9: 669 | M9: 100
A10: A19 | B10: 185 | C10: 33.21364452 | D10: 247 | E10: 44.34470377 | F10: 33 | G10: 5.92459605 | H10: 34 | I10: 6.104129264 | J10: 58 | K10: 10.41292639 | L10: 557 | M10: 100
A11: A21 | B11: 95 | C11: 18.81188119 | D11: 116 | E11: 22.97029703 | F11: 126 | G11: 24.95049505 | H11: 109 | I11: 21.58415842 | J11: 59 | K11: 11.68316832 | L11: 505 | M11: 100
A12: A22 | B12: 117 | C12: 22.6744186 | D12: 131 | E12: 25.3875969 | F12: 108 | G12: 20.93023256 | H12: 119 | I12: 23.0620155 | J12: 41 | K12: 7.945736434 | L12: 516 | M12: 100
A13: A23 | B13: 127 | C13: 23.64990689 | D13: 143 | E13: 26.62942272 | F13: 113 | G13: 21.04283054 | H13: 114 | I13: 21.22905028 | J13: 40 | K13: 7.448789572 | L13: 537 | M13: 100
A14: A24 | B14: 102 | C14: 19.35483871 | D14: 146 | E14: 27.70398482 | F14: 135 | G14: 25.61669829 | H14: 103 | I14: 19.54459203 | J14: 41 | K14: 7.779886148 | L14: 527 | M14: 100
A15: A25 | B15: 83 | C15: 16.14785992 | D15: 140 | E15: 27.23735409 | F15: 147 | G15: 28.59922179 | H15: 102 | I15: 19.84435798 | J15: 42 | K15: 8.171206226 | L15: 514 | M15: 100
A16: A26 | B16: 84 | C16: 16.31067961 | D16: 148 | E16: 28.73786408 | F16: 125 | G16: 24.27184466 | H16: 116 | I16: 22.52427184 | J16: 42 | K16: 8.155339806 | L16: 515 | M16: 100
A17: A27 | B17: 85 | C17: 15.97744361 | D17: 155 | E17: 29.13533835 | F17: 126 | G17: 23.68421053 | H17: 128 | I17: 24.06015038 | J17: 38 | K17: 7.142857143 | L17: 532 | M17: 100
A18: A28 | B18: 66 | C18: 12.24489796 | D18: 143 | E18: 26.53061224 | F18: 131 | G18: 24.30426716 | H18: 134 | I18: 24.86085343 | J18: 65 | K18: 12.0593692 | L18: 539 | M18: 100
A19: A29 | B19: 54 | C19: 10.38461538 | D19: 132 | E19: 25.38461538 | F19: 107 | G19: 20.57692308 | H19: 118 | I19: 22.69230769 | J19: 109 | K19: 20.96153846 | L19: 520 | M19: 100
A20: A31 | B20: 89 | C20: 13.48484848 | D20: 36 | E20: 5.454545455 | F20: 144 | G20: 21.81818182 | H20: 323 | I20: 48.93939394 | J20: 68 | K20: 10.3030303 | L20: 660 | M20: 100
A21: A32 | B21: 98 | C21: 13.76404494 | D21: 42 | E21: 5.898876404 | F21: 165 | G21: 23.1741573 | H21: 320 | I21: 44.94382022 | J21: 87 | K21: 12.21910112 | L21: 712 | M21: 100
A22: A33 | B22: 103 | C22: 13.5348226 | D22: 67 | E22: 8.804204993 | F22: 195 | G22: 25.62417871 | H22: 340 | I22: 44.67805519 | J22: 56 | K22: 7.358738502 | L22: 761 | M22: 100
A23: A34 | B23: 121 | C23: 14.95673671 | D23: 68 | E23: 8.405438813 | F23: 196 | G23: 24.22744129 | H23: 384 | I23: 47.46600742 | J23: 40 | K23: 4.944375773 | L23: 809 | M23: 100
A24: A35 | B24: 134 | C24: 17.07006369 | D24: 67 | E24: 8.535031847 | F24: 178 | G24: 22.67515924 | H24: 348 | I24: 44.33121019 | J24: 58 | K24: 7.388535032 | L24: 785 | M24: 100
A25: A36 | B25: 130 | C25: 18.05555556 | D25: 69 | E25: 9.583333333 | F25: 152 | G25: 21.11111111 | H25: 309 | I25: 42.91666667 | J25: 60 | K25: 8.333333333 | L25: 720 | M25: 100
A26: A37 | B26: 122 | C26: 17.20733427 | D26: 68 | E26: 9.590973202 | F26: 159 | G26: 22.42595205 | H26: 316 | I26: 44.56981664 | J26: 44 | K26: 6.205923836 | L26: 709 | M26: 100
A27: A38 | B27: 126 | C27: 17.72151899 | D27: 56 | E27: 7.876230661 | F27: 158 | G27: 22.22222222 | H27: 335 | I27: 47.11673699 | J27: 36 | K27: 5.063291139 | L27: 711 | M27: 100
A28: A39 | B28: 132 | C28: 18.56540084 | D28: 39 | E28: 5.485232068 | F28: 155 | G28: 21.80028129 | H28: 340 | I28: 47.81997187 | J28: 45 | K28: 6.329113924 | L28: 711 | M28: 100
A29: A41 | B29: 448 | C29: 24.49425916 | D29: 441 | E29: 24.11153636 | F29: 319 | G29: 17.44122471 | H29: 468 | I29: 25.58775287 | J29: 153 | K29: 8.3652269 | L29: 1829 | M29: 100
A30: A42 | B30: 470 | C30: 25.3096392 | D30: 460 | E30: 24.77113624 | F30: 309 | G30: 16.63974152 | H30: 479 | I30: 25.79429187 | J30: 139 | K30: 7.485191169 | L30: 1857 | M30: 100
A31: A43 | B31: 480 | C31: 24.79338843 | D31: 517 | E31: 26.70454545 | F31: 351 | G31: 18.13016529 | H31: 486 | I31: 25.10330579 | J31: 102 | K31: 5.268595041 | L31: 1936 | M31: 100
A32: A44 | B32: 490 | C32: 24.72250252 | D32: 513 | E32: 25.88294652 | F32: 367 | G32: 18.51664985 | H32: 525 | I32: 26.48839556 | J32: 87 | K32: 4.38950555 | L32: 1982 | M32: 100
A33: A45 | B33: 484 | C33: 24.85875706 | D33: 511 | E33: 26.24550591 | F33: 351 | G33: 18.02773498 | H33: 496 | I33: 25.47508988 | J33: 105 | K33: 5.392912173 | L33: 1947 | M33: 100
A34: A46 | B34: 496 | C34: 26.11901001 | D34: 524 | E34: 27.59347025 | F34: 305 | G34: 16.06108478 | H34: 466 | I34: 24.53923117 | J34: 108 | K34: 5.687203791 | L34: 1899 | M34: 100
A35: A47 | B35: 520 | C35: 26.8179474 | D35: 541 | E35: 27.90097989 | F35: 319 | G35: 16.45177927 | H35: 471 | I35: 24.29087158 | J35: 88 | K35: 4.538421867 | L35: 1939 | M35: 100
A36: A48 | B36: 474 | C36: 24.70036477 | D36: 512 | E36: 26.68056279 | F36: 323 | G36: 16.83168317 | H36: 502 | I36: 26.15945805 | J36: 108 | K36: 5.627931214 | L36: 1919 | M36: 100
A37: A49 | B37: 371 | C37: 20.74944072 | D37: 418 | E37: 23.37807606 | F37: 295 | G37: 16.49888143 | H37: 492 | I37: 27.51677852 | J37: 212 | K37: 11.85682327 | L37: 1788 | M37: 100
A38: B11 | B38: 93 | C38: 41.15044248 | D38: 106 | E38: 46.90265487 | F38: 19 | G38: 8.407079646 | H38: 8 | I38: 3.539823009 | J38: 0 | K38: 0.0% | L38: 226 | M38: 100
A39: B12 | B39: 82 | C39: 36.93693694 | D39: 104 | E39: 46.84684685 | F39: 28 | G39: 12.61261261 | H39: 8 | I39: 3.603603604 | J39: 0 | K39: 0.0% | L39: 222 | M39: 100
A40: B13 | B40: 52 | C40: 30.05780347 | D40: 82 | E40: 47.39884393 | F40: 29 | G40: 16.76300578 | H40: 9 | I40: 5.202312139 | J40: 1 | K40: 0.5780346821 | L40: 173 | M40: 100
A41: B14 | B41: 96 | C41: 43.83561644 | D41: 99 | E41: 45.20547945 | F41: 16 | G41: 7.305936073 | H41: 5 | I41: 2.283105023 | J41: 3 | K41: 1.369863014 | L41: 219 | M41: 100
A42: B15 | B42: 89 | C42: 43.41463415 | D42: 90 | E42: 43.90243902 | F42: 16 | G42: 7.804878049 | H42: 5 | I42: 2.43902439 | J42: 5 | K42: 2.43902439 | L42: 205 | M42: 100
A43: B16 | B43: 67 | C43: 38.50574713 | D43: 81 | E43: 46.55172414 | F43: 14 | G43: 8.045977011 | H43: 9 | I43: 5.172413793 | J43: 3 | K43: 1.724137931 | L43: 174 | M43: 100
A44: B17 | B44: 94 | C44: 41.59292035 | D44: 101 | E44: 44.69026549 | F44: 15 | G44: 6.637168142 | H44: 14 | I44: 6.194690265 | J44: 2 | K44: 0.8849557522 | L44: 226 | M44: 100
A45: B18 | B45: 89 | C45: 39.73214286 | D45: 99 | E45: 44.19642857 | F45: 15 | G45: 6.696428571 | H45: 16 | I45: 7.142857143 | J45: 5 | K45: 2.232142857 | L45: 224 | M45: 100
A46: B19 | B46: 66 | C46: 37.28813559 | D46: 83 | E46: 46.89265537 | F46: 16 | G46: 9.039548023 | H46: 8 | I46: 4.519774011 | J46: 4 | K46: 2.259887006 | L46: 177 | M46: 100
A47: B21 | B47: 40 | C47: 19.7044335 | D47: 53 | E47: 26.10837438 | F47: 55 | G47: 27.09359606 | H47: 33 | I47: 16.25615764 | J47: 22 | K47: 10.83743842 | L47: 203 | M47: 100
A48: B22 | B48: 26 | C48: 16.25 | D48: 46 | E48: 28.75 | F48: 40 | G48: 25 | H48: 34 | I48: 21.25 | J48: 14 | K48: 8.75 | L48: 160 | M48: 100
A49: B23 | B49: 28 | C49: 16.47058824 | D49: 51 | E49: 30 | F49: 40 | G49: 23.52941176 | H49: 35 | I49: 20.58823529 | J49: 16 | K49: 9.411764706 | L49: 170 | M49: 100
A50: B24 | B50: 40 | C50: 21.97802198 | D50: 46 | E50: 25.27472527 | F50: 46 | G50: 25.27472527 | H50: 31 | I50: 17.03296703 | J50: 19 | K50: 10.43956044 | L50: 182 | M50: 100
A51: B25 | B51: 25 | C51: 15.33742331 | D51: 44 | E51: 26.99386503 | F51: 44 | G51: 26.99386503 | H51: 33 | I51: 20.24539877 | J51: 17 | K51: 10.42944785 | L51: 163 | M51: 100
A52: B26 | B52: 23 | C52: 12.92134831 | D52: 44 | E52: 24.71910112 | F52: 50 | G52: 28.08988764 | H52: 49 | I52: 27.52808989 | J52: 12 | K52: 6.741573034 | L52: 178 | M52: 100
A53: B27 | B53: 25 | C53: 13.29787234 | D53: 49 | E53: 26.06382979 | F53: 61 | G53: 32.44680851 | H53: 42 | I53: 22.34042553 | J53: 11 | K53: 5.85106383 | L53: 188 | M53: 100
A54: B28 | B54: 25 | C54: 13.22751323 | D54: 56 | E54: 29.62962963 | F54: 54 | G54: 28.57142857 | H54: 40 | I54: 21.16402116 | J54: 14 | K54: 7.407407407 | L54: 189 | M54: 100
A55: B29 | B55: 25 | C55: 14.36781609 | D55: 47 | E55: 27.01149425 | F55: 34 | G55: 19.54022989 | H55: 47 | I55: 27.01149425 | J55: 21 | K55: 12.06896552 | L55: 174 | M55: 100
A56: B31 | B56: 24 | C56: 14.03508772 | D56: 17 | E56: 9.941520468 | F56: 44 | G56: 25.73099415 | H56: 65 | I56: 38.01169591 | J56: 21 | K56: 12.28070175 | L56: 171 | M56: 100
A57: B32 | B57: 22 | C57: 13.17365269 | D57: 15 | E57: 8.982035928 | F57: 50 | G57: 29.94011976 | H57: 79 | I57: 47.30538922 | J57: 1 | K57: 0.5988023952 | L57: 167 | M57: 100
A58: B33 | B58: 23 | C58: 14.46540881 | D58: 10 | E58: 6.289308176 | F58: 47 | G58: 29.55974843 | H58: 78 | I58: 49.05660377 | J58: 1 | K58: 0.6289308176 | L58: 159 | M58: 100
A59: B34 | B59: 28 | C59: 16.1849711 | D59: 15 | E59: 8.670520231 | F59: 52 | G59: 30.05780347 | H59: 74 | I59: 42.77456647 | J59: 4 | K59: 2.312138728 | L59: 173 | M59: 100
A60: B35 | B60: 25 | C60: 15.33742331 | D60: 19 | E60: 11.65644172 | F60: 46 | G60: 28.2208589 | H60: 68 | I60: 41.71779141 | J60: 5 | K60: 3.067484663 | L60: 163 | M60: 100
A61: B36 | B61: 25 | C61: 16.55629139 | D61: 17 | E61: 11.25827815 | F61: 37 | G61: 24.50331126 | H61: 70 | I61: 46.35761589 | J61: 2 | K61: 1.324503311 | L61: 151 | M61: 100
A62: B37 | B62: 28 | C62: 14.58333333 | D62: 14 | E62: 7.291666667 | F62: 53 | G62: 27.60416667 | H62: 95 | I62: 49.47916667 | J62: 2 | K62: 1.041666667 | L62: 192 | M62: 100
A63: B38 | B63: 27 | C63: 12.44239631 | D63: 14 | E63: 6.451612903 | F63: 59 | G63: 27.18894009 | H63: 105 | I63: 48.38709677 | J63: 12 | K63: 5.529953917 | L63: 217 | M63: 100
A64: B39 | B64: 36 | C64: 18 | D64: 12 | E64: 6 | F64: 41 | G64: 20.5 | H64: 95 | I64: 47.5 | J64: 16 | K64: 8 | L64: 200 | M64: 100
A65: B41 | B65: 157 | C65: 26.16666667 | D65: 176 | E65: 29.33333333 | F65: 118 | G65: 19.66666667 | H65: 106 | I65: 17.66666667 | J65: 43 | K65: 7.166666667 | L65: 600 | M65: 100
A66: B42 | B66: 130 | C66: 23.67941712 | D66: 165 | E66: 30.05464481 | F66: 118 | G66: 21.49362477 | H66: 121 | I66: 22.04007286 | J66: 15 | K66: 2.732240437 | L66: 549 | M66: 100
A67: B43 | B67: 103 | C67: 20.51792829 | D67: 143 | E67: 28.48605578 | F67: 116 | G67: 23.10756972 | H67: 122 | I67: 24.30278884 | J67: 18 | K67: 3.585657371 | L67: 502 | M67: 100
A68: B44 | B68: 164 | C68: 28.57142857 | D68: 160 | E68: 27.87456446 | F68: 114 | G68: 19.86062718 | H68: 110 | I68: 19.16376307 | J68: 26 | K68: 4.529616725 | L68: 574 | M68: 100
A69: B45 | B69: 139 | C69: 26.17702448 | D69: 153 | E69: 28.81355932 | F69: 106 | G69: 19.96233522 | H69: 106 | I69: 19.96233522 | J69: 27 | K69: 5.084745763 | L69: 531 | M69: 100
A70: B46 | B70: 115 | C70: 22.86282306 | D70: 142 | E70: 28.2306163 | F70: 101 | G70: 20.07952286 | H70: 128 | I70: 25.4473161 | J70: 17 | K70: 3.37972167 | L70: 503 | M70: 100
A71: B47 | B71: 147 | C71: 24.25742574 | D71: 164 | E71: 27.06270627 | F71: 129 | G71: 21.28712871 | H71: 151 | I71: 24.91749175 | J71: 15 | K71: 2.475247525 | L71: 606 | M71: 100
A72: B48 | B72: 141 | C72: 22.38095238 | D72: 169 | E72: 26.82539683 | F72: 128 | G72: 20.31746032 | H72: 161 | I72: 25.55555556 | J72: 31 | K72: 4.920634921 | L72: 630 | M72: 100
A73: B49 | B73: 127 | C73: 23.04900181 | D73: 142 | E73: 25.77132486 | F73: 91 | G73: 16.5154265 | H73: 150 | I73: 27.22323049 | J73: 41 | K73: 7.441016334 | L73: 551 | M73: 100
A74: C11 | B74: 828 | C74: 38.90977444 | D74: 917 | E74: 43.09210526 | F74: 146 | G74: 6.860902256 | H74: 82 | I74: 3.853383459 | J74: 155 | K74: 7.283834586 | L74: 2128 | M74: 100
A75: C12 | B75: 813 | C75: 38.31291235 | D75: 914 | E75: 43.07257304 | F75: 152 | G75: 7.163053723 | H75: 91 | I75: 4.288407163 | J75: 152 | K75: 7.163053723 | L75: 2122 | M75: 100
A76: C13 | B76: 874 | C76: 39.9086758 | D76: 922 | E76: 42.10045662 | F76: 190 | G76: 8.675799087 | H76: 104 | I76: 4.748858447 | J76: 100 | K76: 4.566210046 | L76: 2190 | M76: 100
A77: C14 | B77: 889 | C77: 41.19555144 | D77: 935 | E77: 43.32715477 | F77: 179 | G77: 8.294717331 | H77: 100 | I77: 4.633920297 | J77: 55 | K77: 2.548656163 | L77: 2158 | M77: 100
A78: C15 | B78: 876 | C78: 40.74418605 | D78: 978 | E78: 45.48837209 | F78: 147 | G78: 6.837209302 | H78: 109 | I78: 5.069767442 | J78: 40 | K78: 1.860465116 | L78: 2150 | M78: 100
A79: C16 | B79: 928 | C79: 40.20797227 | D79: 1051 | E79: 45.5372617 | F79: 157 | G79: 6.802426343 | H79: 118 | I79: 5.112651646 | J79: 54 | K79: 2.339688042 | L79: 2308 | M79: 100
A80: C17 | B80: 927 | C80: 40.48034934 | D80: 1022 | E80: 44.62882096 | F80: 178 | G80: 7.772925764 | H80: 109 | I80: 4.759825328 | J80: 54 | K80: 2.358078603 | L80: 2290 | M80: 100
A81: C18 | B81: 926 | C81: 41.69293111 | D81: 1002 | E81: 45.11481315 | F81: 156 | G81: 7.023863125 | H81: 94 | I81: 4.23232778 | J81: 43 | K81: 1.936064836 | L81: 2221 | M81: 100
A82: C19 | B82: 907 | C82: 41.34001823 | D82: 989 | E82: 45.07748405 | F82: 126 | G82: 5.742935278 | H82: 79 | I82: 3.600729262 | J82: 93 | K82: 4.238833181 | L82: 2194 | M82: 100
A83: C21 | B83: 292 | C83: 15.93016912 | D83: 485 | E83: 26.45935625 | F83: 448 | G83: 24.44080742 | H83: 325 | I83: 17.73049645 | J83: 283 | K83: 15.43917076 | L83: 1833 | M83: 100
A84: C22 | B84: 290 | C84: 15.96037424 | D84: 463 | E84: 25.48156302 | F84: 441 | G84: 24.270776 | H84: 358 | I84: 19.70280682 | J84: 265 | K84: 14.58447991 | L84: 1817 | M84: 100
A85: C23 | B85: 269 | C85: 15.41547278 | D85: 465 | E85: 26.64756447 | F85: 466 | G85: 26.70487106 | H85: 358 | I85: 20.51575931 | J85: 187 | K85: 10.71633238 | L85: 1745 | M85: 100
A86: C24 | B86: 236 | C86: 14.14020371 | D86: 458 | E86: 27.44158179 | F86: 420 | G86: 25.16476932 | H86: 355 | I86: 21.27022169 | J86: 200 | K86: 11.98322349 | L86: 1669 | M86: 100
A87: C25 | B87: 213 | C87: 12.07482993 | D87: 478 | E87: 27.09750567 | F87: 440 | G87: 24.94331066 | H87: 398 | I87: 22.56235828 | J87: 235 | K87: 13.32199546 | L87: 1764 | M87: 100
A88: C26 | B88: 242 | C88: 12.9898014 | D88: 504 | E88: 27.0531401 | F88: 442 | G88: 23.72517445 | H88: 426 | I88: 22.86634461 | J88: 249 | K88: 13.36553945 | L88: 1863 | M88: 100
A89: C27 | B89: 267 | C89: 14.7107438 | D89: 477 | E89: 26.28099174 | F89: 415 | G89: 22.86501377 | H89: 412 | I89: 22.69972452 | J89: 244 | K89: 13.44352617 | L89: 1815 | M89: 100
A90: C28 | B90: 277 | C90: 15.05434783 | D90: 479 | E90: 26.0326087 | F90: 459 | G90: 24.94565217 | H90: 406 | I90: 22.06521739 | J90: 219 | K90: 11.90217391 | L90: 1840 | M90: 100
A91: C29 | B91: 297 | C91: 15.68938193 | D91: 498 | E91: 26.30744849 | F91: 503 | G91: 26.5715795 | H91: 393 | I91: 20.76069731 | J91: 202 | K91: 10.67089276 | L91: 1893 | M91: 100
A92: C31 | B92: 208 | C92: 10.93585699 | D92: 133 | E92: 6.992639327 | F92: 444 | G92: 23.34384858 | H92: 1003 | I92: 52.73396425 | J92: 114 | K92: 5.993690852 | L92: 1902 | M92: 100
A93: C32 | B93: 241 | C93: 12.36531555 | D93: 137 | E93: 7.029245767 | F93: 449 | G93: 23.03745511 | H93: 1035 | I93: 53.10415598 | J93: 87 | K93: 4.463827604 | L93: 1949 | M93: 100
A94: C33 | B94: 256 | C94: 12.60462826 | D94: 152 | E94: 7.483998031 | F94: 472 | G94: 23.23978336 | H94: 1064 | I94: 52.38798621 | J94: 87 | K94: 4.283604136 | L94: 2031 | M94: 100
A95: C34 | B95: 268 | C95: 12.65344665 | D95: 181 | E95: 8.545797923 | F95: 501 | G95: 23.65439093 | H95: 1076 | I95: 50.802644 | J95: 92 | K95: 4.343720491 | L95: 2118 | M95: 100
A96: C35 | B96: 300 | C96: 13.94700139 | D96: 176 | E96: 8.182240818 | F96: 471 | G96: 21.89679219 | H96: 1118 | I96: 51.9758252 | J96: 86 | K96: 3.9981404 | L96: 2151 | M96: 100
A97: C36 | B97: 308 | C97: 14.75802587 | D97: 145 | E97: 6.947771921 | F97: 439 | G97: 21.03497844 | H97: 1085 | I97: 51.98850024 | J97: 110 | K97: 5.270723527 | L97: 2087 | M97: 100
A98: C37 | B98: 266 | C98: 12.91889267 | D98: 131 | E98: 6.362311802 | F98: 398 | G98: 19.32977173 | H98: 1019 | I98: 49.49004371 | J98: 245 | K98: 11.89898009 | L98: 2059 | M98: 100
A99: C38 | B99: 301 | C99: 13.87096774 | D99: 150 | E99: 6.912442396 | F99: 426 | G99: 19.63133641 | H99: 1022 | I99: 47.09677419 | J99: 271 | K99: 12.48847926 | L99: 2170 | M99: 100
A100: C39 | B100: 367 | C100: 16.29662522 | D100: 163 | E100: 7.238010657 | F100: 464 | G100: 20.60390764 | H100: 1080 | I100: 47.95737123 | J100: 178 | K100: 7.904085258 | L100: 2252 | M100: 100
A101: C41 | B101: 1328 | C101: 22.65052021 | D101: 1535 | E101: 26.18113594 | F101: 1038 | G101: 17.70424697 | H101: 1410 | I101: 24.04912161 | J101: 552 | K101: 9.414975269 | L101: 5863 | M101: 100
A102: C42 | B102: 1344 | C102: 22.82608696 | D102: 1514 | E102: 25.71331522 | F102: 1042 | G102: 17.69701087 | H102: 1484 | I102: 25.20380435 | J102: 504 | K102: 8.559782609 | L102: 5888 | M102: 100
A103: C43 | B103: 1399 | C103: 23.44954744 | D103: 1539 | E103: 25.79617834 | F103: 1128 | G103: 18.90714046 | H103: 1526 | I103: 25.5782769 | J103: 374 | K103: 6.268856856 | L103: 5966 | M103: 100
A104: C44 | B104: 1393 | C104: 23.431455 | D104: 1574 | E104: 26.47603028 | F104: 1100 | G104: 18.50294365 | H104: 1531 | I104: 25.75273339 | J104: 347 | K104: 5.836837679 | L104: 5945 | M104: 100
A105: C45 | B105: 1389 | C105: 22.90189613 | D105: 1632 | E105: 26.90849134 | F105: 1058 | G105: 17.44435284 | H105: 1625 | I105: 26.79307502 | J105: 361 | K105: 5.952184666 | L105: 6065 | M105: 100
A106: C46 | B106: 1478 | C106: 23.61776926 | D106: 1700 | E106: 27.16522851 | F106: 1038 | G106: 16.58676894 | H106: 1629 | I106: 26.03068073 | J106: 413 | K106: 6.599552573 | L106: 6258 | M106: 100
A107: C47 | B107: 1460 | C107: 23.68591823 | D107: 1630 | E107: 26.44386762 | F107: 991 | G107: 16.07722258 | H107: 1540 | I107: 24.98377677 | J107: 543 | K107: 8.809214796 | L107: 6164 | M107: 100
A108: C48 | B108: 1504 | C108: 24.13737763 | D108: 1631 | E108: 26.17557374 | F108: 1041 | G108: 16.70678864 | H108: 1522 | I108: 24.42625582 | J108: 533 | K108: 8.554004173 | L108: 6231 | M108: 100
A109: C49 | B109: 1571 | C109: 24.78308882 | D109: 1650 | E109: 26.02934217 | F109: 1093 | G109: 17.24246727 | H109: 1552 | I109: 24.483357 | J109: 473 | K109: 7.461744755 | L109: 6339 | M109: 100
A110: D11 | B110: 882 | C110: 39.46308725 | D110: 1003 | E110: 44.87695749 | F110: 185 | G110: 8.277404922 | H110: 104 | I110: 4.653243848 | J110: 61 | K110: 2.729306488 | L110: 2235 | M110: 100
A111: D12 | B111: 970 | C111: 40.60276266 | D111: 1053 | E111: 44.07701967 | F111: 187 | G111: 7.827542905 | H111: 118 | I111: 4.939305149 | J111: 61 | K111: 2.553369611 | L111: 2389 | M111: 100
A112: D13 | B112: 928 | C112: 40.22540095 | D112: 999 | E112: 43.3029909 | F112: 191 | G112: 8.279150412 | H112: 122 | I112: 5.288253143 | J112: 67 | K112: 2.904204595 | L112: 2307 | M112: 100
A113: D14 | B113: 987 | C113: 42.26980728 | D113: 1015 | E113: 43.46895075 | F113: 184 | G113: 7.880085653 | H113: 100 | I113: 4.282655246 | J113: 49 | K113: 2.098501071 | L113: 2335 | M113: 100
A114: D15 | B114: 1030 | C114: 42.80964256 | D114: 1049 | E114: 43.599335 | F114: 194 | G114: 8.063175395 | H114: 98 | I114: 4.073150457 | J114: 35 | K114: 1.454696592 | L114: 2406 | M114: 100
A115: D16 | B115: 984 | C115: 42.01537148 | D115: 1023 | E115: 43.68061486 | F115: 187 | G115: 7.984628523 | H115: 120 | I115: 5.12382579 | J115: 28 | K115: 1.195559351 | L115: 2342 | M115: 100
A116: D17 | B116: 976 | C116: 41.40857022 | D116: 1043 | E116: 44.25116674 | F116: 196 | G116: 8.315655494 | H116: 118 | I116: 5.006364022 | J116: 24 | K116: 1.01824353 | L116: 2357 | M116: 100
A117: D18 | B117: 1019 | C117: 41.27176995 | D117: 1117 | E117: 45.24098825 | F117: 190 | G117: 7.695423248 | H117: 118 | I117: 4.779262859 | J117: 25 | K117: 1.012555691 | L117: 2469 | M117: 100
A118: D19 | B118: 1024 | C118: 41.45748988 | D118: 1131 | E118: 45.78947368 | F118: 164 | G118: 6.639676113 | H118: 127 | I118: 5.141700405 | J118: 24 | K118: 0.971659919 | L118: 2470 | M118: 100
A119: D21 | B119: 350 | C119: 17.24987679 | D119: 524 | E119: 25.82552982 | F119: 491 | G119: 24.19911286 | H119: 447 | I119: 22.03055692 | J119: 217 | K119: 10.69492361 | L119: 2029 | M119: 100
A120: D22 | B120: 324 | C120: 16.44670051 | D120: 532 | E120: 27.00507614 | F120: 455 | G120: 23.0964467 | H120: 434 | I120: 22.03045685 | J120: 225 | K120: 11.4213198 | L120: 1970 | M120: 100
A121: D23 | B121: 339 | C121: 17.41140216 | D121: 526 | E121: 27.01592193 | F121: 439 | G121: 22.54750899 | H121: 408 | I121: 20.95531587 | J121: 235 | K121: 12.06985105 | L121: 1947 | M121: 100
A122: D24 | B122: 356 | C122: 18.41696844 | D122: 512 | E122: 26.4873254 | F122: 441 | G122: 22.81427832 | H122: 440 | I122: 22.76254527 | J122: 184 | K122: 9.518882566 | L122: 1933 | M122: 100
A123: D25 | B123: 332 | C123: 17.7540107 | D123: 514 | E123: 27.48663102 | F123: 443 | G123: 23.68983957 | H123: 411 | I123: 21.97860963 | J123: 170 | K123: 9.090909091 | L123: 1870 | M123: 100
A124: D26 | B124: 291 | C124: 16.22978249 | D124: 463 | E124: 25.82264361 | F124: 445 | G124: 24.81873954 | H124: 400 | I124: 22.30897936 | J124: 194 | K124: 10.81985499 | L124: 1793 | M124: 100
A125: D27 | B125: 292 | C125: 16.39528355 | D125: 428 | E125: 24.03144301 | F125: 463 | G125: 25.99663111 | H125: 407 | I125: 22.85233015 | J125: 191 | K125: 10.72431218 | L125: 1781 | M125: 100
A126: D28 | B126: 337 | C126: 18.07939914 | D126: 443 | E126: 23.76609442 | F126: 455 | G126: 24.40987124 | H126: 434 | I126: 23.2832618 | J126: 195 | K126: 10.46137339 | L126: 1864 | M126: 100
A127: D29 | B127: 372 | C127: 18.92166836 | D127: 474 | E127: 24.10986775 | F127: 450 | G127: 22.88911495 | H127: 461 | I127: 23.44862665 | J127: 209 | K127: 10.63072228 | L127: 1966 | M127: 100
A128: D31 | B128: 325 | C128: 13.91267123 | D128: 194 | E128: 8.304794521 | F128: 561 | G128: 24.01541096 | H128: 1152 | I128: 49.31506849 | J128: 104 | K128: 4.452054795 | L128: 2336 | M128: 100
A129: D32 | B129: 376 | C129: 15.58872305 | D129: 205 | E129: 8.499170813 | F129: 577 | G129: 23.92205638 | H129: 1167 | I129: 48.38308458 | J129: 87 | K129: 3.606965174 | L129: 2412 | M129: 100
A130: D33 | B130: 408 | C130: 16.91542289 | D130: 200 | E130: 8.291873964 | F130: 555 | G130: 23.00995025 | H130: 1173 | I130: 48.6318408 | J130: 76 | K130: 3.150912106 | L130: 2412 | M130: 100
A131: D34 | B131: 432 | C131: 17.5538399 | D131: 207 | E131: 8.411214953 | F131: 568 | G131: 23.08004876 | H131: 1176 | I131: 47.78545307 | J131: 78 | K131: 3.169443316 | L131: 2461 | M131: 100
A132: D35 | B132: 469 | C132: 19.27661323 | D132: 209 | E132: 8.590217838 | F132: 542 | G132: 22.27702425 | H132: 1097 | I132: 45.08836827 | J132: 116 | K132: 4.767776408 | L132: 2433 | M132: 100
A133: D36 | B133: 452 | C133: 19.4743645 | D133: 197 | E133: 8.48772081 | F133: 517 | G133: 22.27488152 | H133: 1033 | I133: 44.50667816 | J133: 122 | K133: 5.256355019 | L133: 2321 | M133: 100
A134: D37 | B134: 443 | C134: 18.52781263 | D134: 176 | E134: 7.360936847 | F134: 570 | G134: 23.83939774 | H134: 1076 | I134: 45.00209118 | J134: 126 | K134: 5.269761606 | L134: 2391 | M134: 100
A135: D38 | B135: 476 | C135: 18.93396977 | D135: 169 | E135: 6.722354813 | F135: 596 | G135: 23.70723946 | H135: 1135 | I135: 45.14717582 | J135: 138 | K135: 5.489260143 | L135: 2514 | M135: 100
A136: D39 | B136: 476 | C136: 18.4139265 | D136: 194 | E136: 7.50483559 | F136: 593 | G136: 22.94003868 | H136: 1181 | I136: 45.68665377 | J136: 141 | K136: 5.454545455 | L136: 2585 | M136: 100
A137: D41 | B137: 1557 | C137: 23.59090909 | D137: 1721 | E137: 26.07575758 | F137: 1237 | G137: 18.74242424 | H137: 1703 | I137: 25.8030303 | J137: 382 | K137: 5.787878788 | L137: 6600 | M137: 100
A138: D42 | B138: 1670 | C138: 24.66400827 | D138: 1790 | E138: 26.43627234 | F138: 1219 | G138: 18.00324915 | H138: 1719 | I138: 25.38768276 | J138: 373 | K138: 5.508787476 | L138: 6771 | M138: 100
A139: D43 | B139: 1675 | C139: 25.12751275 | D139: 1725 | E139: 25.87758776 | F139: 1185 | G139: 17.77677768 | H139: 1703 | I139: 25.54755476 | J139: 378 | K139: 5.670567057 | L139: 6666 | M139: 100
A140: D44 | B140: 1775 | C140: 26.37836231 | D140: 1734 | E140: 25.7690593 | F140: 1193 | G140: 17.72923168 | H140: 1716 | I140: 25.50156041 | J140: 311 | K140: 4.621786298 | L140: 6729 | M140: 100
A141: D45 | B141: 1831 | C141: 27.29169772 | D141: 1772 | E141: 26.41228201 | F141: 1179 | G141: 17.57340885 | H141: 1606 | I141: 23.93799374 | J141: 321 | K141: 4.784617678 | L141: 6709 | M141: 100
A142: D46 | B142: 1727 | C142: 26.75030979 | D142: 1683 | E142: 26.06877323 | F142: 1149 | G142: 17.79739777 | H142: 1553 | I142: 24.0551425 | J142: 344 | K142: 5.328376704 | L142: 6456 | M142: 100
A143: D47 | B143: 1711 | C143: 26.20615715 | D143: 1647 | E143: 25.22591515 | F143: 1229 | G143: 18.8237096 | H143: 1601 | I143: 24.52136621 | J143: 341 | K143: 5.222851892 | L143: 6529 | M143: 100
A144: D48 | B144: 1832 | C144: 26.75624361 | D144: 1729 | E144: 25.25193515 | F144: 1241 | G144: 18.12472616 | H144: 1687 | I144: 24.63852782 | J144: 358 | K144: 5.228567256 | L144: 6847 | M144: 100
A145: D49 | B145: 1872 | C145: 26.66286854 | D145: 1799 | E145: 25.62313061 | F145: 1207 | G145: 17.19128329 | H145: 1769 | I145: 25.19584105 | J145: 374 | K145: 5.326876513 | L145: 7021 | M145: 100
A146: E11 | B146: 1474 | C146: 38.23605707 | D146: 1699 | E146: 44.07263294 | F146: 269 | G146: 6.977950713 | H146: 264 | I146: 6.848249027 | J146: 149 | K146: 3.865110246 | L146: 3855 | M146: 100
A147: E12 | B147: 1558 | C147: 39.38321537 | D147: 1792 | E147: 45.29828109 | F147: 271 | G147: 6.850353893 | H147: 269 | I147: 6.799797776 | J147: 66 | K147: 1.668351871 | L147: 3956 | M147: 100
A148: E13 | B148: 1576 | C148: 38.875185 | D148: 1835 | E148: 45.26393685 | F148: 366 | G148: 9.028120375 | H148: 236 | I148: 5.821410952 | J148: 41 | K148: 1.011346818 | L148: 4054 | M148: 100
A149: E14 | B149: 1601 | C149: 39.58951533 | D149: 1796 | E149: 44.41147379 | F149: 374 | G149: 9.248269041 | H149: 245 | I149: 6.058358061 | J149: 28 | K149: 0.6923837784 | L149: 4044 | M149: 100
A150: E15 | B150: 1632 | C150: 40.42605895 | D150: 1808 | E150: 44.78573198 | F150: 321 | G150: 7.951449096 | H150: 252 | I150: 6.242259103 | J150: 24 | K150: 0.594500867 | L150: 4037 | M150: 100
A151: E16 | B151: 1618 | C151: 40.95165781 | D151: 1745 | E151: 44.16603392 | F151: 312 | G151: 7.896735004 | H151: 253 | I151: 6.403442167 | J151: 23 | K151: 0.582131106 | L151: 3951 | M151: 100
A152: E17 | B152: 1599 | C152: 40.71810542 | D152: 1739 | E152: 44.28316781 | F152: 336 | G152: 8.556149733 | H152: 229 | I152: 5.831423478 | J152: 24 | K152: 0.6111535523 | L152: 3927 | M152: 100
A153: E18 | B153: 1618 | C153: 39.19573643 | D153: 1933 | E153: 46.82655039 | F153: 315 | G153: 7.630813953 | H153: 240 | I153: 5.813953488 | J153: 22 | K153: 0.5329457364 | L153: 4128 | M153: 100
A154: E19 | B154: 1568 | C154: 37.52093802 | D154: 1956 | E154: 46.80545585 | F154: 297 | G154: 7.106963388 | H154: 234 | I154: 5.5994257 | J154: 124 | K154: 2.967217038 | L154: 4179 | M154: 100
A155: E21 | B155: 619 | C155: 19.27748365 | D155: 801 | E155: 24.94549984 | F155: 744 | G155: 23.17035192 | H155: 500 | I155: 15.57147306 | J155: 547 | K155: 17.03519153 | L155: 3211 | M155: 100
A156: E22 | B156: 643 | C156: 19.85180611 | D156: 787 | E156: 24.29762272 | F156: 741 | G156: 22.87743131 | H156: 653 | I156: 20.16054338 | J156: 415 | K156: 12.81259648 | L156: 3239 | M156: 100
A157: E23 | B157: 605 | C157: 19.42215088 | D157: 754 | E157: 24.20545746 | F157: 711 | G157: 22.82504013 | H157: 720 | I157: 23.11396469 | J157: 325 | K157: 10.43338684 | L157: 3115 | M157: 100
A158: E24 | B158: 544 | C158: 17.78358941 | D158: 773 | E158: 25.26969598 | F158: 780 | G158: 25.49852893 | H158: 722 | I158: 23.60248447 | J158: 240 | K158: 7.84570121 | L158: 3059 | M158: 100
A159: E25 | B159: 476 | C159: 15.81920904 | D159: 766 | E159: 25.45696245 | F159: 819 | G159: 27.21834497 | H159: 723 | I159: 24.02791625 | J159: 225 | K159: 7.477567298 | L159: 3009 | M159: 100
A160: E26 | B160: 463 | C160: 15.72690217 | D160: 746 | E160: 25.33967391 | F160: 776 | G160: 26.35869565 | H160: 726 | I160: 24.66032609 | J160: 233 | K160: 7.914402174 | L160: 2944 | M160: 100
A161: E27 | B161: 484 | C161: 16.0690571 | D161: 750 | E161: 24.90039841 | F161: 789 | G161: 26.19521912 | H161: 762 | I161: 25.29880478 | J161: 227 | K161: 7.536520584 | L161: 3012 | M161: 100
A162: E28 | B162: 499 | C162: 16.41987496 | D162: 696 | E162: 22.90227048 | F162: 779 | G162: 25.63343205 | H162: 767 | I162: 25.23856532 | J162: 298 | K162: 9.80585719 | L162: 3039 | M162: 100
A163: E29 | B163: 526 | C163: 17.10013004 | D163: 698 | E163: 22.69180754 | F163: 758 | G163: 24.64239272 | H163: 713 | I163: 23.17945384 | J163: 381 | K163: 12.38621586 | L163: 3076 | M163: 100
A164: E31 | B164: 603 | C164: 13.70454545 | D164: 303 | E164: 6.886363636 | F164: 994 | G164: 22.59090909 | H164: 2122 | I164: 48.22727273 | J164: 378 | K164: 8.590909091 | L164: 4400 | M164: 100
A165: E32 | B165: 731 | C165: 15.36682783 | D165: 354 | E165: 7.441664915 | F165: 1101 | G165: 23.14483918 | H165: 2260 | I165: 47.5089342 | J165: 311 | K165: 6.537733866 | L165: 4757 | M165: 100
A166: E33 | B166: 819 | C166: 16.62606577 | D166: 454 | E166: 9.216402761 | F166: 1115 | G166: 22.63499797 | H166: 2288 | I166: 46.44742184 | J166: 250 | K166: 5.075111652 | L166: 4926 | M166: 100
A167: E34 | B167: 885 | C167: 17.49011858 | D167: 463 | E167: 9.150197628 | F167: 1120 | G167: 22.13438735 | H167: 2354 | I167: 46.52173913 | J167: 238 | K167: 4.703557312 | L167: 5060 | M167: 100
A168: E35 | B168: 944 | C168: 18.84231537 | D168: 465 | E168: 9.281437126 | F168: 1128 | G168: 22.51497006 | H168: 2209 | I168: 44.09181637 | J168: 264 | K168: 5.269461078 | L168: 5010 | M168: 100
A169: E36 | B169: 921 | C169: 19.2476489 | D169: 455 | E169: 9.508881923 | F169: 1040 | G169: 21.73458725 | H169: 2086 | I169: 43.59456635 | J169: 283 | K169: 5.914315569 | L169: 4785 | M169: 100
A170: E37 | B170: 901 | C170: 19.05265384 | D170: 423 | E170: 8.944808628 | F170: 1013 | G170: 21.42101924 | H170: 2135 | I170: 45.14696553 | J170: 257 | K170: 5.43455276 | L170: 4729 | M170: 100
A171: E38 | B171: 883 | C171: 19.22909408 | D171: 373 | E171: 8.1228223 | F171: 984 | G171: 21.42857143 | H171: 2091 | I171: 45.53571429 | J171: 261 | K171: 5.683797909 | L171: 4592 | M171: 100
A172: E39 | B172: 973 | C172: 20.28351053 | D172: 367 | E172: 7.650614968 | F172: 1026 | G172: 21.38836773 | H172: 2169 | I172: 45.21575985 | J172: 262 | K172: 5.461746925 | L172: 4797 | M172: 100
A173: E41 | B173: 2696 | C173: 23.51299494 | D173: 2803 | E173: 24.44618873 | F173: 2007 | G173: 17.50392465 | H173: 2886 | I173: 25.17006803 | J173: 1074 | K173: 9.366823653 | L173: 11466 | M173: 100
A174: E42 | B174: 2932 | C174: 24.53145917 | D174: 2933 | E174: 24.53982597 | F174: 2113 | G174: 17.67904953 | H174: 3182 | I174: 26.6231593 | J174: 792 | K174: 6.626506024 | L174: 11952 | M174: 100
A175: E43 | B175: 3000 | C175: 24.80363787 | D175: 3043 | E175: 25.15915668 | F175: 2192 | G175: 18.1231914 | H175: 3244 | I175: 26.82100041 | J175: 616 | K175: 5.093013642 | L175: 12095 | M175: 100
A176: E44 | B176: 3030 | C176: 24.9116172 | D176: 3032 | E176: 24.92806051 | F176: 2274 | G176: 18.69604538 | H176: 3321 | I176: 27.30411905 | J176: 506 | K176: 4.160157856 | L176: 12163 | M176: 100
A177: E45 | B177: 3052 | C177: 25.31519575 | D177: 3039 | E177: 25.20736563 | F177: 2268 | G177: 18.81220969 | H177: 3184 | I177: 26.41008626 | J177: 513 | K177: 4.255142668 | L177: 12056 | M177: 100
A178: E46 | B178: 3002 | C178: 25.70205479 | D178: 2946 | E178: 25.22260274 | F178: 2128 | G178: 18.21917808 | H178: 3065 | I178: 26.24143836 | J178: 539 | K178: 4.614726027 | L178: 11680 | M178: 100
A179: E47 | B179: 2984 | C179: 25.57422009 | D179: 2912 | E179: 24.95714775 | F179: 2138 | G179: 18.32362016 | H179: 3126 | I179: 26.79122386 | J179: 508 | K179: 4.353788138 | L179: 11668 | M179: 100
A180: E48 | B180: 3000 | C180: 25.5123735 | D180: 3002 | E180: 25.52938175 | F180: 2078 | G180: 17.67157071 | H180: 3098 | I180: 26.3457777 | J180: 581 | K180: 4.940896335 | L180: 11759 | M180: 100
A181: E49 | B181: 3067 | C181: 25.44805841 | D181: 3021 | E181: 25.06637902 | F181: 2081 | G181: 17.26684368 | H181: 3116 | I181: 25.85462994 | J181: 767 | K181: 6.364088948 | L181: 12052 | M181: 100
A182: F11 | B182: 243 | C182: 42.1875 | D182: 253 | E182: 43.92361111 | F182: 44 | G182: 7.638888889 | H182: 25 | I182: 4.340277778 | J182: 11 | K182: 1.909722222 | L182: 576 | M182: 100
A183: F12 | B183: 240 | C183: 40.20100503 | D183: 264 | E183: 44.22110553 | F183: 48 | G183: 8.040201005 | H183: 28 | I183: 4.690117253 | J183: 17 | K183: 2.847571189 | L183: 597 | M183: 100
A184: F13 | B184: 252 | C184: 42.21105528 | D184: 260 | E184: 43.55108878 | F184: 48 | G184: 8.040201005 | H184: 24 | I184: 4.020100503 | J184: 13 | K184: 2.177554439 | L184: 597 | M184: 100
A185: F14 | B185: 250 | C185: 42.73504274 | D185: 259 | E185: 44.27350427 | F185: 50 | G185: 8.547008547 | H185: 20 | I185: 3.418803419 | J185: 6 | K185: 1.025641026 | L185: 585 | M185: 100
A186: F15 | B186: 260 | C186: 44.44444444 | D186: 247 | E186: 42.22222222 | F186: 46 | G186: 7.863247863 | H186: 22 | I186: 3.760683761 | J186: 10 | K186: 1.709401709 | L186: 585 | M186: 100
A187: F16 | B187: 293 | C187: 46.21451104 | D187: 258 | E187: 40.69400631 | F187: 48 | G187: 7.570977918 | H187: 25 | I187: 3.943217666 | J187: 10 | K187: 1.577287066 | L187: 634 | M187: 100
A188: F17 | B188: 239 | C188: 39.50413223 | D188: 276 | E188: 45.61983471 | F188: 58 | G188: 9.58677686 | H188: 24 | I188: 3.966942149 | J188: 8 | K188: 1.32231405 | L188: 605 | M188: 100
A189: F18 | B189: 233 | C189: 38.00978793 | D189: 294 | E189: 47.96084829 | F189: 53 | G189: 8.646003263 | H189: 27 | I189: 4.4045677 | J189: 6 | K189: 0.9787928222 | L189: 613 | M189: 100
A190: F19 | B190: 270 | C190: 40.23845007 | D190: 316 | E190: 47.09388972 | F190: 43 | G190: 6.408345753 | H190: 31 | I190: 4.619970194 | J190: 11 | K190: 1.639344262 | L190: 671 | M190: 100
A191: F21 | B191: 79 | C191: 16.9527897 | D191: 120 | E191: 25.75107296 | F191: 125 | G191: 26.82403433 | H191: 83 | I191: 17.8111588 | J191: 59 | K191: 12.66094421 | L191: 466 | M191: 100
A192: F22 | B192: 86 | C192: 18.9010989 | D192: 114 | E192: 25.05494505 | F192: 105 | G192: 23.07692308 | H192: 90 | I192: 19.78021978 | J192: 60 | K192: 13.18681319 | L192: 455 | M192: 100
A193: F23 | B193: 88 | C193: 18.56540084 | D193: 132 | E193: 27.84810127 | F193: 106 | G193: 22.3628692 | H193: 85 | I193: 17.93248945 | J193: 63 | K193: 13.29113924 | L193: 474 | M193: 100
A194: F24 | B194: 90 | C194: 18.18181818 | D194: 143 | E194: 28.88888889 | F194: 108 | G194: 21.81818182 | H194: 90 | I194: 18.18181818 | J194: 64 | K194: 12.92929293 | L194: 495 | M194: 100
A195: F25 | B195: 92 | C195: 19.45031712 | D195: 140 | E195: 29.59830867 | F195: 101 | G195: 21.35306554 | H195: 87 | I195: 18.39323467 | J195: 53 | K195: 11.205074 | L195: 473 | M195: 100
A196: F26 | B196: 79 | C196: 18.32946636 | D196: 123 | E196: 28.53828306 | F196: 101 | G196: 23.43387471 | H196: 93 | I196: 21.57772622 | J196: 35 | K196: 8.120649652 | L196: 431 | M196: 100
A197: F27 | B197: 80 | C197: 18.01801802 | D197: 95 | E197: 21.3963964 | F197: 123 | G197: 27.7027027 | H197: 109 | I197: 24.54954955 | J197: 37 | K197: 8.333333333 | L197: 444 | M197: 100
A198: F28 | B198: 102 | C198: 20.44088176 | D198: 101 | E198: 20.24048096 | F198: 134 | G198: 26.85370741 | H198: 119 | I198: 23.84769539 | J198: 43 | K198: 8.617234469 | L198: 499 | M198: 100
A199: F29 | B199: 117 | C199: 21.19565217 | D199: 137 | E199: 24.81884058 | F199: 121 | G199: 21.92028986 | H199: 120 | I199: 21.73913043 | J199: 57 | K199: 10.32608696 | L199: 552 | M199: 100
A200: F31 | B200: 64 | C200: 10.32258065 | D200: 46 | E200: 7.419354839 | F200: 141 | G200: 22.74193548 | H200: 342 | I200: 55.16129032 | J200: 27 | K200: 4.35483871 | L200: 620 | M200: 100
... 449 more rows

Sheet Data DCE2 (hidden)
A1: Lookup Code | B1: Baseline (2010-2011) | C1: % | D1: Year 1 (2011-2012) | E1: % | F1: Year 2 (2012-2013) | G1: % | H1: Year 3 (2013-2014) | I1: % | J1: Year 4 (2014-2015) | K1: % | L1: Year 5 (2015-2016) | M1: % | N1: Year 6 (2016-2017) | O1: % | P1: Year 7 (2017-2018) | Q1: % | R1: Year 8 (2018-2019) | S1: %
A2: A11 | B2: 264 | C2: 39.75903614 | D2: 255 | E2: 40.54054054 | F2: 250 | G2: 39.18495298 | H2: 267 | I2: 41.33126935 | J2: 267 | K2: 41.2037037 | L2: 282 | M2: 42.46987952 | N2: 313 | O2: 44.84240688 | P2: 282 | Q2: 42.15246637 | R2: 185 | S2: 33.21364452
A3: A12 | B3: 289 | C3: 43.52409639 | D3: 287 | E3: 45.62798092 | F3: 307 | G3: 48.11912226 | H3: 299 | I3: 46.28482972 | J3: 304 | K3: 46.91358025 | L3: 307 | M3: 46.23493976 | N3: 318 | O3: 45.55873926 | P3: 313 | Q3: 46.78624813 | R3: 247 | S3: 44.34470377
A4: A13 | B4: 49 | C4: 7.379518072 | D4: 36 | E4: 5.723370429 | F4: 43 | G4: 6.739811912 | H4: 36 | I4: 5.572755418 | J4: 26 | K4: 4.012345679 | L4: 28 | M4: 4.21686747 | N4: 34 | O4: 4.871060172 | P4: 34 | Q4: 5.082212257 | R4: 33 | S4: 5.92459605
A5: A14 | B5: 36 | C5: 5.421686747 | D5: 40 | E5: 6.359300477 | F5: 32 | G5: 5.015673981 | H5: 38 | I5: 5.882352941 | J5: 46 | K5: 7.098765432 | L5: 41 | M5: 6.174698795 | N5: 27 | O5: 3.868194842 | P5: 33 | Q5: 4.932735426 | R5: 34 | S5: 6.104129264
A6: A15 | B6: 26 | C6: 3.915662651 | D6: 11 | E6: 1.748807631 | F6: 6 | G6: 0.9404388715 | H6: 6 | I6: 0.9287925697 | J6: 5 | K6: 0.7716049383 | L6: 6 | M6: 0.9036144578 | N6: 6 | O6: 0.8595988539 | P6: 7 | Q6: 1.046337818 | R6: 58 | S6: 10.41292639
A7: A16 | B7: 664 | C7: 100 | D7: 629 | E7: 100 | F7: 638 | G7: 100 | H7: 646 | I7: 100 | J7: 648 | K7: 100 | L7: 664 | M7: 100 | N7: 698 | O7: 100 | P7: 669 | Q7: 100 | R7: 557 | S7: 100
A8: A21 | B8: 95 | C8: 18.81188119 | D8: 117 | E8: 22.6744186 | F8: 127 | G8: 23.64990689 | H8: 102 | I8: 19.35483871 | J8: 83 | K8: 16.14785992 | L8: 84 | M8: 16.31067961 | N8: 85 | O8: 15.97744361 | P8: 66 | Q8: 12.24489796 | R8: 54 | S8: 10.38461538
A9: A22 | B9: 116 | C9: 22.97029703 | D9: 131 | E9: 25.3875969 | F9: 143 | G9: 26.62942272 | H9: 146 | I9: 27.70398482 | J9: 140 | K9: 27.23735409 | L9: 148 | M9: 28.73786408 | N9: 155 | O9: 29.13533835 | P9: 143 | Q9: 26.53061224 | R9: 132 | S9: 25.38461538
A10: A23 | B10: 126 | C10: 24.95049505 | D10: 108 | E10: 20.93023256 | F10: 113 | G10: 21.04283054 | H10: 135 | I10: 25.61669829 | J10: 147 | K10: 28.59922179 | L10: 125 | M10: 24.27184466 | N10: 126 | O10: 23.68421053 | P10: 131 | Q10: 24.30426716 | R10: 107 | S10: 20.57692308
A11: A24 | B11: 109 | C11: 21.58415842 | D11: 119 | E11: 23.0620155 | F11: 114 | G11: 21.22905028 | H11: 103 | I11: 19.54459203 | J11: 102 | K11: 19.84435798 | L11: 116 | M11: 22.52427184 | N11: 128 | O11: 24.06015038 | P11: 134 | Q11: 24.86085343 | R11: 118 | S11: 22.69230769
A12: A25 | B12: 59 | C12: 11.68316832 | D12: 41 | E12: 7.945736434 | F12: 40 | G12: 7.448789572 | H12: 41 | I12: 7.779886148 | J12: 42 | K12: 8.171206226 | L12: 42 | M12: 8.155339806 | N12: 38 | O12: 7.142857143 | P12: 65 | Q12: 12.0593692 | R12: 109 | S12: 20.96153846
A13: A26 | B13: 505 | C13: 100 | D13: 516 | E13: 100 | F13: 537 | G13: 100 | H13: 527 | I13: 100 | J13: 514 | K13: 100 | L13: 515 | M13: 100 | N13: 532 | O13: 100 | P13: 539 | Q13: 100 | R13: 520 | S13: 100
A14: A31 | B14: 89 | C14: 13.48484848 | D14: 98 | E14: 13.76404494 | F14: 103 | G14: 13.5348226 | H14: 121 | I14: 14.95673671 | J14: 134 | K14: 17.07006369 | L14: 130 | M14: 18.05555556 | N14: 122 | O14: 17.20733427 | P14: 126 | Q14: 17.72151899 | R14: 132 | S14: 18.56540084
A15: A32 | B15: 36 | C15: 5.454545455 | D15: 42 | E15: 5.898876404 | F15: 67 | G15: 8.804204993 | H15: 68 | I15: 8.405438813 | J15: 67 | K15: 8.535031847 | L15: 69 | M15: 9.583333333 | N15: 68 | O15: 9.590973202 | P15: 56 | Q15: 7.876230661 | R15: 39 | S15: 5.485232068
A16: A33 | B16: 144 | C16: 21.81818182 | D16: 165 | E16: 23.1741573 | F16: 195 | G16: 25.62417871 | H16: 196 | I16: 24.22744129 | J16: 178 | K16: 22.67515924 | L16: 152 | M16: 21.11111111 | N16: 159 | O16: 22.42595205 | P16: 158 | Q16: 22.22222222 | R16: 155 | S16: 21.80028129
A17: A34 | B17: 323 | C17: 48.93939394 | D17: 320 | E17: 44.94382022 | F17: 340 | G17: 44.67805519 | H17: 384 | I17: 47.46600742 | J17: 348 | K17: 44.33121019 | L17: 309 | M17: 42.91666667 | N17: 316 | O17: 44.56981664 | P17: 335 | Q17: 47.11673699 | R17: 340 | S17: 47.81997187
A18: A35 | B18: 68 | C18: 10.3030303 | D18: 87 | E18: 12.21910112 | F18: 56 | G18: 7.358738502 | H18: 40 | I18: 4.944375773 | J18: 58 | K18: 7.388535032 | L18: 60 | M18: 8.333333333 | N18: 44 | O18: 6.205923836 | P18: 36 | Q18: 5.063291139 | R18: 45 | S18: 6.329113924
A19: A36 | B19: 660 | C19: 100 | D19: 712 | E19: 100 | F19: 761 | G19: 100 | H19: 809 | I19: 100 | J19: 785 | K19: 100 | L19: 720 | M19: 100 | N19: 709 | O19: 100 | P19: 711 | Q19: 100 | R19: 711 | S19: 100
A20: A41 | B20: 448 | C20: 24.49425916 | D20: 470 | E20: 25.3096392 | F20: 480 | G20: 24.79338843 | H20: 490 | I20: 24.72250252 | J20: 484 | K20: 24.85875706 | L20: 496 | M20: 26.11901001 | N20: 520 | O20: 26.8179474 | P20: 474 | Q20: 24.70036477 | R20: 371 | S20: 20.74944072
A21: A42 | B21: 441 | C21: 24.11153636 | D21: 460 | E21: 24.77113624 | F21: 517 | G21: 26.70454545 | H21: 513 | I21: 25.88294652 | J21: 511 | K21: 26.24550591 | L21: 524 | M21: 27.59347025 | N21: 541 | O21: 27.90097989 | P21: 512 | Q21: 26.68056279 | R21: 418 | S21: 23.37807606
A22: A43 | B22: 319 | C22: 17.44122471 | D22: 309 | E22: 16.63974152 | F22: 351 | G22: 18.13016529 | H22: 367 | I22: 18.51664985 | J22: 351 | K22: 18.02773498 | L22: 305 | M22: 16.06108478 | N22: 319 | O22: 16.45177927 | P22: 323 | Q22: 16.83168317 | R22: 295 | S22: 16.49888143
A23: A44 | B23: 468 | C23: 25.58775287 | D23: 479 | E23: 25.79429187 | F23: 486 | G23: 25.10330579 | H23: 525 | I23: 26.48839556 | J23: 496 | K23: 25.47508988 | L23: 466 | M23: 24.53923117 | N23: 471 | O23: 24.29087158 | P23: 502 | Q23: 26.15945805 | R23: 492 | S23: 27.51677852
A24: A45 | B24: 153 | C24: 8.3652269 | D24: 139 | E24: 7.485191169 | F24: 102 | G24: 5.268595041 | H24: 87 | I24: 4.38950555 | J24: 105 | K24: 5.392912173 | L24: 108 | M24: 5.687203791 | N24: 88 | O24: 4.538421867 | P24: 108 | Q24: 5.627931214 | R24: 212 | S24: 11.85682327
A25: A46 | B25: 1829 | C25: 100 | D25: 1857 | E25: 100 | F25: 1936 | G25: 100 | H25: 1982 | I25: 100 | J25: 1947 | K25: 100 | L25: 1899 | M25: 100 | N25: 1939 | O25: 100 | P25: 1919 | Q25: 100 | R25: 1788 | S25: 100
A26: B11 | B26: 93 | C26: 41.15044248 | D26: 82 | E26: 36.93693694 | F26: 52 | G26: 30.05780347 | H26: 96 | I26: 43.83561644 | J26: 89 | K26: 43.41463415 | L26: 67 | M26: 38.50574713 | N26: 94 | O26: 41.59292035 | P26: 89 | Q26: 39.73214286 | R26: 66 | S26: 37.28813559
A27: B12 | B27: 106 | C27: 46.90265487 | D27: 104 | E27: 46.84684685 | F27: 82 | G27: 47.39884393 | H27: 99 | I27: 45.20547945 | J27: 90 | K27: 43.90243902 | L27: 81 | M27: 46.55172414 | N27: 101 | O27: 44.69026549 | P27: 99 | Q27: 44.19642857 | R27: 83 | S27: 46.89265537
A28: B13 | B28: 19 | C28: 8.407079646 | D28: 28 | E28: 12.61261261 | F28: 29 | G28: 16.76300578 | H28: 16 | I28: 7.305936073 | J28: 16 | K28: 7.804878049 | L28: 14 | M28: 8.045977011 | N28: 15 | O28: 6.637168142 | P28: 15 | Q28: 6.696428571 | R28: 16 | S28: 9.039548023
A29: B14 | B29: 8 | C29: 3.539823009 | D29: 8 | E29: 3.603603604 | F29: 9 | G29: 5.202312139 | H29: 5 | I29: 2.283105023 | J29: 5 | K29: 2.43902439 | L29: 9 | M29: 5.172413793 | N29: 14 | O29: 6.194690265 | P29: 16 | Q29: 7.142857143 | R29: 8 | S29: 4.519774011
A30: B15 | B30: 0 | C30: 0.0% | D30: 0 | E30: 0.0% | F30: 1 | G30: 0.5780346821 | H30: 3 | I30: 1.369863014 | J30: 5 | K30: 2.43902439 | L30: 3 | M30: 1.724137931 | N30: 2 | O30: 0.8849557522 | P30: 5 | Q30: 2.232142857 | R30: 4 | S30: 2.259887006
A31: B16 | B31: 226 | C31: 100 | D31: 222 | E31: 100 | F31: 173 | G31: 100 | H31: 219 | I31: 100 | J31: 205 | K31: 100 | L31: 174 | M31: 100 | N31: 226 | O31: 100 | P31: 224 | Q31: 100 | R31: 177 | S31: 100
A32: B21 | B32: 40 | C32: 19.7044335 | D32: 26 | E32: 16.25 | F32: 28 | G32: 16.47058824 | H32: 40 | I32: 21.97802198 | J32: 25 | K32: 15.33742331 | L32: 23 | M32: 12.92134831 | N32: 25 | O32: 13.29787234 | P32: 25 | Q32: 13.22751323 | R32: 25 | S32: 14.36781609
A33: B22 | B33: 53 | C33: 26.10837438 | D33: 46 | E33: 28.75 | F33: 51 | G33: 30 | H33: 46 | I33: 25.27472527 | J33: 44 | K33: 26.99386503 | L33: 44 | M33: 24.71910112 | N33: 49 | O33: 26.06382979 | P33: 56 | Q33: 29.62962963 | R33: 47 | S33: 27.01149425
A34: B23 | B34: 55 | C34: 27.09359606 | D34: 40 | E34: 25 | F34: 40 | G34: 23.52941176 | H34: 46 | I34: 25.27472527 | J34: 44 | K34: 26.99386503 | L34: 50 | M34: 28.08988764 | N34: 61 | O34: 32.44680851 | P34: 54 | Q34: 28.57142857 | R34: 34 | S34: 19.54022989
A35: B24 | B35: 33 | C35: 16.25615764 | D35: 34 | E35: 21.25 | F35: 35 | G35: 20.58823529 | H35: 31 | I35: 17.03296703 | J35: 33 | K35: 20.24539877 | L35: 49 | M35: 27.52808989 | N35: 42 | O35: 22.34042553 | P35: 40 | Q35: 21.16402116 | R35: 47 | S35: 27.01149425
A36: B25 | B36: 22 | C36: 10.83743842 | D36: 14 | E36: 8.75 | F36: 16 | G36: 9.411764706 | H36: 19 | I36: 10.43956044 | J36: 17 | K36: 10.42944785 | L36: 12 | M36: 6.741573034 | N36: 11 | O36: 5.85106383 | P36: 14 | Q36: 7.407407407 | R36: 21 | S36: 12.06896552
A37: B26 | B37: 203 | C37: 100 | D37: 160 | E37: 100 | F37: 170 | G37: 100 | H37: 182 | I37: 100 | J37: 163 | K37: 100 | L37: 178 | M37: 100 | N37: 188 | O37: 100 | P37: 189 | Q37: 100 | R37: 174 | S37: 100
A38: B31 | B38: 24 | C38: 14.03508772 | D38: 22 | E38: 13.17365269 | F38: 23 | G38: 14.46540881 | H38: 28 | I38: 16.1849711 | J38: 25 | K38: 15.33742331 | L38: 25 | M38: 16.55629139 | N38: 28 | O38: 14.58333333 | P38: 27 | Q38: 12.44239631 | R38: 36 | S38: 18
A39: B32 | B39: 17 | C39: 9.941520468 | D39: 15 | E39: 8.982035928 | F39: 10 | G39: 6.289308176 | H39: 15 | I39: 8.670520231 | J39: 19 | K39: 11.65644172 | L39: 17 | M39: 11.25827815 | N39: 14 | O39: 7.291666667 | P39: 14 | Q39: 6.451612903 | R39: 12 | S39: 6
A40: B33 | B40: 44 | C40: 25.73099415 | D40: 50 | E40: 29.94011976 | F40: 47 | G40: 29.55974843 | H40: 52 | I40: 30.05780347 | J40: 46 | K40: 28.2208589 | L40: 37 | M40: 24.50331126 | N40: 53 | O40: 27.60416667 | P40: 59 | Q40: 27.18894009 | R40: 41 | S40: 20.5
A41: B34 | B41: 65 | C41: 38.01169591 | D41: 79 | E41: 47.30538922 | F41: 78 | G41: 49.05660377 | H41: 74 | I41: 42.77456647 | J41: 68 | K41: 41.71779141 | L41: 70 | M41: 46.35761589 | N41: 95 | O41: 49.47916667 | P41: 105 | Q41: 48.38709677 | R41: 95 | S41: 47.5
A42: B35 | B42: 21 | C42: 12.28070175 | D42: 1 | E42: 0.5988023952 | F42: 1 | G42: 0.6289308176 | H42: 4 | I42: 2.312138728 | J42: 5 | K42: 3.067484663 | L42: 2 | M42: 1.324503311 | N42: 2 | O42: 1.041666667 | P42: 12 | Q42: 5.529953917 | R42: 16 | S42: 8
A43: B36 | B43: 171 | C43: 100 | D43: 167 | E43: 100 | F43: 159 | G43: 100 | H43: 173 | I43: 100 | J43: 163 | K43: 100 | L43: 151 | M43: 100 | N43: 192 | O43: 100 | P43: 217 | Q43: 100 | R43: 200 | S43: 100
A44: B41 | B44: 157 | C44: 26.16666667 | D44: 130 | E44: 23.67941712 | F44: 103 | G44: 20.51792829 | H44: 164 | I44: 28.57142857 | J44: 139 | K44: 26.17702448 | L44: 115 | M44: 22.86282306 | N44: 147 | O44: 24.25742574 | P44: 141 | Q44: 22.38095238 | R44: 127 | S44: 23.04900181
A45: B42 | B45: 176 | C45: 29.33333333 | D45: 165 | E45: 30.05464481 | F45: 143 | G45: 28.48605578 | H45: 160 | I45: 27.87456446 | J45: 153 | K45: 28.81355932 | L45: 142 | M45: 28.2306163 | N45: 164 | O45: 27.06270627 | P45: 169 | Q45: 26.82539683 | R45: 142 | S45: 25.77132486
A46: B43 | B46: 118 | C46: 19.66666667 | D46: 118 | E46: 21.49362477 | F46: 116 | G46: 23.10756972 | H46: 114 | I46: 19.86062718 | J46: 106 | K46: 19.96233522 | L46: 101 | M46: 20.07952286 | N46: 129 | O46: 21.28712871 | P46: 128 | Q46: 20.31746032 | R46: 91 | S46: 16.5154265
A47: B44 | B47: 106 | C47: 17.66666667 | D47: 121 | E47: 22.04007286 | F47: 122 | G47: 24.30278884 | H47: 110 | I47: 19.16376307 | J47: 106 | K47: 19.96233522 | L47: 128 | M47: 25.4473161 | N47: 151 | O47: 24.91749175 | P47: 161 | Q47: 25.55555556 | R47: 150 | S47: 27.22323049
A48: B45 | B48: 43 | C48: 7.166666667 | D48: 15 | E48: 2.732240437 | F48: 18 | G48: 3.585657371 | H48: 26 | I48: 4.529616725 | J48: 27 | K48: 5.084745763 | L48: 17 | M48: 3.37972167 | N48: 15 | O48: 2.475247525 | P48: 31 | Q48: 4.920634921 | R48: 41 | S48: 7.441016334
A49: B46 | B49: 600 | C49: 100 | D49: 549 | E49: 100 | F49: 502 | G49: 100 | H49: 574 | I49: 100 | J49: 531 | K49: 100 | L49: 503 | M49: 100 | N49: 606 | O49: 100 | P49: 630 | Q49: 100 | R49: 551 | S49: 100
A50: C11 | B50: 828 | C50: 38.90977444 | D50: 813 | E50: 38.31291235 | F50: 874 | G50: 39.9086758 | H50: 889 | I50: 41.19555144 | J50: 876 | K50: 40.74418605 | L50: 928 | M50: 40.20797227 | N50: 927 | O50: 40.48034934 | P50: 926 | Q50: 41.69293111 | R50: 907 | S50: 41.34001823
A51: C12 | B51: 917 | C51: 43.09210526 | D51: 914 | E51: 43.07257304 | F51: 922 | G51: 42.10045662 | H51: 935 | I51: 43.32715477 | J51: 978 | K51: 45.48837209 | L51: 1051 | M51: 45.5372617 | N51: 1022 | O51: 44.62882096 | P51: 1002 | Q51: 45.11481315 | R51: 989 | S51: 45.07748405
A52: C13 | B52: 146 | C52: 6.860902256 | D52: 152 | E52: 7.163053723 | F52: 190 | G52: 8.675799087 | H52: 179 | I52: 8.294717331 | J52: 147 | K52: 6.837209302 | L52: 157 | M52: 6.802426343 | N52: 178 | O52: 7.772925764 | P52: 156 | Q52: 7.023863125 | R52: 126 | S52: 5.742935278
A53: C14 | B53: 82 | C53: 3.853383459 | D53: 91 | E53: 4.288407163 | F53: 104 | G53: 4.748858447 | H53: 100 | I53: 4.633920297 | J53: 109 | K53: 5.069767442 | L53: 118 | M53: 5.112651646 | N53: 109 | O53: 4.759825328 | P53: 94 | Q53: 4.23232778 | R53: 79 | S53: 3.600729262
A54: C15 | B54: 155 | C54: 7.283834586 | D54: 152 | E54: 7.163053723 | F54: 100 | G54: 4.566210046 | H54: 55 | I54: 2.548656163 | J54: 40 | K54: 1.860465116 | L54: 54 | M54: 2.339688042 | N54: 54 | O54: 2.358078603 | P54: 43 | Q54: 1.936064836 | R54: 93 | S54: 4.238833181
A55: C16 | B55: 2128 | C55: 100 | D55: 2122 | E55: 100 | F55: 2190 | G55: 100 | H55: 2158 | I55: 100 | J55: 2150 | K55: 100 | L55: 2308 | M55: 100 | N55: 2290 | O55: 100 | P55: 2221 | Q55: 100 | R55: 2194 | S55: 100
A56: C21 | B56: 292 | C56: 15.93016912 | D56: 290 | E56: 15.96037424 | F56: 269 | G56: 15.41547278 | H56: 236 | I56: 14.14020371 | J56: 213 | K56: 12.07482993 | L56: 242 | M56: 12.9898014 | N56: 267 | O56: 14.7107438 | P56: 277 | Q56: 15.05434783 | R56: 297 | S56: 15.68938193
A57: C22 | B57: 485 | C57: 26.45935625 | D57: 463 | E57: 25.48156302 | F57: 465 | G57: 26.64756447 | H57: 458 | I57: 27.44158179 | J57: 478 | K57: 27.09750567 | L57: 504 | M57: 27.0531401 | N57: 477 | O57: 26.28099174 | P57: 479 | Q57: 26.0326087 | R57: 498 | S57: 26.30744849
A58: C23 | B58: 448 | C58: 24.44080742 | D58: 441 | E58: 24.270776 | F58: 466 | G58: 26.70487106 | H58: 420 | I58: 25.16476932 | J58: 440 | K58: 24.94331066 | L58: 442 | M58: 23.72517445 | N58: 415 | O58: 22.86501377 | P58: 459 | Q58: 24.94565217 | R58: 503 | S58: 26.5715795
A59: C24 | B59: 325 | C59: 17.73049645 | D59: 358 | E59: 19.70280682 | F59: 358 | G59: 20.51575931 | H59: 355 | I59: 21.27022169 | J59: 398 | K59: 22.56235828 | L59: 426 | M59: 22.86634461 | N59: 412 | O59: 22.69972452 | P59: 406 | Q59: 22.06521739 | R59: 393 | S59: 20.76069731
A60: C25 | B60: 283 | C60: 15.43917076 | D60: 265 | E60: 14.58447991 | F60: 187 | G60: 10.71633238 | H60: 200 | I60: 11.98322349 | J60: 235 | K60: 13.32199546 | L60: 249 | M60: 13.36553945 | N60: 244 | O60: 13.44352617 | P60: 219 | Q60: 11.90217391 | R60: 202 | S60: 10.67089276
A61: C26 | B61: 1833 | C61: 100 | D61: 1817 | E61: 100 | F61: 1745 | G61: 100 | H61: 1669 | I61: 100 | J61: 1764 | K61: 100 | L61: 1863 | M61: 100 | N61: 1815 | O61: 100 | P61: 1840 | Q61: 100 | R61: 1893 | S61: 100
A62: C31 | B62: 208 | C62: 10.93585699 | D62: 241 | E62: 12.36531555 | F62: 256 | G62: 12.60462826 | H62: 268 | I62: 12.65344665 | J62: 300 | K62: 13.94700139 | L62: 308 | M62: 14.75802587 | N62: 266 | O62: 12.91889267 | P62: 301 | Q62: 13.87096774 | R62: 367 | S62: 16.29662522
A63: C32 | B63: 133 | C63: 6.992639327 | D63: 137 | E63: 7.029245767 | F63: 152 | G63: 7.483998031 | H63: 181 | I63: 8.545797923 | J63: 176 | K63: 8.182240818 | L63: 145 | M63: 6.947771921 | N63: 131 | O63: 6.362311802 | P63: 150 | Q63: 6.912442396 | R63: 163 | S63: 7.238010657
A64: C33 | B64: 444 | C64: 23.34384858 | D64: 449 | E64: 23.03745511 | F64: 472 | G64: 23.23978336 | H64: 501 | I64: 23.65439093 | J64: 471 | K64: 21.89679219 | L64: 439 | M64: 21.03497844 | N64: 398 | O64: 19.32977173 | P64: 426 | Q64: 19.63133641 | R64: 464 | S64: 20.60390764
A65: C34 | B65: 1003 | C65: 52.73396425 | D65: 1035 | E65: 53.10415598 | F65: 1064 | G65: 52.38798621 | H65: 1076 | I65: 50.802644 | J65: 1118 | K65: 51.9758252 | L65: 1085 | M65: 51.98850024 | N65: 1019 | O65: 49.49004371 | P65: 1022 | Q65: 47.09677419 | R65: 1080 | S65: 47.95737123
A66: C35 | B66: 114 | C66: 5.993690852 | D66: 87 | E66: 4.463827604 | F66: 87 | G66: 4.283604136 | H66: 92 | I66: 4.343720491 | J66: 86 | K66: 3.9981404 | L66: 110 | M66: 5.270723527 | N66: 245 | O66: 11.89898009 | P66: 271 | Q66: 12.48847926 | R66: 178 | S66: 7.904085258
A67: C36 | B67: 1902 | C67: 100 | D67: 1949 | E67: 100 | F67: 2031 | G67: 100 | H67: 2118 | I67: 100 | J67: 2151 | K67: 100 | L67: 2087 | M67: 100 | N67: 2059 | O67: 100 | P67: 2170 | Q67: 100 | R67: 2252 | S67: 100
A68: C41 | B68: 1328 | C68: 22.65052021 | D68: 1344 | E68: 22.82608696 | F68: 1399 | G68: 23.44954744 | H68: 1393 | I68: 23.431455 | J68: 1389 | K68: 22.90189613 | L68: 1478 | M68: 23.61776926 | N68: 1460 | O68: 23.68591823 | P68: 1504 | Q68: 24.13737763 | R68: 1571 | S68: 24.78308882
A69: C42 | B69: 1535 | C69: 26.18113594 | D69: 1514 | E69: 25.71331522 | F69: 1539 | G69: 25.79617834 | H69: 1574 | I69: 26.47603028 | J69: 1632 | K69: 26.90849134 | L69: 1700 | M69: 27.16522851 | N69: 1630 | O69: 26.44386762 | P69: 1631 | Q69: 26.17557374 | R69: 1650 | S69: 26.02934217
A70: C43 | B70: 1038 | C70: 17.70424697 | D70: 1042 | E70: 17.69701087 | F70: 1128 | G70: 18.90714046 | H70: 1100 | I70: 18.50294365 | J70: 1058 | K70: 17.44435284 | L70: 1038 | M70: 16.58676894 | N70: 991 | O70: 16.07722258 | P70: 1041 | Q70: 16.70678864 | R70: 1093 | S70: 17.24246727
A71: C44 | B71: 1410 | C71: 24.04912161 | D71: 1484 | E71: 25.20380435 | F71: 1526 | G71: 25.5782769 | H71: 1531 | I71: 25.75273339 | J71: 1625 | K71: 26.79307502 | L71: 1629 | M71: 26.03068073 | N71: 1540 | O71: 24.98377677 | P71: 1522 | Q71: 24.42625582 | R71: 1552 | S71: 24.483357
A72: C45 | B72: 552 | C72: 9.414975269 | D72: 504 | E72: 8.559782609 | F72: 374 | G72: 6.268856856 | H72: 347 | I72: 5.836837679 | J72: 361 | K72: 5.952184666 | L72: 413 | M72: 6.599552573 | N72: 543 | O72: 8.809214796 | P72: 533 | Q72: 8.554004173 | R72: 473 | S72: 7.461744755
A73: C46 | B73: 5863 | C73: 100 | D73: 5888 | E73: 100 | F73: 5966 | G73: 100 | H73: 5945 | I73: 100 | J73: 6065 | K73: 100 | L73: 6258 | M73: 100 | N73: 6164 | O73: 100 | P73: 6231 | Q73: 100 | R73: 6339 | S73: 100
A74: D11 | B74: 882 | C74: 39.46308725 | D74: 970 | E74: 40.60276266 | F74: 928 | G74: 40.22540095 | H74: 987 | I74: 42.26980728 | J74: 1030 | K74: 42.80964256 | L74: 984 | M74: 42.01537148 | N74: 976 | O74: 41.40857022 | P74: 1019 | Q74: 41.27176995 | R74: 1024 | S74: 41.45748988
A75: D12 | B75: 1003 | C75: 44.87695749 | D75: 1053 | E75: 44.07701967 | F75: 999 | G75: 43.3029909 | H75: 1015 | I75: 43.46895075 | J75: 1049 | K75: 43.599335 | L75: 1023 | M75: 43.68061486 | N75: 1043 | O75: 44.25116674 | P75: 1117 | Q75: 45.24098825 | R75: 1131 | S75: 45.78947368
A76: D13 | B76: 185 | C76: 8.277404922 | D76: 187 | E76: 7.827542905 | F76: 191 | G76: 8.279150412 | H76: 184 | I76: 7.880085653 | J76: 194 | K76: 8.063175395 | L76: 187 | M76: 7.984628523 | N76: 196 | O76: 8.315655494 | P76: 190 | Q76: 7.695423248 | R76: 164 | S76: 6.639676113
A77: D14 | B77: 104 | C77: 4.653243848 | D77: 118 | E77: 4.939305149 | F77: 122 | G77: 5.288253143 | H77: 100 | I77: 4.282655246 | J77: 98 | K77: 4.073150457 | L77: 120 | M77: 5.12382579 | N77: 118 | O77: 5.006364022 | P77: 118 | Q77: 4.779262859 | R77: 127 | S77: 5.141700405
A78: D15 | B78: 61 | C78: 2.729306488 | D78: 61 | E78: 2.553369611 | F78: 67 | G78: 2.904204595 | H78: 49 | I78: 2.098501071 | J78: 35 | K78: 1.454696592 | L78: 28 | M78: 1.195559351 | N78: 24 | O78: 1.01824353 | P78: 25 | Q78: 1.012555691 | R78: 24 | S78: 0.971659919
A79: D16 | B79: 2235 | C79: 100 | D79: 2389 | E79: 100 | F79: 2307 | G79: 100 | H79: 2335 | I79: 100 | J79: 2406 | K79: 100 | L79: 2342 | M79: 100 | N79: 2357 | O79: 100 | P79: 2469 | Q79: 100 | R79: 2470 | S79: 100
A80: D21 | B80: 350 | C80: 17.24987679 | D80: 324 | E80: 16.44670051 | F80: 339 | G80: 17.41140216 | H80: 356 | I80: 18.41696844 | J80: 332 | K80: 17.7540107 | L80: 291 | M80: 16.22978249 | N80: 292 | O80: 16.39528355 | P80: 337 | Q80: 18.07939914 | R80: 372 | S80: 18.92166836
A81: D22 | B81: 524 | C81: 25.82552982 | D81: 532 | E81: 27.00507614 | F81: 526 | G81: 27.01592193 | H81: 512 | I81: 26.4873254 | J81: 514 | K81: 27.48663102 | L81: 463 | M81: 25.82264361 | N81: 428 | O81: 24.03144301 | P81: 443 | Q81: 23.76609442 | R81: 474 | S81: 24.10986775
A82: D23 | B82: 491 | C82: 24.19911286 | D82: 455 | E82: 23.0964467 | F82: 439 | G82: 22.54750899 | H82: 441 | I82: 22.81427832 | J82: 443 | K82: 23.68983957 | L82: 445 | M82: 24.81873954 | N82: 463 | O82: 25.99663111 | P82: 455 | Q82: 24.40987124 | R82: 450 | S82: 22.88911495
A83: D24 | B83: 447 | C83: 22.03055692 | D83: 434 | E83: 22.03045685 | F83: 408 | G83: 20.95531587 | H83: 440 | I83: 22.76254527 | J83: 411 | K83: 21.97860963 | L83: 400 | M83: 22.30897936 | N83: 407 | O83: 22.85233015 | P83: 434 | Q83: 23.2832618 | R83: 461 | S83: 23.44862665
A84: D25 | B84: 217 | C84: 10.69492361 | D84: 225 | E84: 11.4213198 | F84: 235 | G84: 12.06985105 | H84: 184 | I84: 9.518882566 | J84: 170 | K84: 9.090909091 | L84: 194 | M84: 10.81985499 | N84: 191 | O84: 10.72431218 | P84: 195 | Q84: 10.46137339 | R84: 209 | S84: 10.63072228
A85: D26 | B85: 2029 | C85: 100 | D85: 1970 | E85: 100 | F85: 1947 | G85: 100 | H85: 1933 | I85: 100 | J85: 1870 | K85: 100 | L85: 1793 | M85: 100 | N85: 1781 | O85: 100 | P85: 1864 | Q85: 100 | R85: 1966 | S85: 100
A86: D31 | B86: 325 | C86: 13.91267123 | D86: 376 | E86: 15.58872305 | F86: 408 | G86: 16.91542289 | H86: 432 | I86: 17.5538399 | J86: 469 | K86: 19.27661323 | L86: 452 | M86: 19.4743645 | N86: 443 | O86: 18.52781263 | P86: 476 | Q86: 18.93396977 | R86: 476 | S86: 18.4139265
A87: D32 | B87: 194 | C87: 8.304794521 | D87: 205 | E87: 8.499170813 | F87: 200 | G87: 8.291873964 | H87: 207 | I87: 8.411214953 | J87: 209 | K87: 8.590217838 | L87: 197 | M87: 8.48772081 | N87: 176 | O87: 7.360936847 | P87: 169 | Q87: 6.722354813 | R87: 194 | S87: 7.50483559
A88: D33 | B88: 561 | C88: 24.01541096 | D88: 577 | E88: 23.92205638 | F88: 555 | G88: 23.00995025 | H88: 568 | I88: 23.08004876 | J88: 542 | K88: 22.27702425 | L88: 517 | M88: 22.27488152 | N88: 570 | O88: 23.83939774 | P88: 596 | Q88: 23.70723946 | R88: 593 | S88: 22.94003868
A89: D34 | B89: 1152 | C89: 49.31506849 | D89: 1167 | E89: 48.38308458 | F89: 1173 | G89: 48.6318408 | H89: 1176 | I89: 47.78545307 | J89: 1097 | K89: 45.08836827 | L89: 1033 | M89: 44.50667816 | N89: 1076 | O89: 45.00209118 | P89: 1135 | Q89: 45.14717582 | R89: 1181 | S89: 45.68665377
A90: D35 | B90: 104 | C90: 4.452054795 | D90: 87 | E90: 3.606965174 | F90: 76 | G90: 3.150912106 | H90: 78 | I90: 3.169443316 | J90: 116 | K90: 4.767776408 | L90: 122 | M90: 5.256355019 | N90: 126 | O90: 5.269761606 | P90: 138 | Q90: 5.489260143 | R90: 141 | S90: 5.454545455
A91: D36 | B91: 2336 | C91: 100 | D91: 2412 | E91: 100 | F91: 2412 | G91: 100 | H91: 2461 | I91: 100 | J91: 2433 | K91: 100 | L91: 2321 | M91: 100 | N91: 2391 | O91: 100 | P91: 2514 | Q91: 100 | R91: 2585 | S91: 100
A92: D41 | B92: 1557 | C92: 23.59090909 | D92: 1670 | E92: 24.66400827 | F92: 1675 | G92: 25.12751275 | H92: 1775 | I92: 26.37836231 | J92: 1831 | K92: 27.29169772 | L92: 1727 | M92: 26.75030979 | N92: 1711 | O92: 26.20615715 | P92: 1832 | Q92: 26.75624361 | R92: 1872 | S92: 26.66286854
A93: D42 | B93: 1721 | C93: 26.07575758 | D93: 1790 | E93: 26.43627234 | F93: 1725 | G93: 25.87758776 | H93: 1734 | I93: 25.7690593 | J93: 1772 | K93: 26.41228201 | L93: 1683 | M93: 26.06877323 | N93: 1647 | O93: 25.22591515 | P93: 1729 | Q93: 25.25193515 | R93: 1799 | S93: 25.62313061
A94: D43 | B94: 1237 | C94: 18.74242424 | D94: 1219 | E94: 18.00324915 | F94: 1185 | G94: 17.77677768 | H94: 1193 | I94: 17.72923168 | J94: 1179 | K94: 17.57340885 | L94: 1149 | M94: 17.79739777 | N94: 1229 | O94: 18.8237096 | P94: 1241 | Q94: 18.12472616 | R94: 1207 | S94: 17.19128329
A95: D44 | B95: 1703 | C95: 25.8030303 | D95: 1719 | E95: 25.38768276 | F95: 1703 | G95: 25.54755476 | H95: 1716 | I95: 25.50156041 | J95: 1606 | K95: 23.93799374 | L95: 1553 | M95: 24.0551425 | N95: 1601 | O95: 24.52136621 | P95: 1687 | Q95: 24.63852782 | R95: 1769 | S95: 25.19584105
A96: D45 | B96: 382 | C96: 5.787878788 | D96: 373 | E96: 5.508787476 | F96: 378 | G96: 5.670567057 | H96: 311 | I96: 4.621786298 | J96: 321 | K96: 4.784617678 | L96: 344 | M96: 5.328376704 | N96: 341 | O96: 5.222851892 | P96: 358 | Q96: 5.228567256 | R96: 374 | S96: 5.326876513
A97: D46 | B97: 6600 | C97: 100 | D97: 6771 | E97: 100 | F97: 6666 | G97: 100 | H97: 6729 | I97: 100 | J97: 6709 | K97: 100 | L97: 6456 | M97: 100 | N97: 6529 | O97: 100 | P97: 6847 | Q97: 100 | R97: 7021 | S97: 100
A98: E11 | B98: 1474 | C98: 38.23605707 | D98: 1558 | E98: 39.38321537 | F98: 1576 | G98: 38.875185 | H98: 1601 | I98: 39.58951533 | J98: 1632 | K98: 40.42605895 | L98: 1618 | M98: 40.95165781 | N98: 1599 | O98: 40.71810542 | P98: 1618 | Q98: 39.19573643 | R98: 1568 | S98: 37.52093802
A99: E12 | B99: 1699 | C99: 44.07263294 | D99: 1792 | E99: 45.29828109 | F99: 1835 | G99: 45.26393685 | H99: 1796 | I99: 44.41147379 | J99: 1808 | K99: 44.78573198 | L99: 1745 | M99: 44.16603392 | N99: 1739 | O99: 44.28316781 | P99: 1933 | Q99: 46.82655039 | R99: 1956 | S99: 46.80545585
A100: E13 | B100: 269 | C100: 6.977950713 | D100: 271 | E100: 6.850353893 | F100: 366 | G100: 9.028120375 | H100: 374 | I100: 9.248269041 | J100: 321 | K100: 7.951449096 | L100: 312 | M100: 7.896735004 | N100: 336 | O100: 8.556149733 | P100: 315 | Q100: 7.630813953 | R100: 297 | S100: 7.106963388
A101: E14 | B101: 264 | C101: 6.848249027 | D101: 269 | E101: 6.799797776 | F101: 236 | G101: 5.821410952 | H101: 245 | I101: 6.058358061 | J101: 252 | K101: 6.242259103 | L101: 253 | M101: 6.403442167 | N101: 229 | O101: 5.831423478 | P101: 240 | Q101: 5.813953488 | R101: 234 | S101: 5.5994257
A102: E15 | B102: 149 | C102: 3.865110246 | D102: 66 | E102: 1.668351871 | F102: 41 | G102: 1.011346818 | H102: 28 | I102: 0.6923837784 | J102: 24 | K102: 0.594500867 | L102: 23 | M102: 0.582131106 | N102: 24 | O102: 0.6111535523 | P102: 22 | Q102: 0.5329457364 | R102: 124 | S102: 2.967217038
A103: E16 | B103: 3855 | C103: 100 | D103: 3956 | E103: 100 | F103: 4054 | G103: 100 | H103: 4044 | I103: 100 | J103: 4037 | K103: 100 | L103: 3951 | M103: 100 | N103: 3927 | O103: 100 | P103: 4128 | Q103: 100 | R103: 4179 | S103: 100
A104: E21 | B104: 619 | C104: 19.27748365 | D104: 643 | E104: 19.85180611 | F104: 605 | G104: 19.42215088 | H104: 544 | I104: 17.78358941 | J104: 476 | K104: 15.81920904 | L104: 463 | M104: 15.72690217 | N104: 484 | O104: 16.0690571 | P104: 499 | Q104: 16.41987496 | R104: 526 | S104: 17.10013004
A105: E22 | B105: 801 | C105: 24.94549984 | D105: 787 | E105: 24.29762272 | F105: 754 | G105: 24.20545746 | H105: 773 | I105: 25.26969598 | J105: 766 | K105: 25.45696245 | L105: 746 | M105: 25.33967391 | N105: 750 | O105: 24.90039841 | P105: 696 | Q105: 22.90227048 | R105: 698 | S105: 22.69180754
A106: E23 | B106: 744 | C106: 23.17035192 | D106: 741 | E106: 22.87743131 | F106: 711 | G106: 22.82504013 | H106: 780 | I106: 25.49852893 | J106: 819 | K106: 27.21834497 | L106: 776 | M106: 26.35869565 | N106: 789 | O106: 26.19521912 | P106: 779 | Q106: 25.63343205 | R106: 758 | S106: 24.64239272
A107: E24 | B107: 500 | C107: 15.57147306 | D107: 653 | E107: 20.16054338 | F107: 720 | G107: 23.11396469 | H107: 722 | I107: 23.60248447 | J107: 723 | K107: 24.02791625 | L107: 726 | M107: 24.66032609 | N107: 762 | O107: 25.29880478 | P107: 767 | Q107: 25.23856532 | R107: 713 | S107: 23.17945384
A108: E25 | B108: 547 | C108: 17.03519153 | D108: 415 | E108: 12.81259648 | F108: 325 | G108: 10.43338684 | H108: 240 | I108: 7.84570121 | J108: 225 | K108: 7.477567298 | L108: 233 | M108: 7.914402174 | N108: 227 | O108: 7.536520584 | P108: 298 | Q108: 9.80585719 | R108: 381 | S108: 12.38621586
A109: E26 | B109: 3211 | C109: 100 | D109: 3239 | E109: 100 | F109: 3115 | G109: 100 | H109: 3059 | I109: 100 | J109: 3009 | K109: 100 | L109: 2944 | M109: 100 | N109: 3012 | O109: 100 | P109: 3039 | Q109: 100 | R109: 3076 | S109: 100
A110: E31 | B110: 603 | C110: 13.70454545 | D110: 731 | E110: 15.36682783 | F110: 819 | G110: 16.62606577 | H110: 885 | I110: 17.49011858 | J110: 944 | K110: 18.84231537 | L110: 921 | M110: 19.2476489 | N110: 901 | O110: 19.05265384 | P110: 883 | Q110: 19.22909408 | R110: 973 | S110: 20.28351053
A111: E32 | B111: 303 | C111: 6.886363636 | D111: 354 | E111: 7.441664915 | F111: 454 | G111: 9.216402761 | H111: 463 | I111: 9.150197628 | J111: 465 | K111: 9.281437126 | L111: 455 | M111: 9.508881923 | N111: 423 | O111: 8.944808628 | P111: 373 | Q111: 8.1228223 | R111: 367 | S111: 7.650614968
A112: E33 | B112: 994 | C112: 22.59090909 | D112: 1101 | E112: 23.14483918 | F112: 1115 | G112: 22.63499797 | H112: 1120 | I112: 22.13438735 | J112: 1128 | K112: 22.51497006 | L112: 1040 | M112: 21.73458725 | N112: 1013 | O112: 21.42101924 | P112: 984 | Q112: 21.42857143 | R112: 1026 | S112: 21.38836773
A113: E34 | B113: 2122 | C113: 48.22727273 | D113: 2260 | E113: 47.5089342 | F113: 2288 | G113: 46.44742184 | H113: 2354 | I113: 46.52173913 | J113: 2209 | K113: 44.09181637 | L113: 2086 | M113: 43.59456635 | N113: 2135 | O113: 45.14696553 | P113: 2091 | Q113: 45.53571429 | R113: 2169 | S113: 45.21575985
A114: E35 | B114: 378 | C114: 8.590909091 | D114: 311 | E114: 6.537733866 | F114: 250 | G114: 5.075111652 | H114: 238 | I114: 4.703557312 | J114: 264 | K114: 5.269461078 | L114: 283 | M114: 5.914315569 | N114: 257 | O114: 5.43455276 | P114: 261 | Q114: 5.683797909 | R114: 262 | S114: 5.461746925
A115: E36 | B115: 4400 | C115: 100 | D115: 4757 | E115: 100 | F115: 4926 | G115: 100 | H115: 5060 | I115: 100 | J115: 5010 | K115: 100 | L115: 4785 | M115: 100 | N115: 4729 | O115: 100 | P115: 4592 | Q115: 100 | R115: 4797 | S115: 100
A116: E41 | B116: 2696 | C116: 23.51299494 | D116: 2932 | E116: 24.53145917 | F116: 3000 | G116: 24.80363787 | H116: 3030 | I116: 24.9116172 | J116: 3052 | K116: 25.31519575 | L116: 3002 | M116: 25.70205479 | N116: 2984 | O116: 25.57422009 | P116: 3000 | Q116: 25.5123735 | R116: 3067 | S116: 25.44805841
A117: E42 | B117: 2803 | C117: 24.44618873 | D117: 2933 | E117: 24.53982597 | F117: 3043 | G117: 25.15915668 | H117: 3032 | I117: 24.92806051 | J117: 3039 | K117: 25.20736563 | L117: 2946 | M117: 25.22260274 | N117: 2912 | O117: 24.95714775 | P117: 3002 | Q117: 25.52938175 | R117: 3021 | S117: 25.06637902
A118: E43 | B118: 2007 | C118: 17.50392465 | D118: 2113 | E118: 17.67904953 | F118: 2192 | G118: 18.1231914 | H118: 2274 | I118: 18.69604538 | J118: 2268 | K118: 18.81220969 | L118: 2128 | M118: 18.21917808 | N118: 2138 | O118: 18.32362016 | P118: 2078 | Q118: 17.67157071 | R118: 2081 | S118: 17.26684368
A119: E44 | B119: 2886 | C119: 25.17006803 | D119: 3182 | E119: 26.6231593 | F119: 3244 | G119: 26.82100041 | H119: 3321 | I119: 27.30411905 | J119: 3184 | K119: 26.41008626 | L119: 3065 | M119: 26.24143836 | N119: 3126 | O119: 26.79122386 | P119: 3098 | Q119: 26.3457777 | R119: 3116 | S119: 25.85462994
A120: E45 | B120: 1074 | C120: 9.366823653 | D120: 792 | E120: 6.626506024 | F120: 616 | G120: 5.093013642 | H120: 506 | I120: 4.160157856 | J120: 513 | K120: 4.255142668 | L120: 539 | M120: 4.614726027 | N120: 508 | O120: 4.353788138 | P120: 581 | Q120: 4.940896335 | R120: 767 | S120: 6.364088948
A121: E46 | B121: 11466 | C121: 100 | D121: 11952 | E121: 100 | F121: 12095 | G121: 100 | H121: 12163 | I121: 100 | J121: 12056 | K121: 100 | L121: 11680 | M121: 100 | N121: 11668 | O121: 100 | P121: 11759 | Q121: 100 | R121: 12052 | S121: 100
A122: F11 | B122: 243 | C122: 42.1875 | D122: 240 | E122: 40.20100503 | F122: 252 | G122: 42.21105528 | H122: 250 | I122: 42.73504274 | J122: 260 | K122: 44.44444444 | L122: 293 | M122: 46.21451104 | N122: 239 | O122: 39.50413223 | P122: 233 | Q122: 38.00978793 | R122: 270 | S122: 40.23845007
A123: F12 | B123: 253 | C123: 43.92361111 | D123: 264 | E123: 44.22110553 | F123: 260 | G123: 43.55108878 | H123: 259 | I123: 44.27350427 | J123: 247 | K123: 42.22222222 | L123: 258 | M123: 40.69400631 | N123: 276 | O123: 45.61983471 | P123: 294 | Q123: 47.96084829 | R123: 316 | S123: 47.09388972
A124: F13 | B124: 44 | C124: 7.638888889 | D124: 48 | E124: 8.040201005 | F124: 48 | G124: 8.040201005 | H124: 50 | I124: 8.547008547 | J124: 46 | K124: 7.863247863 | L124: 48 | M124: 7.570977918 | N124: 58 | O124: 9.58677686 | P124: 53 | Q124: 8.646003263 | R124: 43 | S124: 6.408345753
A125: F14 | B125: 25 | C125: 4.340277778 | D125: 28 | E125: 4.690117253 | F125: 24 | G125: 4.020100503 | H125: 20 | I125: 3.418803419 | J125: 22 | K125: 3.760683761 | L125: 25 | M125: 3.943217666 | N125: 24 | O125: 3.966942149 | P125: 27 | Q125: 4.4045677 | R125: 31 | S125: 4.619970194
A126: F15 | B126: 11 | C126: 1.909722222 | D126: 17 | E126: 2.847571189 | F126: 13 | G126: 2.177554439 | H126: 6 | I126: 1.025641026 | J126: 10 | K126: 1.709401709 | L126: 10 | M126: 1.577287066 | N126: 8 | O126: 1.32231405 | P126: 6 | Q126: 0.9787928222 | R126: 11 | S126: 1.639344262
A127: F16 | B127: 576 | C127: 100 | D127: 597 | E127: 100 | F127: 597 | G127: 100 | H127: 585 | I127: 100 | J127: 585 | K127: 100 | L127: 634 | M127: 100 | N127: 605 | O127: 100 | P127: 613 | Q127: 100 | R127: 671 | S127: 100
A128: F21 | B128: 79 | C128: 16.9527897 | D128: 86 | E128: 18.9010989 | F128: 88 | G128: 18.56540084 | H128: 90 | I128: 18.18181818 | J128: 92 | K128: 19.45031712 | L128: 79 | M128: 18.32946636 | N128: 80 | O128: 18.01801802 | P128: 102 | Q128: 20.44088176 | R128: 117 | S128: 21.19565217
A129: F22 | B129: 120 | C129: 25.75107296 | D129: 114 | E129: 25.05494505 | F129: 132 | G129: 27.84810127 | H129: 143 | I129: 28.88888889 | J129: 140 | K129: 29.59830867 | L129: 123 | M129: 28.53828306 | N129: 95 | O129: 21.3963964 | P129: 101 | Q129: 20.24048096 | R129: 137 | S129: 24.81884058
A130: F23 | B130: 125 | C130: 26.82403433 | D130: 105 | E130: 23.07692308 | F130: 106 | G130: 22.3628692 | H130: 108 | I130: 21.81818182 | J130: 101 | K130: 21.35306554 | L130: 101 | M130: 23.43387471 | N130: 123 | O130: 27.7027027 | P130: 134 | Q130: 26.85370741 | R130: 121 | S130: 21.92028986
A131: F24 | B131: 83 | C131: 17.8111588 | D131: 90 | E131: 19.78021978 | F131: 85 | G131: 17.93248945 | H131: 90 | I131: 18.18181818 | J131: 87 | K131: 18.39323467 | L131: 93 | M131: 21.57772622 | N131: 109 | O131: 24.54954955 | P131: 119 | Q131: 23.84769539 | R131: 120 | S131: 21.73913043
A132: F25 | B132: 59 | C132: 12.66094421 | D132: 60 | E132: 13.18681319 | F132: 63 | G132: 13.29113924 | H132: 64 | I132: 12.92929293 | J132: 53 | K132: 11.205074 | L132: 35 | M132: 8.120649652 | N132: 37 | O132: 8.333333333 | P132: 43 | Q132: 8.617234469 | R132: 57 | S132: 10.32608696
A133: F26 | B133: 466 | C133: 100 | D133: 455 | E133: 100 | F133: 474 | G133: 100 | H133: 495 | I133: 100 | J133: 473 | K133: 100 | L133: 431 | M133: 100 | N133: 444 | O133: 100 | P133: 499 | Q133: 100 | R133: 552 | S133: 100
A134: F31 | B134: 64 | C134: 10.32258065 | D134: 94 | E134: 13.98809524 | F134: 111 | G134: 16.7673716 | H134: 116 | I134: 17.41741742 | J134: 146 | K134: 21.15942029 | L134: 142 | M134: 20.9439528 | N134: 118 | O134: 16.85714286 | P134: 126 | Q134: 17.3553719 | R134: 127 | S134: 16.97860963
A135: F32 | B135: 46 | C135: 7.419354839 | D135: 54 | E135: 8.035714286 | F135: 46 | G135: 6.948640483 | H135: 48 | I135: 7.207207207 | J135: 54 | K135: 7.826086957 | L135: 50 | M135: 7.374631268 | N135: 43 | O135: 6.142857143 | P135: 46 | Q135: 6.336088154 | R135: 55 | S135: 7.352941176
A136: F33 | B136: 141 | C136: 22.74193548 | D136: 146 | E136: 21.72619048 | F136: 149 | G136: 22.50755287 | H136: 170 | I136: 25.52552553 | J136: 166 | K136: 24.05797101 | L136: 140 | M136: 20.64896755 | N136: 167 | O136: 23.85714286 | P136: 175 | Q136: 24.1046832 | R136: 170 | S136: 22.72727273
A137: F34 | B137: 342 | C137: 55.16129032 | D137: 355 | E137: 52.82738095 | F137: 341 | G137: 51.51057402 | H137: 329 | I137: 49.3993994 | J137: 320 | K137: 46.37681159 | L137: 342 | M137: 50.44247788 | N137: 368 | O137: 52.57142857 | P137: 375 | Q137: 51.65289256 | R137: 388 | S137: 51.87165775
A138: F35 | B138: 27 | C138: 4.35483871 | D138: 23 | E138: 3.422619048 | F138: 15 | G138: 2.265861027 | H138: 3 | I138: 0.4504504505 | J138: 4 | K138: 0.5797101449 | L138: 4 | M138: 0.5899705015 | N138: 4 | O138: 0.5714285714 | P138: 4 | Q138: 0.5509641873 | R138: 8 | S138: 1.069518717
A139: F36 | B139: 620 | C139: 100 | D139: 672 | E139: 100 | F139: 662 | G139: 100 | H139: 666 | I139: 100 | J139: 690 | K139: 100 | L139: 678 | M139: 100 | N139: 700 | O139: 100 | P139: 726 | Q139: 100 | R139: 748 | S139: 100
A140: F41 | B140: 386 | C140: 23.22503008 | D140: 420 | E140: 24.36194896 | F140: 451 | G140: 26.02423543 | H140: 456 | I140: 26.11683849 | J140: 498 | K140: 28.48970252 | L140: 514 | M140: 29.48938612 | N140: 437 | O140: 24.98570612 | P140: 461 | Q140: 25.08161045 | R140: 514 | S140: 26.07813293
A141: F42 | B141: 419 | C141: 25.21058965 | D141: 432 | E141: 25.05800464 | F141: 438 | G141: 25.27409117 | H141: 450 | I141: 25.77319588 | J141: 441 | K141: 25.22883295 | L141: 431 | M141: 24.72748135 | N141: 414 | O141: 23.67066895 | P141: 441 | Q141: 23.99347116 | R141: 508 | S141: 25.77371892
A142: F43 | B142: 310 | C142: 18.65222623 | D142: 299 | E142: 17.34338747 | F142: 303 | G142: 17.48413156 | H142: 328 | I142: 18.78579611 | J142: 313 | K142: 17.90617849 | L142: 289 | M142: 16.58060815 | N142: 348 | O142: 19.89708405 | P142: 362 | Q142: 19.695321 | R142: 334 | S142: 16.94571284
A143: F44 | B143: 450 | C143: 27.07581227 | D143: 473 | E143: 27.4361949 | F143: 450 | G143: 25.96653203 | H143: 439 | I143: 25.14318442 | J143: 429 | K143: 24.5423341 | L143: 460 | M143: 26.3912794 | N143: 501 | O143: 28.64493997 | P143: 521 | Q143: 28.34602829 | R143: 539 | S143: 27.34652461
A144: F45 | B144: 97 | C144: 5.836341757 | D144: 100 | E144: 5.800464037 | F144: 91 | G144: 5.25100981 | H144: 73 | I144: 4.180985109 | J144: 67 | K144: 3.832951945 | L144: 49 | M144: 2.81124498 | N144: 49 | O144: 2.801600915 | P144: 53 | Q144: 2.883569097 | R144: 76 | S144: 3.855910705
A145: F46 | B145: 1662 | C145: 100 | D145: 1724 | E145: 100 | F145: 1733 | G145: 100 | H145: 1746 | I145: 100 | J145: 1748 | K145: 100 | L145: 1743 | M145: 100 | N145: 1749 | O145: 100 | P145: 1838 | Q145: 100 | R145: 1971 | S145: 100
A146: G11 | B146: 674 | C146: 36.65035345 | D146: 744 | E146: 38.62928349 | F146: 777 | G146: 39.64285714 | H146: 708 | I146: 38.31168831 | J146: 732 | K146: 39.37600861 | L146: 713 | M146: 40.214326 | N146: 613 | O146: 37.35527118 | P146: 681 | Q146: 37.27422003 | R146: 739 | S146: 37.58901322
A147: G12 | B147: 852 | C147: 46.32952692 | D147: 917 | E147: 47.61163032 | F147: 898 | G147: 45.81632653 | H147: 842 | I147: 45.56277056 | J147: 834 | K147: 44.86282948 | L147: 768 | M147: 43.31641286 | N147: 728 | O147: 44.36319317 | P147: 863 | Q147: 47.23590586 | R147: 966 | S147: 49.1353001
A148: G13 | B148: 120 | C148: 6.525285481 | D148: 97 | E148: 5.036344756 | F148: 135 | G148: 6.887755102 | H148: 161 | I148: 8.712121212 | J148: 162 | K148: 8.714362561 | L148: 155 | M148: 8.742244783 | N148: 160 | O148: 9.750152346 | P148: 151 | Q148: 8.264915161 | R148: 142 | S148: 7.222787386
A149: G14 | B149: 121 | C149: 6.57966286 | D149: 120 | E149: 6.230529595 | F149: 115 | G149: 5.867346939 | H149: 117 | I149: 6.331168831 | J149: 117 | K149: 6.293706294 | L149: 125 | M149: 7.050197406 | N149: 129 | O149: 7.861060329 | P149: 123 | Q149: 6.732348112 | R149: 106 | S149: 5.391658189
A150: G15 | B150: 72 | C150: 3.915171289 | D150: 48 | E150: 2.492211838 | F150: 35 | G150: 1.785714286 | H150: 20 | I150: 1.082251082 | J150: 14 | K150: 0.7530930608 | L150: 12 | M150: 0.6768189509 | N150: 11 | O150: 0.6703229738 | P150: 9 | Q150: 0.4926108374 | R150: 13 | S150: 0.6612410987
A151: G16 | B151: 1839 | C151: 100 | D151: 1926 | E151: 100 | F151: 1960 | G151: 100 | H151: 1848 | I151: 100 | J151: 1859 | K151: 100 | L151: 1773 | M151: 100 | N151: 1641 | O151: 100 | P151: 1827 | Q151: 100 | R151: 1966 | S151: 100
A152: G21 | B152: 307 | C152: 19.74276527 | D152: 317 | E152: 20.17823043 | F152: 288 | G152: 19.34184016 | H152: 260 | I152: 17.78385773 | J152: 217 | K152: 15.66787004 | L152: 206 | M152: 15.59424678 | N152: 211 | O152: 15.75802838 | P152: 229 | Q152: 16.8879056 | R152: 262 | S152: 18.62117982
A153: G22 | B153: 411 | C153: 26.43086817 | D153: 398 | E153: 25.33418205 | F153: 365 | G153: 24.51309604 | H153: 354 | I153: 24.21340629 | J153: 344 | K153: 24.83754513 | L153: 320 | M153: 24.22407267 | N153: 321 | O153: 23.97311426 | P153: 325 | Q153: 23.96755162 | R153: 348 | S153: 24.73347548
A154: G23 | B154: 340 | C154: 21.86495177 | D154: 369 | E154: 23.48822406 | F154: 349 | G154: 23.43854936 | H154: 364 | I154: 24.89740082 | J154: 365 | K154: 26.35379061 | L154: 356 | M154: 26.94928085 | N154: 372 | O154: 27.78192681 | P154: 379 | Q154: 27.94985251 | R154: 374 | S154: 26.58137882
A155: G24 | B155: 156 | C155: 10.03215434 | D155: 240 | E155: 15.2768937 | F155: 324 | G155: 21.75957018 | H155: 357 | I155: 24.41860465 | J155: 344 | K155: 24.83754513 | L155: 331 | M155: 25.05677517 | N155: 347 | O155: 25.91486184 | P155: 335 | Q155: 24.70501475 | R155: 304 | S155: 21.60625444
A156: G25 | B156: 341 | C156: 21.92926045 | D156: 247 | E156: 15.72246976 | F156: 163 | G156: 10.94694426 | H156: 127 | I156: 8.686730506 | J156: 115 | K156: 8.303249097 | L156: 108 | M156: 8.175624527 | N156: 88 | O156: 6.572068708 | P156: 88 | Q156: 6.489675516 | R156: 119 | S156: 8.457711443
A157: G26 | B157: 1555 | C157: 100 | D157: 1571 | E157: 100 | F157: 1489 | G157: 100 | H157: 1462 | I157: 100 | J157: 1385 | K157: 100 | L157: 1321 | M157: 100 | N157: 1339 | O157: 100 | P157: 1356 | Q157: 100 | R157: 1407 | S157: 100
A158: G31 | B158: 317 | C158: 13.20283215 | D158: 401 | E158: 15.13778784 | F158: 473 | G158: 17.39610151 | H158: 492 | I158: 18.53107345 | J158: 516 | K158: 19.90740741 | L158: 510 | M158: 20.44088176 | N158: 513 | O158: 20.99018003 | P158: 531 | Q158: 21.86985173 | R158: 562 | S158: 22.76225192
A159: G32 | B159: 147 | C159: 6.12244898 | D159: 172 | E159: 6.493016233 | F159: 226 | G159: 8.311879367 | H159: 218 | I159: 8.210922787 | J159: 214 | K159: 8.25617284 | L159: 223 | M159: 8.937875752 | N159: 230 | O159: 9.410801964 | P159: 229 | Q159: 9.431630972 | R159: 217 | S159: 8.788983394
A160: G33 | B160: 584 | C160: 24.32319867 | D160: 649 | E160: 24.49981125 | F160: 626 | G160: 23.02317028 | H160: 595 | I160: 22.41054614 | J160: 610 | K160: 23.53395062 | L160: 583 | M160: 23.36673347 | N160: 540 | O160: 22.09492635 | P160: 519 | Q160: 21.37561779 | R160: 547 | S160: 22.15471851
A161: G34 | B161: 1187 | C161: 49.43773428 | D161: 1276 | E161: 48.16912042 | F161: 1248 | G161: 45.89922766 | H161: 1203 | I161: 45.31073446 | J161: 1108 | K161: 42.74691358 | L161: 1039 | M161: 41.64328657 | N161: 1034 | O161: 42.30769231 | P161: 1024 | Q161: 42.17462932 | R161: 1044 | S161: 42.28432564
A162: G35 | B162: 166 | C162: 6.913785923 | D162: 151 | E162: 5.700264251 | F162: 146 | G162: 5.369621184 | H162: 147 | I162: 5.536723164 | J162: 144 | K162: 5.555555556 | L162: 140 | M162: 5.611222445 | N162: 127 | O162: 5.196399345 | P162: 125 | Q162: 5.148270181 | R162: 99 | S162: 4.009720535
A163: G36 | B163: 2401 | C163: 100 | D163: 2649 | E163: 100 | F163: 2719 | G163: 100 | H163: 2655 | I163: 100 | J163: 2592 | K163: 100 | L163: 2495 | M163: 100 | N163: 2444 | O163: 100 | P163: 2428 | Q163: 100 | R163: 2469 | S163: 100
A164: G41 | B164: 1298 | C164: 22.3986195 | D164: 1462 | E164: 23.78782948 | F164: 1538 | G164: 24.93514916 | H164: 1460 | I164: 24.47611065 | J164: 1465 | K164: 25.10281014 | L164: 1429 | M164: 25.56808016 | N164: 1337 | O164: 24.64970501 | P164: 1441 | Q164: 25.68169667 | R164: 1563 | S164: 26.75453612
A165: G42 | B165: 1410 | C165: 24.3313201 | D165: 1487 | E165: 24.19459811 | F165: 1489 | G165: 24.14072633 | H165: 1414 | I165: 23.70494552 | J165: 1392 | K165: 23.85195339 | L165: 1311 | M165: 23.45679012 | N165: 1279 | O165: 23.58038348 | P165: 1417 | Q165: 25.25396543 | R165: 1531 | S165: 26.2067785
A166: G43 | B166: 1044 | C166: 18.01553063 | D166: 1115 | E166: 18.1418809 | F166: 1110 | G166: 17.99610895 | H166: 1120 | I166: 18.77619447 | J166: 1137 | K166: 19.48252228 | L166: 1094 | M166: 19.57416354 | N166: 1072 | O166: 19.7640118 | P166: 1049 | Q166: 18.69541971 | R166: 1063 | S166: 18.19582335
A167: G44 | B167: 1464 | C167: 25.26315789 | D167: 1636 | E167: 26.61893915 | F167: 1687 | G167: 27.35084306 | H167: 1677 | I167: 28.11399832 | J167: 1569 | K167: 26.88485264 | L167: 1495 | M167: 26.74897119 | N167: 1510 | O167: 27.83923304 | P167: 1482 | Q167: 26.41240421 | R167: 1454 | S167: 24.88873673
A168: G45 | B168: 579 | C168: 9.991371872 | D168: 446 | E168: 7.256752359 | F168: 344 | G168: 5.577172503 | H168: 294 | I168: 4.928751048 | J168: 273 | K168: 4.677861549 | L168: 260 | M168: 4.65199499 | N168: 226 | O168: 4.166666667 | P168: 222 | Q168: 3.95651399 | R168: 231 | S168: 3.9541253
A169: G46 | B169: 5795 | C169: 100 | D169: 6146 | E169: 100 | F169: 6168 | G169: 100 | H169: 5965 | I169: 100 | J169: 5836 | K169: 100 | L169: 5589 | M169: 100 | N169: 5424 | O169: 100 | P169: 5611 | Q169: 100 | R169: 5842 | S169: 100
A170: H11 | B170: 224 | C170: 40.57971014 | D170: 214 | E170: 37.87610619 | F170: 270 | G170: 43.6187399 | H170: 222 | I170: 42.20532319 | J170: 211 | K170: 37.6114082 | L170: 251 | M170: 39.2801252 | N170: 213 | O170: 39.08256881 | P170: 242 | Q170: 41.22657581 | R170: 294 | S170: 45.30046225
A171: H12 | B171: 241 | C171: 43.65942029 | D171: 254 | E171: 44.95575221 | F171: 256 | G171: 41.35702746 | H171: 233 | I171: 44.29657795 | J171: 276 | K171: 49.19786096 | L171: 298 | M171: 46.63536776 | N171: 240 | O171: 44.03669725 | P171: 266 | Q171: 45.31516184 | R171: 284 | S171: 43.7596302
A172: H13 | B172: 48 | C172: 8.695652174 | D172: 52 | E172: 9.203539823 | F172: 45 | G172: 7.269789984 | H172: 26 | I172: 4.942965779 | J172: 32 | K172: 5.704099822 | L172: 35 | M172: 5.477308294 | N172: 39 | O172: 7.155963303 | P172: 41 | Q172: 6.984667802 | R172: 34 | S172: 5.238828968
A173: H14 | B173: 28 | C173: 5.072463768 | D173: 33 | E173: 5.840707965 | F173: 35 | G173: 5.654281099 | H173: 30 | I173: 5.703422053 | J173: 29 | K173: 5.169340463 | L173: 36 | M173: 5.633802817 | N173: 37 | O173: 6.788990826 | P173: 31 | Q173: 5.28109029 | R173: 20 | S173: 3.081664099
A174: H15 | B174: 11 | C174: 1.992753623 | D174: 12 | E174: 2.123893805 | F174: 13 | G174: 2.100161551 | H174: 15 | I174: 2.851711027 | J174: 13 | K174: 2.317290553 | L174: 19 | M174: 2.973395931 | N174: 16 | O174: 2.935779817 | P174: 7 | Q174: 1.192504259 | R174: 17 | S174: 2.619414484
A175: H16 | B175: 552 | C175: 100 | D175: 565 | E175: 100 | F175: 619 | G175: 100 | H175: 526 | I175: 100 | J175: 561 | K175: 100 | L175: 639 | M175: 100 | N175: 545 | O175: 100 | P175: 587 | Q175: 100 | R175: 649 | S175: 100
A176: H21 | B176: 97 | C176: 22.04545455 | D176: 84 | E176: 19.62616822 | F176: 68 | G176: 16.152019 | H176: 57 | I176: 14.96062992 | J176: 60 | K176: 14.35406699 | L176: 66 | M176: 14.41048035 | N176: 59 | O176: 13.72093023 | P176: 55 | Q176: 13.12649165 | R176: 54 | S176: 13.84615385
A177: H22 | B177: 126 | C177: 28.63636364 | D177: 109 | E177: 25.46728972 | F177: 105 | G177: 24.94061758 | H177: 103 | I177: 27.03412073 | J177: 115 | K177: 27.51196172 | L177: 137 | M177: 29.91266376 | N177: 132 | O177: 30.69767442 | P177: 127 | Q177: 30.31026253 | R177: 118 | S177: 30.25641026
A178: H23 | B178: 114 | C178: 25.90909091 | D178: 105 | E178: 24.53271028 | F178: 115 | G178: 27.31591449 | H178: 98 | I178: 25.72178478 | J178: 110 | K178: 26.31578947 | L178: 118 | M178: 25.76419214 | N178: 100 | O178: 23.25581395 | P178: 106 | Q178: 25.29832936 | R178: 119 | S178: 30.51282051
A179: H24 | B179: 57 | C179: 12.95454545 | D179: 76 | E179: 17.75700935 | F179: 77 | G179: 18.28978622 | H179: 75 | I179: 19.68503937 | J179: 85 | K179: 20.33492823 | L179: 86 | M179: 18.77729258 | N179: 77 | O179: 17.90697674 | P179: 70 | Q179: 16.70644391 | R179: 63 | S179: 16.15384615
A180: H25 | B180: 46 | C180: 10.45454545 | D180: 54 | E180: 12.61682243 | F180: 56 | G180: 13.30166271 | H180: 48 | I180: 12.5984252 | J180: 48 | K180: 11.48325359 | L180: 51 | M180: 11.13537118 | N180: 62 | O180: 14.41860465 | P180: 61 | Q180: 14.55847255 | R180: 36 | S180: 9.230769231
A181: H26 | B181: 440 | C181: 100 | D181: 428 | E181: 100 | F181: 421 | G181: 100 | H181: 381 | I181: 100 | J181: 418 | K181: 100 | L181: 458 | M181: 100 | N181: 430 | O181: 100 | P181: 419 | Q181: 100 | R181: 390 | S181: 100
A182: H31 | B182: 54 | C182: 11.46496815 | D182: 48 | E182: 9.195402299 | F182: 68 | G182: 11.56462585 | H182: 70 | I182: 12.65822785 | J182: 73 | K182: 13.93129771 | L182: 87 | M182: 16.35338346 | N182: 82 | O182: 15.83011583 | P182: 87 | Q182: 16.38418079 | R182: 85 | S182: 16.2835249
A183: H32 | B183: 37 | C183: 7.855626327 | D183: 34 | E183: 6.513409962 | F183: 37 | G183: 6.292517007 | H183: 39 | I183: 7.05244123 | J183: 39 | K183: 7.442748092 | L183: 40 | M183: 7.518796992 | N183: 36 | O183: 6.94980695 | P183: 33 | Q183: 6.214689266 | R183: 34 | S183: 6.513409962
A184: H33 | B184: 109 | C184: 23.14225053 | D184: 139 | E184: 26.62835249 | F184: 157 | G184: 26.70068027 | H184: 130 | I184: 23.50813743 | J184: 107 | K184: 20.41984733 | L184: 103 | M184: 19.36090226 | N184: 101 | O184: 19.4980695 | P184: 108 | Q184: 20.33898305 | R184: 101 | S184: 19.348659
A185: H34 | B185: 255 | C185: 54.14012739 | D185: 283 | E185: 54.21455939 | F185: 303 | G185: 51.53061224 | H185: 291 | I185: 52.62206148 | J185: 284 | K185: 54.19847328 | L185: 280 | M185: 52.63157895 | N185: 270 | O185: 52.12355212 | P185: 264 | Q185: 49.71751412 | R185: 255 | S185: 48.85057471
A186: H35 | B186: 16 | C186: 3.397027601 | D186: 18 | E186: 3.448275862 | F186: 23 | G186: 3.911564626 | H186: 23 | I186: 4.159132007 | J186: 21 | K186: 4.007633588 | L186: 22 | M186: 4.135338346 | N186: 29 | O186: 5.598455598 | P186: 39 | Q186: 7.344632768 | R186: 47 | S186: 9.003831418
A187: H36 | B187: 471 | C187: 100 | D187: 522 | E187: 100 | F187: 588 | G187: 100 | H187: 553 | I187: 100 | J187: 524 | K187: 100 | L187: 532 | M187: 100 | N187: 518 | O187: 100 | P187: 531 | Q187: 100 | R187: 522 | S187: 100
A188: H41 | B188: 375 | C188: 25.63226247 | D188: 346 | E188: 22.83828383 | F188: 406 | G188: 24.93857494 | H188: 349 | I188: 23.90410959 | J188: 344 | K188: 22.88755822 | L188: 404 | M188: 24.8004911 | N188: 354 | O188: 23.7106497 | P188: 384 | Q188: 24.98373455 | R188: 433 | S188: 27.73862908
A189: H42 | B189: 404 | C189: 27.61449077 | D189: 397 | E189: 26.20462046 | F189: 398 | G189: 24.44717445 | H189: 375 | I189: 25.68493151 | J189: 430 | K189: 28.60944777 | L189: 475 | M189: 29.15899325 | N189: 408 | O189: 27.32752847 | P189: 426 | Q189: 27.71633051 | R189: 436 | S189: 27.93081358
A190: H43 | B190: 271 | C190: 18.52358168 | D190: 296 | E190: 19.5379538 | F190: 317 | G190: 19.47174447 | H190: 254 | I190: 17.39726027 | J190: 249 | K190: 16.56686627 | L190: 256 | M190: 15.71516268 | N190: 240 | O190: 16.07501674 | P190: 255 | Q190: 16.59076122 | R190: 254 | S190: 16.27162076
A191: H44 | B191: 340 | C191: 23.23991798 | D191: 392 | E191: 25.87458746 | F191: 415 | G191: 25.49140049 | H191: 396 | I191: 27.12328767 | J191: 398 | K191: 26.48037259 | L191: 402 | M191: 24.67771639 | N191: 384 | O191: 25.72002679 | P191: 365 | Q191: 23.74756018 | R191: 338 | S191: 21.65278668
A192: H45 | B192: 73 | C192: 4.989747095 | D192: 84 | E192: 5.544554455 | F192: 92 | G192: 5.651105651 | H192: 86 | I192: 5.890410959 | J192: 82 | K192: 5.455755156 | L192: 92 | M192: 5.647636587 | N192: 107 | O192: 7.166778299 | P192: 107 | Q192: 6.961613533 | R192: 100 | S192: 6.406149904
A193: H46 | B193: 1463 | C193: 100 | D193: 1515 | E193: 100 | F193: 1628 | G193: 100 | H193: 1460 | I193: 100 | J193: 1503 | K193: 100 | L193: 1629 | M193: 100 | N193: 1493 | O193: 100 | P193: 1537 | Q193: 100 | R193: 1561 | S193: 100
A194: L11 | B194: 327 | C194: 38.02325581 | D194: 376 | E194: 39.91507431 | F194: 341 | G194: 36.08465608 | H194: 396 | I194: 39.24677899 | J194: 434 | K194: 41.41221374 | L194: 439 | M194: 40.31221304 | N194: 456 | O194: 40.17621145 | P194: 448 | Q194: 38.78787879 | R194: 472 | S194: 40.27303754
A195: L12 | B195: 346 | C195: 40.23255814 | D195: 382 | E195: 40.55201699 | F195: 395 | G195: 41.7989418 | H195: 404 | I195: 40.03964321 | J195: 438 | K195: 41.79389313 | L195: 478 | M195: 43.89348026 | N195: 508 | O195: 44.75770925 | P195: 545 | Q195: 47.18614719 | R195: 530 | S195: 45.221843
A196: L13 | B196: 62 | C196: 7.209302326 | D196: 95 | E196: 10.08492569 | F196: 148 | G196: 15.66137566 | H196: 146 | I196: 14.46977205 | J196: 102 | K196: 9.732824427 | L196: 94 | M196: 8.631772268 | N196: 109 | O196: 9.603524229 | P196: 97 | Q196: 8.398268398 | R196: 90 | S196: 7.679180887
A197: L14 | B197: 75 | C197: 8.720930233 | D197: 83 | E197: 8.81104034 | F197: 61 | G197: 6.455026455 | H197: 62 | I197: 6.144697721 | J197: 70 | K197: 6.679389313 | L197: 73 | M197: 6.703397612 | N197: 55 | O197: 4.845814978 | P197: 59 | Q197: 5.108225108 | R197: 75 | S197: 6.399317406
A198: L15 | B198: 50 | C198: 5.813953488 | D198: 6 | E198: 0.6369426752 | F198: 0 | G198: 0.0% | H198: 1 | I198: 0.09910802775 | J198: 4 | K198: 0.3816793893 | L198: 5 | M198: 0.4591368228 | N198: 7 | O198: 0.6167400881 | P198: 6 | Q198: 0.5194805195 | R198: 5 | S198: 0.4266211604
A199: L16 | B199: 860 | C199: 100 | D199: 942 | E199: 100 | F199: 945 | G199: 100 | H199: 1009 | I199: 100 | J199: 1048 | K199: 100 | L199: 1089 | M199: 100 | N199: 1135 | O199: 100 | P199: 1155 | Q199: 100 | R199: 1172 | S199: 100
A200: L21 | B200: 143 | C200: 19.19463087 | D200: 139 | E200: 19.04109589 | F200: 131 | G200: 18.68758916 | H200: 120 | I200: 16.80672269 | J200: 115 | K200: 15.21164021 | L200: 100 | M200: 13.6239782 | N200: 97 | O200: 13.10810811 | P200: 109 | Q200: 14.80978261 | R200: 118 | S200: 15.73333333
... 233 more rows
